{"text_format":"1","workbook":"xlsx","n_sheets":3,"sheets":["PPR-2017-01-Dublin","Chart","Regions"],"not_rendered":{"charts":1,"images":0,"macros":1,"external_links":0,"defined_names":1,"comments":0,"pivot_tables":0},"unopened":[],"bounds":{"document_bytes":16777216,"sheet_cells":100000,"rows_first":2000,"rows_last":500,"rows_between":2000,"halvings":0,"cell_chars":16384,"cell_head_chars":4096},"cells_cut":0,"cells_raw":0,"read":"whole","date_system":"1900"}

{"sheet":"PPR-2017-01-Dublin","index":0,"n_rows":1012,"n_cols":18,"rows_kept":1012,"cut":false,"hidden":false,"merged":[]}
["Date of Sale (dd/mm/yyyy)",null,"Month","Address","Region","County","Price (€)","Not Full Market Price","VAT Exclusive","Description of Property","Property Size Description","Postal Code"]
["2017-01-01",{"$f":"DATE(RIGHT(A2,4),MID(A2,4,2),LEFT(A2,2))","v":"2739-01-11"},{"$f":"IF(ISERROR(MONTH(A2)),MONTH(B2),MONTH(A2))","v":1},"1 PINTAIL HOUSE, REDCOURT OAKS, SEAFIELD RD EAST",{"$f":"VLOOKUP(L2,Regions!A:B,2,0)","v":"N"},"Dublin",242424,"Yes","No","Second-Hand Dwelling house /Apartment",null,"Dublin 3",null,null,null,null,null,42955]
["2017-01-01",{"$f":"DATE(RIGHT(A3,4),MID(A3,4,2),LEFT(A3,2))","v":"2739-01-11"},{"$f":"IF(ISERROR(MONTH(A3)),MONTH(B3),MONTH(A3))","v":1},"11 PINTAIL HOUSE, REDCOURT OAKS, SEAFIELD RD EAST",{"$f":"VLOOKUP(L3,Regions!A:B,2,0)","v":"N"},"Dublin",242424,"Yes","No","Second-Hand Dwelling house /Apartment",null,"Dublin 3"]
["2017-01-01","2739-01-11",1,"124 SEAFIELD RD, CLONTARF, DUBLIN 3",{"$f":"VLOOKUP(L4,Regions!A:B,2,0)","v":"N"},"Dublin",535500,"Yes","No","Second-Hand Dwelling house /Apartment",null,"Dublin 3"]
["2017-01-01","2739-01-11",1,"126 SEAFIELD RD, CLONTARF, DUBLIN 3",{"$f":"VLOOKUP(L5,Regions!A:B,2,0)","v":"N"},"Dublin",630000,"No","No","Second-Hand Dwelling house /Apartment",null,"Dublin 3"]
["2017-01-01","2739-01-11",1,"128 SEAFIELD RD, CLONTARF, DUBLIN 3",{"$f":"VLOOKUP(L6,Regions!A:B,2,0)","v":"N"},"Dublin",535500,"Yes","No","Second-Hand Dwelling house /Apartment",null,"Dublin 3"]
["2017-01-01","2739-01-11",1,"13 PINTAIL HOUSE, REDCOURT OAKS, SEAFIELD RD EAST DUBLIN 3",{"$f":"VLOOKUP(L7,Regions!A:B,2,0)","v":"N"},"Dublin",271800,"Yes","No","Second-Hand Dwelling house /Apartment",null,"Dublin 3"]
["2017-01-01","2739-01-11",1,"18 PINTAIL HOUSE, REDCOURT OAKS, SEAFIELD RD EAST",{"$f":"VLOOKUP(L8,Regions!A:B,2,0)","v":"N"},"Dublin",242424,"Yes","No","Second-Hand Dwelling house /Apartment",null,"Dublin 3"]
["2017-01-01","2739-01-11",1,"20 PINTAIL HOUSE, REDCOURT OAKS, SEAFIELD RD EAST DUBLIN 3",{"$f":"VLOOKUP(L9,Regions!A:B,2,0)","v":"N"},"Dublin",360000,"No","No","Second-Hand Dwelling house /Apartment",null,"Dublin 3"]
["2017-01-01","2739-01-11",1,"25 PINTAIL HOUSE, REDCOURT OAKS, SEAFIELD RD EAST",{"$f":"VLOOKUP(L10,Regions!A:B,2,0)","v":"N"},"Dublin",148148,"Yes","No","Second-Hand Dwelling house /Apartment",null,"Dublin 3"]
["2017-01-01","2739-01-11",1,"32 PINTAIL HOUSE, REDCOURT OAKS, SEAFIELD RD EAST DUBLIN 3",{"$f":"VLOOKUP(L11,Regions!A:B,2,0)","v":"N"},"Dublin",352800,"Yes","No","Second-Hand Dwelling house /Apartment",null,"Dublin 3"]
["2017-01-01","2739-01-11",1,"35 PINTAIL HOUSE, REDCOURT OAKS, SEAFIELD RD EAST DUBLIN 3",{"$f":"VLOOKUP(L12,Regions!A:B,2,0)","v":"N"},"Dublin",215600,"Yes","No","Second-Hand Dwelling house /Apartment",null,"Dublin 3"]
["2017-01-01","2739-01-11",1,"5 SEAFIELD GROVE, CLONTARF, DUBLIN 3",{"$f":"VLOOKUP(L13,Regions!A:B,2,0)","v":"N"},"Dublin",830000,"No","No","Second-Hand Dwelling house /Apartment",null,"Dublin 3"]
["2017-01-01","2739-01-11",1,"8 PINTAIL HOUSE, REDCOURT OAKS, SEAFIELD RD EAST DUBLIN 3",{"$f":"VLOOKUP(L14,Regions!A:B,2,0)","v":"N"},"Dublin",271800,"Yes","No","Second-Hand Dwelling house /Apartment",null,"Dublin 3"]
["2017-01-01","2739-01-11",1,"9 TEAL HOUSE, REDCOURT OAKS SEAFIELD RD EAST, CLONTARF",{"$f":"VLOOKUP(L15,Regions!A:B,2,0)","v":"N"},"Dublin",66000,"Yes","No","Second-Hand Dwelling house /Apartment",null,"Dublin 3"]
["2017-02-01","2772-08-11",2,"31 UPPER DRUMCONDRA ROAD, DRUMCONDRA, DUBLIN 9",{"$f":"VLOOKUP(L16,Regions!A:B,2,0)","v":{"$error":"#N/A"}},"Dublin",260000,"No","No","Second-Hand Dwelling house /Apartment"]
["2017-03-01","2802-12-12",3,"114 SHELMARTIN AVE, MARINO, DUBLIN 3",{"$f":"VLOOKUP(L17,Regions!A:B,2,0)","v":"N"},"Dublin",375000,"No","No","Second-Hand Dwelling house /Apartment",null,"Dublin 3"]
["2017-03-01","2802-12-12",3,"13 THE VIEW, ROBSWALL, MALAHIDE",{"$f":"VLOOKUP(L18,Regions!A:B,2,0)","v":{"$error":"#N/A"}},"Dublin",575000,"No","No","Second-Hand Dwelling house /Apartment"]
["2017-03-01","2802-12-12",3,"180 THE LINKS, ELM PARK, MERRION RD DUBLIN 4",{"$f":"VLOOKUP(L19,Regions!A:B,2,0)","v":"W"},"Dublin",292000,"No","No","Second-Hand Dwelling house /Apartment",null,"Dublin 4"]
["2017-03-01","2802-12-12",3,"33 Belarmine Grove, Belarmine Woods, Stepaside",{"$f":"VLOOKUP(L20,Regions!A:B,2,0)","v":{"$error":"#N/A"}},"Dublin",348018,"No","Yes","New Dwelling house /Apartment","greater than or equal to 38 sq metres and less than 125 sq metres"]
["2017-03-01","2802-12-12",3,"4 Park lane, Belltree, Clongriffen",{"$f":"VLOOKUP(L21,Regions!A:B,2,0)","v":{"$error":"#N/A"}},"Dublin",255507,"No","Yes","New Dwelling house /Apartment","greater than or equal to 38 sq metres and less than 125 sq metres"]
["2017-03-01","2802-12-12",3,"74 ST MAGDALEN TERRACE, STELLA GARDENS, IRISHTOWN DUBLIN 4",{"$f":"VLOOKUP(L22,Regions!A:B,2,0)","v":"W"},"Dublin",452000,"No","No","Second-Hand Dwelling house /Apartment",null,"Dublin 4"]
["2017-03-01","2802-12-12",3,"83 UPPER TREES RD, MOUNT MERRION, DUBLIN",{"$f":"VLOOKUP(L23,Regions!A:B,2,0)","v":{"$error":"#N/A"}},"Dublin",260000,"No","No","Second-Hand Dwelling house /Apartment"]
["2017-04-01","2828-03-13",4,"117 BALALLY DR, DUNDRUM, DUBLIN 16",{"$f":"VLOOKUP(L24,Regions!A:B,2,0)","v":"E"},"Dublin",625000,"No","No","Second-Hand Dwelling house /Apartment",null,"Dublin 16"]
["2017-04-01","2828-03-13",4,"128B MERRION RD, BALLSBRIDGE, DUBLIN 4",{"$f":"VLOOKUP(L25,Regions!A:B,2,0)","v":{"$error":"#N/A"}},"Dublin",1150000,"No","No","Second-Hand Dwelling house /Apartment"]
["2017-04-01","2828-03-13",4,"129 THE LINKS, ELMPARK, MERRION RD DUBLIN 4",{"$f":"VLOOKUP(L26,Regions!A:B,2,0)","v":"W"},"Dublin",100000,"No","No","Second-Hand Dwelling house /Apartment",null,"Dublin 4"]
["2017-04-01","2828-03-13",4,"130 THE LINKS, ELMPARK, MERRION RD DUBLIN 4",{"$f":"VLOOKUP(L27,Regions!A:B,2,0)","v":"W"},"Dublin",100000,"No","No","Second-Hand Dwelling house /Apartment",null,"Dublin 4"]
["2017-04-01","2828-03-13",4,"16 YORK COURT, YORK RD, DUNLAOIGHAIRE",{"$f":"VLOOKUP(L28,Regions!A:B,2,0)","v":{"$error":"#N/A"}},"Dublin",222500,"No","No","Second-Hand Dwelling house /Apartment"]
["2017-04-01","2828-03-13",4,"18 GAZELLE LANE, TYRRELSTOWN, DUBLIN 15",{"$f":"VLOOKUP(L29,Regions!A:B,2,0)","v":"S"},"Dublin",210000,"No","No","Second-Hand Dwelling house /Apartment",null,"Dublin 15"]
["2017-04-01","2828-03-13",4,"184 LARAGHCON, LUCAN, DUBLIN",{"$f":"VLOOKUP(L30,Regions!A:B,2,0)","v":{"$error":"#N/A"}},"Dublin",735000,"No","No","Second-Hand Dwelling house /Apartment"]
["2017-04-01","2828-03-13",4,"2 KILCLARE AVENUE, JOBSTOWN, TALLAGHT",{"$f":"VLOOKUP(L31,Regions!A:B,2,0)","v":{"$error":"#N/A"}},"Dublin",140000,"No","No","Second-Hand Dwelling house /Apartment"]
["2017-04-01","2828-03-13",4,"23 OAKLANDS DR, RATHGAR, DUBLIN 6",{"$f":"VLOOKUP(L32,Regions!A:B,2,0)","v":"W"},"Dublin",915000,"No","No","Second-Hand Dwelling house /Apartment",null,"Dublin 6"]
["2017-04-01","2828-03-13",4,"26 LONGSTOWN PARK, PORTRANE, DUBLIN",{"$f":"VLOOKUP(L33,Regions!A:B,2,0)","v":{"$error":"#N/A"}},"Dublin",210000,"No","No","Second-Hand Dwelling house /Apartment"]
["2017-04-01","2828-03-13",4,"29 Dodderbrook Park, Oldcourt Road, Ballycullen",{"$f":"VLOOKUP(L34,Regions!A:B,2,0)","v":{"$error":"#N/A"}},"Dublin",405000,"No","Yes","New Dwelling house /Apartment","greater than or equal to 38 sq metres and less than 125 sq metres"]
["2017-04-01","2828-03-13",4,"31 Ballygossan Park, Golf Links Road, Skerries",{"$f":"VLOOKUP(L35,Regions!A:B,2,0)","v":{"$error":"#N/A"}},"Dublin",286343.61,"No","Yes","New Dwelling house /Apartment","greater than or equal to 38 sq metres and less than 125 sq metres"]
["2017-04-01","2828-03-13",4,"31 CHERRY ORCHARD GREEN, CHERRY ORCHARD, BALLYFERMOT DUBLIN 10",{"$f":"VLOOKUP(L36,Regions!A:B,2,0)","v":"E"},"Dublin",161000,"No","No","Second-Hand Dwelling house /Apartment",null,"Dublin 10"]
["2017-04-01","2828-03-13",4,"32 FOXBOROUGH DOWNES, LUCAN, DUBLIN",{"$f":"VLOOKUP(L37,Regions!A:B,2,0)","v":{"$error":"#N/A"}},"Dublin",258000,"No","No","Second-Hand Dwelling house /Apartment"]
["2017-04-01","2828-03-13",4,"4 LORCAN DR, SANTRY, DUBLIN 9",{"$f":"VLOOKUP(L38,Regions!A:B,2,0)","v":"W"},"Dublin",337500,"No","No","Second-Hand Dwelling house /Apartment",null,"Dublin 9"]
["2017-04-01","2828-03-13",4,"4 OTTERBROOK, WILLBROOK RD, RATHFARNHAM DUBLIN 14",{"$f":"VLOOKUP(L39,Regions!A:B,2,0)","v":"E"},"Dublin",357500,"No","No","Second-Hand Dwelling house /Apartment",null,"Dublin 14"]
["2017-04-01","2828-03-13",4,"46 GLEDSWOOD PARK, CLONSKEAGH, DUBLIN 14",{"$f":"VLOOKUP(L40,Regions!A:B,2,0)","v":"E"},"Dublin",612000,"No","No","Second-Hand Dwelling house /Apartment",null,"Dublin 14"]
["2017-04-01","2828-03-13",4,"67 MARLBOROUGH COURT, MARLBOROUGH ST, DUBLIN 1",{"$f":"VLOOKUP(L41,Regions!A:B,2,0)","v":"S"},"Dublin",206000,"No","No","Second-Hand Dwelling house /Apartment",null,"Dublin 1"]
["2017-04-01","2828-03-13",4,"70 PREMIER SQ, FINGLAS, DUBLIN 11",{"$f":"VLOOKUP(L42,Regions!A:B,2,0)","v":"E"},"Dublin",199000,"No","No","Second-Hand Dwelling house /Apartment",null,"Dublin 11"]
["2017-04-01","2828-03-13",4,"73 TAYLEURS POINT, RUSH, DUBLIN",{"$f":"VLOOKUP(L43,Regions!A:B,2,0)","v":{"$error":"#N/A"}},"Dublin",256000,"No","No","Second-Hand Dwelling house /Apartment"]
["2017-04-01","2828-03-13",4,"82 FFORSTER LAWNS LUCAN, DUBLIN",{"$f":"VLOOKUP(L44,Regions!A:B,2,0)","v":{"$error":"#N/A"}},"Dublin",310000,"No","No","Second-Hand Dwelling house /Apartment"]
["2017-04-01","2828-03-13",4,"9 WADELAI RD, GLASNEVIN, DUBLIN 11",{"$f":"VLOOKUP(L45,Regions!A:B,2,0)","v":"E"},"Dublin",355000,"No","No","Second-Hand Dwelling house /Apartment",null,"Dublin 11"]
["2017-04-01","2828-03-13",4,"92 SHANDON PARK, PHIBSBOROUGH, DUBLIN",{"$f":"VLOOKUP(L46,Regions!A:B,2,0)","v":"W"},"Dublin",450000,"No","No","Second-Hand Dwelling house /Apartment",null,"Dublin 7"]
["2017-04-01","2828-03-13",4,"APT 1, 23 LOWER LEESON ST, DUBLIN 2",{"$f":"VLOOKUP(L47,Regions!A:B,2,0)","v":"E"},"Dublin",2150000,"No","No","Second-Hand Dwelling house /Apartment",null,"Dublin 2"]
["2017-04-01","2828-03-13",4,"APT 2, 1 LOWER HATCH ST, DUBLIN 2",{"$f":"VLOOKUP(L48,Regions!A:B,2,0)","v":"E"},"Dublin",1200000,"No","No","Second-Hand Dwelling house /Apartment",null,"Dublin 2"]
["2017-04-01","2828-03-13",4,"HERBERT LANE MEWS, HERBERT LANE, REAR 66 LOWER BAGGOT ST DUBLIN 2",{"$f":"VLOOKUP(L49,Regions!A:B,2,0)","v":"E"},"Dublin",400000,"No","No","Second-Hand Dwelling house /Apartment",null,"Dublin 2"]
["2017-04-01","2828-03-13",4,"NO. 13 BELLTREE AVENUE, CLONGRIFFIN, DUBLIN 13",{"$f":"VLOOKUP(L50,Regions!A:B,2,0)","v":{"$error":"#N/A"}},"Dublin",290000,"No","Yes","New Dwelling house /Apartment","greater than or equal to 38 sq metres and less than 125 sq metres"]
["2017-05-01","2860-09-11",5,"11 STOCKINGWELL ROW, STOCKING AVE, RATHFARNHAM DUBLIN 16",{"$f":"VLOOKUP(L51,Regions!A:B,2,0)","v":"E"},"Dublin",249000,"No","No","Second-Hand Dwelling house /Apartment",null,"Dublin 16"]
["2017-05-01","2860-09-11",5,"12 LIBERTY COURT, LR CLANBRASSIL ST, DUBLIN 8",{"$f":"VLOOKUP(L52,Regions!A:B,2,0)","v":"S"},"Dublin",191000,"No","No","Second-Hand Dwelling house /Apartment",null,"Dublin 8"]
["2017-05-01","2860-09-11",5,"12 LISSADEL GROVE, MALAHIDE, DUBLIN",{"$f":"VLOOKUP(L53,Regions!A:B,2,0)","v":{"$error":"#N/A"}},"Dublin",475000,"No","No","Second-Hand Dwelling house /Apartment"]
["2017-05-01","2860-09-11",5,"12 MOUNT EAGLE DR, LEOPARDSTOWN HEIGHTS, SANDYFORD DUBLIN 18",{"$f":"VLOOKUP(L54,Regions!A:B,2,0)","v":"W"},"Dublin",440000,"No","No","Second-Hand Dwelling house /Apartment",null,"Dublin 18"]
["2017-05-01","2860-09-11",5,"123 KILLALA  ROAD, CABRA, DUBLIN 7",{"$f":"VLOOKUP(L55,Regions!A:B,2,0)","v":"W"},"Dublin",170000,"No","No","Second-Hand Dwelling house /Apartment",null,"Dublin 7"]
["2017-05-01","2860-09-11",5,"129 CHERRY AVE, RIVERVALLEY, SWORDS",{"$f":"VLOOKUP(L56,Regions!A:B,2,0)","v":{"$error":"#N/A"}},"Dublin",261000,"No","No","Second-Hand Dwelling house /Apartment"]
["2017-05-01","2860-09-11",5,"13 ALLENDALE ELMS, CLONSILLA, DUBLIN 15",{"$f":"VLOOKUP(L57,Regions!A:B,2,0)","v":"S"},"Dublin",214000,"No","No","Second-Hand Dwelling house /Apartment",null,"Dublin 15"]
["2017-05-01","2860-09-11",5,"13 THE RISE, GLASNEVIN, DUBLIN 9",{"$f":"VLOOKUP(L58,Regions!A:B,2,0)","v":"W"},"Dublin",560000,"No","No","Second-Hand Dwelling house /Apartment",null,"Dublin 9"]
["2017-05-01","2860-09-11",5,"18 Tullyhall Close, Lucan",{"$f":"VLOOKUP(L59,Regions!A:B,2,0)","v":{"$error":"#N/A"}},"Dublin",262114.54,"No","Yes","New Dwelling house /Apartment","greater than or equal to 38 sq metres and less than 125 sq metres"]
["2017-05-01","2860-09-11",5,"2 SYCAMORE HOUSE, EATON WOOD SQ, SHANKILL",{"$f":"VLOOKUP(L60,Regions!A:B,2,0)","v":"W"},"Dublin",170000,"No","No","Second-Hand Dwelling house /Apartment",null,"Dublin 18"]
["2017-05-01","2860-09-11",5,"2 THE CRESCENT, GRIFFITH DOWNS, DRUMCONDRA DUBLIN 9",{"$f":"VLOOKUP(L61,Regions!A:B,2,0)","v":"W"},"Dublin",575000,"No","No","Second-Hand Dwelling house /Apartment",null,"Dublin 9"]
["2017-05-01","2860-09-11",5,"28 MAXWELL ST, THE COOMBE, DUBLIN 8",{"$f":"VLOOKUP(L62,Regions!A:B,2,0)","v":"S"},"Dublin",184500,"No","No","Second-Hand Dwelling house /Apartment",null,"Dublin 8"]
["2017-05-01","2860-09-11",5,"3 Dodderbrook Park, OLDCOURT ROAD, BALLYCULLEN",{"$f":"VLOOKUP(L63,Regions!A:B,2,0)","v":"E"},"Dublin",307885.46000000002,"No","Yes","New Dwelling house /Apartment","greater than or equal to 125 sq metres","Dublin 24"]
["2017-05-01","2860-09-11",5,"3 USHER PARK, KNOCKSEDAN DEMENSE, SWORDS",{"$f":"VLOOKUP(L64,Regions!A:B,2,0)","v":{"$error":"#N/A"}},"Dublin",436123.35,"No","Yes","New Dwelling house /Apartment","greater than or equal to 38 sq metres and less than 125 sq metres"]
["2017-05-01","2860-09-11",5,"30DEANSTOWN PARK, FINGLAS WEST, DUBLIN 11",{"$f":"VLOOKUP(L65,Regions!A:B,2,0)","v":"E"},"Dublin",180000,"No","No","Second-Hand Dwelling house /Apartment",null,"Dublin 11"]
["2017-05-01","2860-09-11",5,"348 SOUTH CIRCULAR ROAD, DUBLIN 8",{"$f":"VLOOKUP(L66,Regions!A:B,2,0)","v":{"$error":"#N/A"}},"Dublin",435000,"No","No","Second-Hand Dwelling house /Apartment"]
["2017-05-01",{"$f":"DATE(RIGHT(A67,4),MID(A67,4,2),LEFT(A67,2))","v":"2860-09-11"},{"$f":"IF(ISERROR(MONTH(A67)),MONTH(B67),MONTH(A67))","v":5},"35 FORBES QUAY, SIR GEORGE ROGERSONS QUAY, GRAND CANAL SQ",{"$f":"VLOOKUP(L67,Regions!A:B,2,0)","v":"E"},"Dublin",453000,"No","No","Second-Hand Dwelling house /Apartment",null,"Dublin 2"]
["2017-05-01","2860-09-11",5,"369 The Oak, Trimbleston, Goatstown Road",{"$f":"VLOOKUP(L68,Regions!A:B,2,0)","v":"E"},"Dublin",352423,"No","Yes","New Dwelling house /Apartment","greater than or equal to 38 sq metres and less than 125 sq metres","Dublin 14"]
["2017-05-01","2860-09-11",5,"49 THE PARKLANDS, CASTLESIDE DR, DUBLIN 14",{"$f":"VLOOKUP(L69,Regions!A:B,2,0)","v":"E"},"Dublin",350000,"No","No","Second-Hand Dwelling house /Apartment",null,"Dublin 14"]
["2017-05-01","2860-09-11",5,"50 DOLLYMOUNT AVENUE, CLONTARF, DUBLIN 3",{"$f":"VLOOKUP(L70,Regions!A:B,2,0)","v":"N"},"Dublin",450000,"No","No","Second-Hand Dwelling house /Apartment",null,"Dublin 3"]
["2017-05-01","2860-09-11",5,"64A SOUTH HILL, DARTRY, DUBLIN 6",{"$f":"VLOOKUP(L71,Regions!A:B,2,0)","v":"W"},"Dublin",1050000,"No","No","Second-Hand Dwelling house /Apartment",null,"Dublin 6"]
["2017-05-01","2860-09-11",5,"65 WILFORD COURT, CORKE ABBEY AVE, BRAY",{"$f":"VLOOKUP(L72,Regions!A:B,2,0)","v":{"$error":"#N/A"}},"Dublin",320000,"No","No","Second-Hand Dwelling house /Apartment"]
["2017-05-01","2860-09-11",5,"8 Dodderbrook Park, Ballycullen",{"$f":"VLOOKUP(L73,Regions!A:B,2,0)","v":"E"},"Dublin",285859.03000000003,"No","Yes","New Dwelling house /Apartment","greater than or equal to 125 sq metres","Dublin 24"]
["2017-05-01","2860-09-11",5,"81 ROEBUCK CASTLE, CLONSKEAGH, DUBLIN 14",{"$f":"VLOOKUP(L74,Regions!A:B,2,0)","v":"E"},"Dublin",466000,"No","No","Second-Hand Dwelling house /Apartment",null,"Dublin 14"]
["2017-05-01","2860-09-11",5,"89 GLEANN NA RI, VALLEY AVE, CABINTEELY DUBLIN 18",{"$f":"VLOOKUP(L75,Regions!A:B,2,0)","v":"W"},"Dublin",243000,"No","No","Second-Hand Dwelling house /Apartment",null,"Dublin 18"]
["2017-05-01","2860-09-11",5,"9 KNOCKLYON CLOSE, KNOCKLYON WOODS, DUBLIN 16",{"$f":"VLOOKUP(L76,Regions!A:B,2,0)","v":"E"},"Dublin",456000,"No","No","Second-Hand Dwelling house /Apartment",null,"Dublin 16"]
["2017-05-01","2860-09-11",5,"APT 1, BLK 6 CLARION QUAY APTS, EXCISE WALK DUBLIN 1",{"$f":"VLOOKUP(L77,Regions!A:B,2,0)","v":"S"},"Dublin",345000,"No","No","Second-Hand Dwelling house /Apartment",null,"Dublin 1"]
["2017-05-01","2860-09-11",5,"APT 6 BELLGREE HALL, OFF BELLGREE RISE, TYRRELSTOWN DUBLIN 15",{"$f":"VLOOKUP(L78,Regions!A:B,2,0)","v":"S"},"Dublin",165000,"No","No","Second-Hand Dwelling house /Apartment",null,"Dublin 15"]
["2017-05-01","2860-09-11",5,"APT 8, KELSTON HALL, LEOPARDSTOWN RD DUBLIN 18",{"$f":"VLOOKUP(L79,Regions!A:B,2,0)","v":"W"},"Dublin",392000,"No","No","Second-Hand Dwelling house /Apartment",null,"Dublin 18"]
["2017-05-01","2860-09-11",5,"No. 5, St Davids Court, Artane",{"$f":"VLOOKUP(L80,Regions!A:B,2,0)","v":"S"},"Dublin",444933.92,"No","Yes","New Dwelling house /Apartment","greater than or equal to 38 sq metres and less than 125 sq metres","Dublin 5"]
["2017-05-01","2860-09-11",5,"RENRAW, 39 WARNERS LANE, DUBLIN 6",{"$f":"VLOOKUP(L81,Regions!A:B,2,0)","v":"W"},"Dublin",990000,"No","No","Second-Hand Dwelling house /Apartment",null,"Dublin 6"]
["2017-05-01","2860-09-11",5,"THE LODGE, MOUNT PROSPECT AVENUE, CLONTARF",{"$f":"VLOOKUP(L82,Regions!A:B,2,0)","v":{"$error":"#N/A"}},"Dublin",940000,"No","No","Second-Hand Dwelling house /Apartment"]
["2017-06-01","2894-04-11",6,"1 GULLISTAN TERRACE, RATHMINES, DUBLIN 6",{"$f":"VLOOKUP(L83,Regions!A:B,2,0)","v":"W"},"Dublin",905000,"No","No","Second-Hand Dwelling house /Apartment",null,"Dublin 6"]
["2017-06-01","2894-04-11",6,"1 UPPER MAIN ST, RUSH, MAIN ST",{"$f":"VLOOKUP(L84,Regions!A:B,2,0)","v":{"$error":"#N/A"}},"Dublin",380000,"No","No","Second-Hand Dwelling house /Apartment"]
["2017-06-01","2894-04-11",6,"104 BELLGREE BLVD, TYRRELSTOWN, DUBLIN 15",{"$f":"VLOOKUP(L85,Regions!A:B,2,0)","v":"S"},"Dublin",214000,"No","No","Second-Hand Dwelling house /Apartment",null,"Dublin 15"]
["2017-06-01","2894-04-11",6,"10A MOATFIELD RD, COOLOCK, DUBLIN 5",{"$f":"VLOOKUP(L86,Regions!A:B,2,0)","v":"S"},"Dublin",285000,"No","No","Second-Hand Dwelling house /Apartment",null,"Dublin 5"]
["2017-06-01","2894-04-11",6,"11 LISSADEL WOOD, MALAHIDE, DUBLIN",{"$f":"VLOOKUP(L87,Regions!A:B,2,0)","v":{"$error":"#N/A"}},"Dublin",260000,"No","No","Second-Hand Dwelling house /Apartment"]
["2017-06-01","2894-04-11",6,"117 KNOCKMAREE, ST LAWRENCE RD, CHAPELIZOD DUBLIN 20",{"$f":"VLOOKUP(L88,Regions!A:B,2,0)","v":"N"},"Dublin",237000,"No","No","Second-Hand Dwelling house /Apartment",null,"Dublin 20"]
["2017-06-01","2894-04-11",6,"118 PORTERSFIELD, CLONSILLA RD, DUBLIN 15",{"$f":"VLOOKUP(L89,Regions!A:B,2,0)","v":"S"},"Dublin",292500,"No","No","Second-Hand Dwelling house /Apartment",null,"Dublin 15"]
["2017-06-01","2894-04-11",6,"12 KILAKEE CLOSE, GREEN HILLS RD, DUBLIN 12",{"$f":"VLOOKUP(L90,Regions!A:B,2,0)","v":"N"},"Dublin",330000,"No","No","Second-Hand Dwelling house /Apartment",null,"Dublin 12"]
["2017-06-01","2894-04-11",6,"120 MERRION RD, DUBLIN 4, DUBLIN",{"$f":"VLOOKUP(L91,Regions!A:B,2,0)","v":"W"},"Dublin",2325000,"No","No","Second-Hand Dwelling house /Apartment",null,"Dublin 4"]
["2017-06-01","2894-04-11",6,"121 DUNMORE LAWN, BALLYMOUNT, DUBLIN 24",{"$f":"VLOOKUP(L92,Regions!A:B,2,0)","v":"E"},"Dublin",301000,"No","No","Second-Hand Dwelling house /Apartment",null,"Dublin 24"]
["2017-06-01","2894-04-11",6,"13 BAYVIEW AVE, NORTH STRAND, DUBLIN 3",{"$f":"VLOOKUP(L93,Regions!A:B,2,0)","v":"N"},"Dublin",235000,"No","No","Second-Hand Dwelling house /Apartment",null,"Dublin 3"]
["2017-06-01","2894-04-11",6,"140 CARRIGMORE CRESCENT, CITYWEST WEST, SAGGART",{"$f":"VLOOKUP(L94,Regions!A:B,2,0)","v":"E"},"Dublin",163000,"No","No","Second-Hand Dwelling house /Apartment",null,"Dublin 24"]
["2017-06-01","2894-04-11",6,"15 SILVER PINES, BREWERY RD, STILLORGAN",{"$f":"VLOOKUP(L95,Regions!A:B,2,0)","v":{"$error":"#N/A"}},"Dublin",540000,"No","No","Second-Hand Dwelling house /Apartment"]
["2017-06-01","2894-04-11",6,"19A WHEATFIELD CRESENT, CLONDALKIN, DUBLIN 22",{"$f":"VLOOKUP(L96,Regions!A:B,2,0)","v":"E"},"Dublin",136000,"No","No","Second-Hand Dwelling house /Apartment",null,"Dublin 22"]
["2017-06-01","2894-04-11",6,"20 waterside lawn, swords road, malahide",{"$f":"VLOOKUP(L97,Regions!A:B,2,0)","v":{"$error":"#N/A"}},"Dublin",300235,"No","Yes","New Dwelling house /Apartment","greater than or equal to 125 sq metres"]
["2017-06-01","2894-04-11",6,"22 BERTRAM COURT, CHRISTCHURCH, DUBLIN 8",{"$f":"VLOOKUP(L98,Regions!A:B,2,0)","v":"S"},"Dublin",240000,"No","No","Second-Hand Dwelling house /Apartment",null,"Dublin 15"]
["2017-06-01","2894-04-11",6,"23 Dodderbrook Park, Oldcourt Road, Ballycullen",{"$f":"VLOOKUP(L99,Regions!A:B,2,0)","v":{"$error":"#N/A"}},"Dublin",390000,"No","Yes","New Dwelling house /Apartment","greater than or equal to 125 sq metres"]
["2017-06-01","2894-04-11",6,"28 CLUNY GROVE, KILLINEY, CO DUBLIN",{"$f":"VLOOKUP(L100,Regions!A:B,2,0)","v":{"$error":"#N/A"}},"Dublin",283332,"Yes","No","Second-Hand Dwelling house /Apartment"]
["2017-06-01","2894-04-11",6,"28 MARETIMO GARDENS EAST, BLACKROCK, DUBLIN",{"$f":"VLOOKUP(L101,Regions!A:B,2,0)","v":{"$error":"#N/A"}},"Dublin",870000,"No","No","Second-Hand Dwelling house /Apartment"]
["2017-06-01","2894-04-11",6,"29 AUBURN ST, BROADSTONE, PHIBSBORO",{"$f":"VLOOKUP(L102,Regions!A:B,2,0)","v":"W"},"Dublin",346000,"No","No","Second-Hand Dwelling house /Apartment",null,"Dublin 7"]
["2017-06-01","2894-04-11",6,"29 GLENGARRIFFE PARADE, NORTH CIRCULAR RD, DUBLIN 7",{"$f":"VLOOKUP(L103,Regions!A:B,2,0)","v":"W"},"Dublin",335000,"No","No","Second-Hand Dwelling house /Apartment",null,"Dublin 7"]
["2017-06-01","2894-04-11",6,"305C THE CRESCENT, BELGARD HEIGHTS, DUBLIN 24",{"$f":"VLOOKUP(L104,Regions!A:B,2,0)","v":"E"},"Dublin",365000,"No","No","Second-Hand Dwelling house /Apartment",null,"Dublin 24"]
["2017-06-01","2894-04-11",6,"32 OAKLANDS TERRACE, RATHGAR, DUBLIN 6",{"$f":"VLOOKUP(L105,Regions!A:B,2,0)","v":"W"},"Dublin",647000,"No","No","Second-Hand Dwelling house /Apartment",null,"Dublin 6"]
["2017-06-01","2894-04-11",6,"32 PHILIPSBURGH AVE, FAIRVIEW, DUBLIN 3",{"$f":"VLOOKUP(L106,Regions!A:B,2,0)","v":"N"},"Dublin",400000,"No","No","Second-Hand Dwelling house /Apartment",null,"Dublin 3"]
["2017-06-01","2894-04-11",6,"34 CLANAWLEY RD, KILLESTER, DUBLIN 5",{"$f":"VLOOKUP(L107,Regions!A:B,2,0)","v":"S"},"Dublin",315000,"No","No","Second-Hand Dwelling house /Apartment",null,"Dublin 5"]
["2017-06-01","2894-04-11",6,"36 CASTLELAWNS, SANDYFORD DUBLIN 18, DUBLIN",{"$f":"VLOOKUP(L108,Regions!A:B,2,0)","v":"W"},"Dublin",282000,"No","No","Second-Hand Dwelling house /Apartment",null,"Dublin 18"]
["2017-06-01","2894-04-11",6,"47 CALEDON RD, EAST WALL, DUBLIN 3",{"$f":"VLOOKUP(L109,Regions!A:B,2,0)","v":"N"},"Dublin",240000,"No","No","Second-Hand Dwelling house /Apartment",null,"Dublin 3"]
["2017-06-01","2894-04-11",6,"5 TREES RD, MOUNT MERRION, DUBLIN",{"$f":"VLOOKUP(L110,Regions!A:B,2,0)","v":{"$error":"#N/A"}},"Dublin",930000,"No","No","Second-Hand Dwelling house /Apartment"]
["2017-06-01","2894-04-11",6,"50 diswellstown way, castleknock, dublin 15",{"$f":"VLOOKUP(L111,Regions!A:B,2,0)","v":"S"},"Dublin",405286,"No","Yes","New Dwelling house /Apartment","greater than or equal to 125 sq metres","Dublin 15"]
["2017-06-01","2894-04-11",6,"56 CRUMLIN RD, CRUMLIN, DUBLIN 12",{"$f":"VLOOKUP(L112,Regions!A:B,2,0)","v":"N"},"Dublin",357692.5,"No","No","Second-Hand Dwelling house /Apartment",null,"Dublin 12"]
["2017-06-01","2894-04-11",6,"59 SUTTON PARK, SUTTON, DUBLIN 13",{"$f":"VLOOKUP(L113,Regions!A:B,2,0)","v":"S"},"Dublin",565000,"No","No","Second-Hand Dwelling house /Apartment",null,"Dublin 13"]
["2017-06-01","2894-04-11",6,"6 Elder Heath Meadow, Kiltipper, Tallaght",{"$f":"VLOOKUP(L114,Regions!A:B,2,0)","v":"E"},"Dublin",251102,"No","Yes","New Dwelling house /Apartment","greater than or equal to 38 sq metres and less than 125 sq metres","Dublin 24"]
["2017-06-01","2894-04-11",6,"63 LEVMOSS AVENUE, LEVMOSS PARK, THE GALLOPS",{"$f":"VLOOKUP(L115,Regions!A:B,2,0)","v":"W"},"Dublin",405286,"No","Yes","New Dwelling house /Apartment","greater than or equal to 38 sq metres and less than 125 sq metres","Dublin 18"]
["2017-06-01","2894-04-11",6,"69 PECKS LANE, CASTLEKNOCK, DUBLIN 15",{"$f":"VLOOKUP(L116,Regions!A:B,2,0)","v":"S"},"Dublin",450000,"No","No","Second-Hand Dwelling house /Apartment",null,"Dublin 15"]
["2017-06-01","2894-04-11",6,"74 ELMCASTLE PARK, KILNAMANAGH, DUBLIN 24",{"$f":"VLOOKUP(L117,Regions!A:B,2,0)","v":"E"},"Dublin",190000,"Yes","No","Second-Hand Dwelling house /Apartment",null,"Dublin 24"]
["2017-06-01","2894-04-11",6,"8 CASTLEFIELD ORCHARD, CASTELFIELD MANOR, DUBLIN 16",{"$f":"VLOOKUP(L118,Regions!A:B,2,0)","v":"E"},"Dublin",310000,"No","No","Second-Hand Dwelling house /Apartment",null,"Dublin 16"]
["2017-06-01","2894-04-11",6,"91 FITZROY AVE, DRUMCONDRA, DUBLIN 3",{"$f":"VLOOKUP(L119,Regions!A:B,2,0)","v":"N"},"Dublin",290000,"No","No","Second-Hand Dwelling house /Apartment",null,"Dublin 3"]
["2017-06-01","2894-04-11",6,"97 SHANTALLA RD, WHITEHALL, DUBLIN 9",{"$f":"VLOOKUP(L120,Regions!A:B,2,0)","v":"W"},"Dublin",335000,"No","No","Second-Hand Dwelling house /Apartment",null,"Dublin 9"]
["2017-06-01","2894-04-11",6,"APT 37, ST PATRICKS COURT, CLANBRASSIL ST DUBLIN 8",{"$f":"VLOOKUP(L121,Regions!A:B,2,0)","v":"S"},"Dublin",365000,"No","No","Second-Hand Dwelling house /Apartment",null,"Dublin 8"]
["2017-06-01","2894-04-11",6,"APT.1 - THE BAKERY, UNIT 11 TRADE CENTRE, GEORGES HILL BALBRIGGAN",{"$f":"VLOOKUP(L122,Regions!A:B,2,0)","v":{"$error":"#N/A"}},"Dublin",220000,"No","No","Second-Hand Dwelling house /Apartment"]
["2017-06-01","2894-04-11",6,"EBENEZER, SORRENTO RD, DALKEY",{"$f":"VLOOKUP(L123,Regions!A:B,2,0)","v":{"$error":"#N/A"}},"Dublin",655000,"No","No","Second-Hand Dwelling house /Apartment"]
["2017-09-01","2985-08-11",9,"1 Brock Hall, Brock'sLane, Dun Laoghaire",{"$f":"VLOOKUP(L124,Regions!A:B,2,0)","v":{"$error":"#N/A"}},"Dublin",123348.02,"No","Yes","New Dwelling house /Apartment","less than 38 sq metres"]
["2017-09-01","2985-08-11",9,"15 SEAMOUNT HEIGHTS, MALAHIDE, DUBLIN",{"$f":"VLOOKUP(L125,Regions!A:B,2,0)","v":{"$error":"#N/A"}},"Dublin",610000,"No","No","Second-Hand Dwelling house /Apartment"]
["2017-09-01","2985-08-11",9,"16 ROSMEEN PARK, DUN LAOGHAIRE, DUBLIN",{"$f":"VLOOKUP(L126,Regions!A:B,2,0)","v":{"$error":"#N/A"}},"Dublin",850569,"No","No","Second-Hand Dwelling house /Apartment"]
["2017-09-01","2985-08-11",9,"17 BUNRATTY AVE, COOLOCK, DUBLIN 17",{"$f":"VLOOKUP(L127,Regions!A:B,2,0)","v":"N"},"Dublin",230000,"No","No","Second-Hand Dwelling house /Apartment",null,"Dublin 17"]
["2017-09-01","2985-08-11",9,"1a Brock Hall, Brock Lane, Dun Laoghaire",{"$f":"VLOOKUP(L128,Regions!A:B,2,0)","v":{"$error":"#N/A"}},"Dublin",123348.02,"No","Yes","New Dwelling house /Apartment","less than 38 sq metres"]
["2017-09-01","2985-08-11",9,"2 ORBY DR, THE GALLOPS, LEOPARDSTOWN DUBLIN 18",{"$f":"VLOOKUP(L129,Regions!A:B,2,0)","v":"W"},"Dublin",580000,"No","No","Second-Hand Dwelling house /Apartment",null,"Dublin 18"]
["2017-09-01","2985-08-11",9,"28 WESTON DR, WESTON PARK, LUCAN",{"$f":"VLOOKUP(L130,Regions!A:B,2,0)","v":{"$error":"#N/A"}},"Dublin",445000,"No","No","Second-Hand Dwelling house /Apartment"]
["2017-09-01",{"$f":"DATE(RIGHT(A131,4),MID(A131,4,2),LEFT(A131,2))","v":"2985-08-11"},{"$f":"IF(ISERROR(MONTH(A131)),MONTH(B131),MONTH(A131))","v":9},"3 PARK AVE, STREAMSTOWN LANE, MALAHIDE",{"$f":"VLOOKUP(L131,Regions!A:B,2,0)","v":{"$error":"#N/A"}},"Dublin",900000,"No","No","Second-Hand Dwelling house /Apartment"]
["2017-09-01","2985-08-11",9,"366 CASHEL RD, KIMMAGE, DUBLIN 12",{"$f":"VLOOKUP(L132,Regions!A:B,2,0)","v":"N"},"Dublin",182000,"No","No","Second-Hand Dwelling house /Apartment",null,"Dublin 12"]
["2017-09-01","2985-08-11",9,"4 KINGSTON HALL, HAROLDS RD, SANDYFORD DUBLIN 18",{"$f":"VLOOKUP(L133,Regions!A:B,2,0)","v":"W"},"Dublin",290000,"No","No","Second-Hand Dwelling house /Apartment",null,"Dublin 18"]
["2017-09-01","2985-08-11",9,"49 PROSPECT AVE, RATHFARNHAM, DUBLIN 16",{"$f":"VLOOKUP(L134,Regions!A:B,2,0)","v":"E"},"Dublin",460000,"No","No","Second-Hand Dwelling house /Apartment",null,"Dublin 16"]
["2017-09-01","2985-08-11",9,"53 THE CLAYTON, GASWORKS, BARROW STREET",{"$f":"VLOOKUP(L135,Regions!A:B,2,0)","v":{"$error":"#N/A"}},"Dublin",305000,"No","No","Second-Hand Dwelling house /Apartment"]
["2017-09-01","2985-08-11",9,"53 THE PARK, HOLLYSTOWN, DUBLIN 15",{"$f":"VLOOKUP(L136,Regions!A:B,2,0)","v":"S"},"Dublin",390000,"No","No","Second-Hand Dwelling house /Apartment",null,"Dublin 15"]
["2017-09-01","2985-08-11",9,"6 GEORGES PLACE, DUN LAOGHAIRE, DUBLIN",{"$f":"VLOOKUP(L137,Regions!A:B,2,0)","v":{"$error":"#N/A"}},"Dublin",470000,"No","No","Second-Hand Dwelling house /Apartment"]
["2017-09-01","2985-08-11",9,"61 MAPLEWOOD PARK, SPRINGFIELD, TALLAGHT DUBLIN 24",{"$f":"VLOOKUP(L138,Regions!A:B,2,0)","v":"E"},"Dublin",188500,"No","No","Second-Hand Dwelling house /Apartment",null,"Dublin 24"]
["2017-09-01","2985-08-11",9,"7 CASTLEKNOCK BROOK, CASTLEKNOCK, DUBLIN 15",{"$f":"VLOOKUP(L139,Regions!A:B,2,0)","v":"S"},"Dublin",310000,"No","No","Second-Hand Dwelling house /Apartment",null,"Dublin 15"]
["2017-09-01","2985-08-11",9,"7 HANSTED WAY, FINNSTOWN, LUCAN",{"$f":"VLOOKUP(L140,Regions!A:B,2,0)","v":{"$error":"#N/A"}},"Dublin",255000,"No","No","Second-Hand Dwelling house /Apartment"]
["2017-09-01","2985-08-11",9,"71 BEAUMONT RD, BEAUMONT, DUBLIN 9",{"$f":"VLOOKUP(L141,Regions!A:B,2,0)","v":"W"},"Dublin",405000,"No","No","Second-Hand Dwelling house /Apartment",null,"Dublin 9"]
["2017-09-01","2985-08-11",9,"79 COLLINS AVE, DUBLIN 9, DUBLIN",{"$f":"VLOOKUP(L142,Regions!A:B,2,0)","v":"W"},"Dublin",375000,"No","No","Second-Hand Dwelling house /Apartment",null,"Dublin 9"]
["2017-09-01","2985-08-11",9,"82 PORTMARNOCK DRIVE, PORTMARNOCK, CO DUBLIN",{"$f":"VLOOKUP(L143,Regions!A:B,2,0)","v":"S"},"Dublin",450000,"No","No","Second-Hand Dwelling house /Apartment",null,"Dublin 13"]
["2017-09-01","2985-08-11",9,"9 OLNEY CRESCENT, TERENURE, DUBLIN 6W",{"$f":"VLOOKUP(L144,Regions!A:B,2,0)","v":{"$error":"#N/A"}},"Dublin",680000,"No","No","Second-Hand Dwelling house /Apartment"]
["2017-09-01","2985-08-11",9,"99 FERNLEIGH DR, RIVERWOOD, CASTLEKNOCK DUBLIN 15",{"$f":"VLOOKUP(L145,Regions!A:B,2,0)","v":"S"},"Dublin",160000,"No","No","Second-Hand Dwelling house /Apartment",null,"Dublin 15"]
["2017-09-01","2985-08-11",9,"APT 8, ROEBUCK LAWN, CLONSKEAGH DUBLIN 14",{"$f":"VLOOKUP(L146,Regions!A:B,2,0)","v":"E"},"Dublin",282000,"No","No","Second-Hand Dwelling house /Apartment",null,"Dublin 14"]
["2017-09-01","2985-08-11",9,"CRANMER LODGE, 26A CRANMER LANE, BALLSBRIDGE DUBLIN 4",{"$f":"VLOOKUP(L147,Regions!A:B,2,0)","v":"W"},"Dublin",650000,"No","No","Second-Hand Dwelling house /Apartment",null,"Dublin 4"]
["2017-09-01","2985-08-11",9,"HILLSIDE, WESTMINSTER RD, DUBLIN 18",{"$f":"VLOOKUP(L148,Regions!A:B,2,0)","v":"W"},"Dublin",1800000,"No","No","Second-Hand Dwelling house /Apartment",null,"Dublin 18"]
["2017-09-01","2985-08-11",9,"SPICERS MILL, BALBRIGGAN, DUBLIN",{"$f":"VLOOKUP(L149,Regions!A:B,2,0)","v":{"$error":"#N/A"}},"Dublin",6105726.7999999998,"No","No","Second-Hand Dwelling house /Apartment"]
["2017-10-01","3009-10-13",10,"1 BARNACOILLE PARK, DALKEY, DUBLIN",{"$f":"VLOOKUP(L150,Regions!A:B,2,0)","v":{"$error":"#N/A"}},"Dublin",1325000,"No","No","Second-Hand Dwelling house /Apartment"]
["2017-10-01","3009-10-13",10,"11ECHLIN COURT, RUSH, DUBLIN",{"$f":"VLOOKUP(L151,Regions!A:B,2,0)","v":{"$error":"#N/A"}},"Dublin",260000,"No","No","Second-Hand Dwelling house /Apartment"]
["2017-10-01","3009-10-13",10,"12 PARK VILLAS, CASTLEKNOCK, DUBLIN 15",{"$f":"VLOOKUP(L152,Regions!A:B,2,0)","v":"S"},"Dublin",545000,"No","No","Second-Hand Dwelling house /Apartment",null,"Dublin 15"]
["2017-10-01","3009-10-13",10,"137 KEEPER RD, DRIMNAGH, DUBLIN 12",{"$f":"VLOOKUP(L153,Regions!A:B,2,0)","v":"N"},"Dublin",230000,"No","No","Second-Hand Dwelling house /Apartment",null,"Dublin 12"]
["2017-10-01","3009-10-13",10,"13A OLDCOURT RD, FIRHOUSE, DUBLIN 24",{"$f":"VLOOKUP(L154,Regions!A:B,2,0)","v":"E"},"Dublin",248050,"No","No","Second-Hand Dwelling house /Apartment",null,"Dublin 24"]
["2017-10-01","3009-10-13",10,"17 BROOK VALE, RATHFARNHAM, DUBLIN 14",{"$f":"VLOOKUP(L155,Regions!A:B,2,0)","v":"E"},"Dublin",680000,"No","No","Second-Hand Dwelling house /Apartment",null,"Dublin 14"]
["2017-10-01","3009-10-13",10,"17 SERPENTINE AVE, BALLSBRIDGE, DUBLIN 4",{"$f":"VLOOKUP(L156,Regions!A:B,2,0)","v":"W"},"Dublin",530000,"No","No","Second-Hand Dwelling house /Apartment",null,"Dublin 4"]
["2017-10-01","3009-10-13",10,"17 SERPENTINE AVE, BALLSBRIDGE, DUBLIN 4",{"$f":"VLOOKUP(L157,Regions!A:B,2,0)","v":"W"},"Dublin",500000,"No","No","Second-Hand Dwelling house /Apartment",null,"Dublin 4"]
["2017-10-01","3009-10-13",10,"19 CAMERON SQUARE, KILMAINHAM, DUBLIN 8",{"$f":"VLOOKUP(L158,Regions!A:B,2,0)","v":"S"},"Dublin",240000,"No","No","Second-Hand Dwelling house /Apartment",null,"Dublin 8"]
["2017-10-01","3009-10-13",10,"2 PEAMOUNT ROAD, NEWCASTLE, CO DUBLIN",{"$f":"VLOOKUP(L159,Regions!A:B,2,0)","v":{"$error":"#N/A"}},"Dublin",120000,"No","No","Second-Hand Dwelling house /Apartment"]
["2017-10-01","3009-10-13",10,"23 BALLYGALL CRESENT, FINGLAS EAST, DUBLIN 11",{"$f":"VLOOKUP(L160,Regions!A:B,2,0)","v":{"$error":"#N/A"}},"Dublin",210000,"No","No","Second-Hand Dwelling house /Apartment"]
["2017-10-01","3009-10-13",10,"25 LANESBOROUGH VIEW, CHARLESTOWN, FINGLAS DUBLIN 11",{"$f":"VLOOKUP(L161,Regions!A:B,2,0)","v":"E"},"Dublin",243000,"No","No","Second-Hand Dwelling house /Apartment",null,"Dublin 11"]
["2017-10-01","3009-10-13",10,"25 SEAFIELD RD, THE GABLES, DUBLIN 3",{"$f":"VLOOKUP(L162,Regions!A:B,2,0)","v":"N"},"Dublin",1300000,"No","No","Second-Hand Dwelling house /Apartment",null,"Dublin 3"]
["2017-10-01","3009-10-13",10,"25 THE VIEW, ROBSWALL, MALAHIDE",{"$f":"VLOOKUP(L163,Regions!A:B,2,0)","v":{"$error":"#N/A"}},"Dublin",650000,"No","No","Second-Hand Dwelling house /Apartment"]
["2017-10-01","3009-10-13",10,"266 SUNDRIVE RD, DUBLIN 12, DUBLIN",{"$f":"VLOOKUP(L164,Regions!A:B,2,0)","v":"N"},"Dublin",340000,"No","No","Second-Hand Dwelling house /Apartment",null,"Dublin 12"]
["2017-10-01","3009-10-13",10,"266 WYCKHAM POINT, DUNDRUM, DUBLIN 14",{"$f":"VLOOKUP(L165,Regions!A:B,2,0)","v":"E"},"Dublin",341000,"No","No","Second-Hand Dwelling house /Apartment",null,"Dublin 16"]
["2017-10-01","3009-10-13",10,"27 Belarmine Grove, Belarmine Woods, Stepaside",{"$f":"VLOOKUP(L166,Regions!A:B,2,0)","v":{"$error":"#N/A"}},"Dublin",419525,"No","Yes","New Dwelling house /Apartment","greater than or equal to 38 sq metres and less than 125 sq metres"]
["2017-10-01","3009-10-13",10,"29 RIVERWOOD CHASE, CASTLEKNOCK, DUBLIN 15",{"$f":"VLOOKUP(L167,Regions!A:B,2,0)","v":"S"},"Dublin",360000,"No","No","Second-Hand Dwelling house /Apartment",null,"Dublin 15"]
["2017-10-01","3009-10-13",10,"3 THORNFIELD SQ, WATERY LANE, CLONDALKIN DUBLIN 22",{"$f":"VLOOKUP(L168,Regions!A:B,2,0)","v":"E"},"Dublin",140000,"No","No","Second-Hand Dwelling house /Apartment",null,"Dublin 22"]
["2017-10-01","3009-10-13",10,"337 The Oak, Trimbleston, Goatstown Road",{"$f":"VLOOKUP(L169,Regions!A:B,2,0)","v":"E"},"Dublin",484581.49,"No","Yes","New Dwelling house /Apartment","greater than or equal to 38 sq metres and less than 125 sq metres","Dublin 14"]
["2017-10-01","3009-10-13",10,"34 MERRION STRAND, STRAND RD, SANDYMOUNT",{"$f":"VLOOKUP(L170,Regions!A:B,2,0)","v":"W"},"Dublin",436000,"No","No","Second-Hand Dwelling house /Apartment",null,"Dublin 4"]
["2017-10-01","3009-10-13",10,"35 EMMORVILLE AVE, SOUTH CIRCULAR RD, DUBLIN 8",{"$f":"VLOOKUP(L171,Regions!A:B,2,0)","v":"S"},"Dublin",675000,"No","No","Second-Hand Dwelling house /Apartment",null,"Dublin 8"]
["2017-10-01","3009-10-13",10,"4 OLD RECTORY PARK, TANEY RD, DUNDRUM DUBLIN 14",{"$f":"VLOOKUP(L172,Regions!A:B,2,0)","v":"E"},"Dublin",544500,"No","No","Second-Hand Dwelling house /Apartment",null,"Dublin 14"]
["2017-10-01","3009-10-13",10,"40 LES BUISSONNETS, FRASCATI ROAD, BLACKROCK",{"$f":"VLOOKUP(L173,Regions!A:B,2,0)","v":{"$error":"#N/A"}},"Dublin",325000,"No","No","Second-Hand Dwelling house /Apartment"]
["2017-10-01","3009-10-13",10,"47 CLAREMONT CRESCENT, GLASNEVIN, DUBLIN 9",{"$f":"VLOOKUP(L174,Regions!A:B,2,0)","v":"E"},"Dublin",372500,"No","No","Second-Hand Dwelling house /Apartment",null,"Dublin 11"]
["2017-10-01","3009-10-13",10,"53 MARGUERITE ROAD, GLASNEVIN, DUBLIN 9",{"$f":"VLOOKUP(L175,Regions!A:B,2,0)","v":"W"},"Dublin",600000,"No","No","Second-Hand Dwelling house /Apartment",null,"Dublin 9"]
["2017-10-01","3009-10-13",10,"55 DORSET SQUARE, DUBLIN 1",{"$f":"VLOOKUP(L176,Regions!A:B,2,0)","v":{"$error":"#N/A"}},"Dublin",125000,"Yes","No","Second-Hand Dwelling house /Apartment"]
["2017-10-01","3009-10-13",10,"6 KILLANE RD, EAST WALL, DUBLIN 3",{"$f":"VLOOKUP(L177,Regions!A:B,2,0)","v":"N"},"Dublin",265000,"No","No","Second-Hand Dwelling house /Apartment",null,"Dublin 3"]
["2017-10-01","3009-10-13",10,"61 62 THE PAVILLION, MARINE RD, DUN LAOGHAIRE",{"$f":"VLOOKUP(L178,Regions!A:B,2,0)","v":{"$error":"#N/A"}},"Dublin",815000,"No","No","Second-Hand Dwelling house /Apartment"]
["2017-10-01","3009-10-13",10,"77 BEALING BLVD, TYRRELSTOWN, DUBLIN 15",{"$f":"VLOOKUP(L179,Regions!A:B,2,0)","v":"S"},"Dublin",235000,"No","No","Second-Hand Dwelling house /Apartment",null,"Dublin 15"]
["2017-10-01","3009-10-13",10,"86 CRANFORD COURT, STILLORGAN RD, DUBLIN 4",{"$f":"VLOOKUP(L180,Regions!A:B,2,0)","v":"W"},"Dublin",225000,"No","No","Second-Hand Dwelling house /Apartment",null,"Dublin 4"]
["2017-10-01","3009-10-13",10,"9 COLLIS COURT, JUGBACK LANE, SWORDS",{"$f":"VLOOKUP(L181,Regions!A:B,2,0)","v":{"$error":"#N/A"}},"Dublin",130000,"No","No","Second-Hand Dwelling house /Apartment"]
["2017-10-01","3009-10-13",10,"9 THE LAURELS, TERENURE RD WEST, DUBLIN 6W",{"$f":"VLOOKUP(L182,Regions!A:B,2,0)","v":{"$error":"#N/A"}},"Dublin",410000,"No","No","Second-Hand Dwelling house /Apartment"]
["2017-10-01","3009-10-13",10,"96 ST DONAGHS RD, DONAGHMEDE, DUBLIN 13",{"$f":"VLOOKUP(L183,Regions!A:B,2,0)","v":"S"},"Dublin",285000,"No","No","Second-Hand Dwelling house /Apartment",null,"Dublin 13"]
["2017-10-01","3009-10-13",10,"ALLSTON, KNAPTON RD, DUN LAOGHAIRE",{"$f":"VLOOKUP(L184,Regions!A:B,2,0)","v":{"$error":"#N/A"}},"Dublin",2110000,"No","No","Second-Hand Dwelling house /Apartment"]
["2017-10-01","3009-10-13",10,"APT 217 THE RICHMOND NORTH ST, BRUNSWICK, DUBLIN",{"$f":"VLOOKUP(L185,Regions!A:B,2,0)","v":"S"},"Dublin",167000,"No","No","Second-Hand Dwelling house /Apartment",null,"Dublin 15"]
["2017-10-01","3009-10-13",10,"APT 3, WYCKHAM POINT, DUNDRUM DUBLIN 16",{"$f":"VLOOKUP(L186,Regions!A:B,2,0)","v":"E"},"Dublin",325000,"No","No","Second-Hand Dwelling house /Apartment",null,"Dublin 16"]
["2017-10-01","3009-10-13",10,"APT 98 ANNA LIVIA HOUSE, VIKING HARBOUR, USHERS ISLAND",{"$f":"VLOOKUP(L187,Regions!A:B,2,0)","v":{"$error":"#N/A"}},"Dublin",127000,"No","No","Second-Hand Dwelling house /Apartment"]
["2017-11-01","3043-05-13",11,"101 OLCOVAR, SHANKILL, DUBLIN",{"$f":"VLOOKUP(L188,Regions!A:B,2,0)","v":"W"},"Dublin",255000,"No","No","Second-Hand Dwelling house /Apartment",null,"Dublin 18"]
["2017-11-01","3043-05-13",11,"108 THE RICHMOND, BRUNSWICK STREET, DUBLIN 7",{"$f":"VLOOKUP(L189,Regions!A:B,2,0)","v":{"$error":"#N/A"}},"Dublin",180000,"No","No","Second-Hand Dwelling house /Apartment"]
["2017-11-01","3043-05-13",11,"118 VERNON AVE, CLONTARF, DUBLIN 3",{"$f":"VLOOKUP(L190,Regions!A:B,2,0)","v":"N"},"Dublin",625000,"No","No","Second-Hand Dwelling house /Apartment",null,"Dublin 3"]
["2017-11-01","3043-05-13",11,"13 APPLEWOOD MAIN STREET, APPLEWOOD VILLAGE, SWORDS",{"$f":"VLOOKUP(L191,Regions!A:B,2,0)","v":{"$error":"#N/A"}},"Dublin",190000,"No","No","Second-Hand Dwelling house /Apartment"]
["2017-11-01","3043-05-13",11,"14 Churchfield, 59/60 Clontarf Road, Dublin 3",{"$f":"VLOOKUP(L192,Regions!A:B,2,0)","v":"N"},"Dublin",550660.80000000005,"No","Yes","New Dwelling house /Apartment","greater than or equal to 125 sq metres","Dublin 3"]
["2017-11-01","3043-05-13",11,"14 Tullyhall Close, Lucan",{"$f":"VLOOKUP(L193,Regions!A:B,2,0)","v":{"$error":"#N/A"}},"Dublin",275869.18,"No","Yes","New Dwelling house /Apartment","greater than or equal to 38 sq metres and less than 125 sq metres"]
["2017-11-01","3043-05-13",11,"15 WESTFIELD, SION HILL, BLACKROCK",{"$f":"VLOOKUP(L194,Regions!A:B,2,0)","v":{"$error":"#N/A"}},"Dublin",435000,"No","No","Second-Hand Dwelling house /Apartment"]
["2017-11-01",{"$f":"DATE(RIGHT(A195,4),MID(A195,4,2),LEFT(A195,2))","v":"3043-05-13"},{"$f":"IF(ISERROR(MONTH(A195)),MONTH(B195),MONTH(A195))","v":11},"160 THE SWEEPSTAKES, BALLSBRIDGE, DUBLIN 4",{"$f":"VLOOKUP(L195,Regions!A:B,2,0)","v":{"$error":"#N/A"}},"Dublin",325000,"No","No","Second-Hand Dwelling house /Apartment"]
["2017-11-01","3043-05-13",11,"165 FOXROCK CLOSE, DEANSGRANGE, DUBLIN 18",{"$f":"VLOOKUP(L196,Regions!A:B,2,0)","v":{"$error":"#N/A"}},"Dublin",575000,"No","No","Second-Hand Dwelling house /Apartment"]
["2017-11-01","3043-05-13",11,"18 FORTFIELD TERRACE, RATHMINES, DUBLIN 6",{"$f":"VLOOKUP(L197,Regions!A:B,2,0)","v":"W"},"Dublin",1155000,"No","No","Second-Hand Dwelling house /Apartment",null,"Dublin 6"]
["2017-11-01","3043-05-13",11,"20 DONORE AVE, CIRCULAR RD SOUTH, DUBLIN 8",{"$f":"VLOOKUP(L198,Regions!A:B,2,0)","v":"S"},"Dublin",190000,"No","No","Second-Hand Dwelling house /Apartment",null,"Dublin 8"]
["2017-11-01","3043-05-13",11,"205 WOODFIELD, KNOCKLYON, DUBLIN 16",{"$f":"VLOOKUP(L199,Regions!A:B,2,0)","v":"E"},"Dublin",435000,"No","No","Second-Hand Dwelling house /Apartment",null,"Dublin 16"]
["2017-11-01","3043-05-13",11,"24 PARKSIDE AVENUE, BALGRIFFIN",{"$f":"VLOOKUP(L200,Regions!A:B,2,0)","v":{"$error":"#N/A"}},"Dublin",260162.59,"No","Yes","New Dwelling house /Apartment","greater than or equal to 38 sq metres and less than 125 sq metres"]
["2017-11-01","3043-05-13",11,"28 BROOKLAWN WOOD, BLACKROCK, DUBLIN",{"$f":"VLOOKUP(L201,Regions!A:B,2,0)","v":{"$error":"#N/A"}},"Dublin",375000,"No","No","Second-Hand Dwelling house /Apartment"]
["2017-11-01","3043-05-13",11,"3 THE MEWS, AILESBURY, BALLSBRIDGE",{"$f":"VLOOKUP(L202,Regions!A:B,2,0)","v":{"$error":"#N/A"}},"Dublin",815000,"No","No","Second-Hand Dwelling house /Apartment"]
["2017-11-01","3043-05-13",11,"31 BARTON RD WEST, RATHFARNHAM, DUBLIN 14",{"$f":"VLOOKUP(L203,Regions!A:B,2,0)","v":"E"},"Dublin",531777,"No","No","Second-Hand Dwelling house /Apartment",null,"Dublin 14"]
["2017-11-01","3043-05-13",11,"31 RIVERWOOD COURT, CARPENTERSTOWN, DUBLIN",{"$f":"VLOOKUP(L204,Regions!A:B,2,0)","v":"S"},"Dublin",330000,"No","No","Second-Hand Dwelling house /Apartment",null,"Dublin 15"]
["2017-11-01","3043-05-13",11,"32 PINEWOOD CRESCENT, GLASNEVIN, DUBLIN 2",{"$f":"VLOOKUP(L205,Regions!A:B,2,0)","v":"E"},"Dublin",435000,"No","No","Second-Hand Dwelling house /Apartment",null,"Dublin 11"]
["2017-11-01","3043-05-13",11,"37 PRIORY WAY, MANOR GROVE, TERENURE DUBLIN 12",{"$f":"VLOOKUP(L206,Regions!A:B,2,0)","v":"N"},"Dublin",536000,"No","No","Second-Hand Dwelling house /Apartment",null,"Dublin 12"]
["2017-11-01","3043-05-13",11,"42 TICKNOCK PARK, TICKNOCK HILL, SANDYFORD DUBLIN 18",{"$f":"VLOOKUP(L207,Regions!A:B,2,0)","v":"W"},"Dublin",270000,"No","No","Second-Hand Dwelling house /Apartment",null,"Dublin 18"]
["2017-11-01","3043-05-13",11,"45 DUNMORE PARK, BALLYMOUNT, DUBLIN 24",{"$f":"VLOOKUP(L208,Regions!A:B,2,0)","v":"E"},"Dublin",230000,"No","No","Second-Hand Dwelling house /Apartment",null,"Dublin 24"]
["2017-11-01","3043-05-13",11,"46 THE GREEN, LARCH HILL, DUBLIN 17",{"$f":"VLOOKUP(L209,Regions!A:B,2,0)","v":"N"},"Dublin",155000,"No","No","Second-Hand Dwelling house /Apartment",null,"Dublin 17"]
["2017-11-01","3043-05-13",11,"5 BLOCK 1, CLEARWATER COVE, OLD DUN LAOGHAIRE RD",{"$f":"VLOOKUP(L210,Regions!A:B,2,0)","v":"S"},"Dublin",208000,"No","No","Second-Hand Dwelling house /Apartment",null,"Dublin 15"]
["2017-11-01","3043-05-13",11,"50 RAVENSWELL, PALMER RD, RUSH",{"$f":"VLOOKUP(L211,Regions!A:B,2,0)","v":{"$error":"#N/A"}},"Dublin",25000,"Yes","No","Second-Hand Dwelling house /Apartment"]
["2017-11-01","3043-05-13",11,"57 SMYTHS VILLAS, YORK RD, DUN LAOGHAIRE",{"$f":"VLOOKUP(L212,Regions!A:B,2,0)","v":{"$error":"#N/A"}},"Dublin",142500,"No","No","Second-Hand Dwelling house /Apartment"]
["2017-11-01","3043-05-13",11,"6 ROSEMOUNT, GLANDORE RD, DRUMCONDRA DUBLIN 9",{"$f":"VLOOKUP(L213,Regions!A:B,2,0)","v":"W"},"Dublin",325000,"No","No","Second-Hand Dwelling house /Apartment",null,"Dublin 9"]
["2017-11-01","3043-05-13",11,"62 JOHNSTOWN GROVE, CABINTEELEY, CO DUBLIN",{"$f":"VLOOKUP(L214,Regions!A:B,2,0)","v":{"$error":"#N/A"}},"Dublin",501000,"No","No","Second-Hand Dwelling house /Apartment"]
["2017-11-01","3043-05-13",11,"77 SEABROOK, RUSH, CO. DUBLIN",{"$f":"VLOOKUP(L215,Regions!A:B,2,0)","v":{"$error":"#N/A"}},"Dublin",270000,"No","No","Second-Hand Dwelling house /Apartment"]
["2017-11-01","3043-05-13",11,"8 Elder Heath Meadow, Elder Heath, Kiltipper Road",{"$f":"VLOOKUP(L216,Regions!A:B,2,0)","v":"E"},"Dublin",246697,"No","Yes","New Dwelling house /Apartment","greater than or equal to 38 sq metres and less than 125 sq metres","Dublin 24"]
["2017-11-01","3043-05-13",11,"81 TEMPLEOGUE ROAD, TERENURE, DUBLIN 6W",{"$f":"VLOOKUP(L217,Regions!A:B,2,0)","v":{"$error":"#N/A"}},"Dublin",824385,"No","No","Second-Hand Dwelling house /Apartment"]
["2017-11-01","3043-05-13",11,"9 Tullyhall Mews, Lucan",{"$f":"VLOOKUP(L218,Regions!A:B,2,0)","v":{"$error":"#N/A"}},"Dublin",262115,"No","Yes","New Dwelling house /Apartment","greater than or equal to 38 sq metres and less than 125 sq metres"]
["2017-11-01","3043-05-13",11,"92 BROADMEADOWS, SWORDS, DUBLIN",{"$f":"VLOOKUP(L219,Regions!A:B,2,0)","v":{"$error":"#N/A"}},"Dublin",330000,"No","No","Second-Hand Dwelling house /Apartment"]
["2017-11-01","3043-05-13",11,"APT 36, HENRIETTA HALL, BOLTON STREET",{"$f":"VLOOKUP(L220,Regions!A:B,2,0)","v":{"$error":"#N/A"}},"Dublin",220000,"No","No","Second-Hand Dwelling house /Apartment"]
["2017-11-01","3043-05-13",11,"APT 3, 47 MAIN ST, CLONGRIFFIN",{"$f":"VLOOKUP(L221,Regions!A:B,2,0)","v":"S"},"Dublin",211453.74,"No","No","Second-Hand Dwelling house /Apartment",null,"Dublin 13"]
["2017-11-01","3043-05-13",11,"APT 7 RADCLIFFE, DUBLIN RD, SUTTON DUBLIN 13",{"$f":"VLOOKUP(L222,Regions!A:B,2,0)","v":"S"},"Dublin",370000,"No","No","Second-Hand Dwelling house /Apartment",null,"Dublin 13"]
["2017-11-01","3043-05-13",11,"APT 72 HARBOUR VIEW, DUN LAOGHAIRE, DUBLIN",{"$f":"VLOOKUP(L223,Regions!A:B,2,0)","v":"S"},"Dublin",405000,"No","No","Second-Hand Dwelling house /Apartment",null,"Dublin 13"]
["2017-11-01","3043-05-13",11,"CNUCHA, COLLEGE RD, CASTLEKNOCK DUBLIN 15",{"$f":"VLOOKUP(L224,Regions!A:B,2,0)","v":"S"},"Dublin",1400000,"No","No","Second-Hand Dwelling house /Apartment",null,"Dublin 15"]
["2017-11-01","3043-05-13",11,"COROFIN, TORQUAY RD, FOXROCK DUBLIN 18",{"$f":"VLOOKUP(L225,Regions!A:B,2,0)","v":"W"},"Dublin",1055000,"No","No","Second-Hand Dwelling house /Apartment",null,"Dublin 18"]
["2017-11-01","3043-05-13",11,"KILBRIDE HOUSE, BALDONNEL, DUBLIN",{"$f":"VLOOKUP(L226,Regions!A:B,2,0)","v":"E"},"Dublin",750000,"No","No","Second-Hand Dwelling house /Apartment",null,"Dublin 22"]
["2017-11-01","3043-05-13",11,"NO 7 HAMLET LANE HOUSE, BARRONSHALL, BALBRIGGAN",{"$f":"VLOOKUP(L227,Regions!A:B,2,0)","v":{"$error":"#N/A"}},"Dublin",132000,"No","No","Second-Hand Dwelling house /Apartment"]
["2017-11-01","3043-05-13",11,"(MAIN HSE), GRACEDIEU, BALLYBOUGHAL",{"$f":"VLOOKUP(L228,Regions!A:B,2,0)","v":{"$error":"#N/A"}},"Dublin",665000,"No","No","Second-Hand Dwelling house /Apartment"]
["2017-12-01","3075-11-12",12,"1 THE SQUARE, SKERRIES, DUBLIN",{"$f":"VLOOKUP(L229,Regions!A:B,2,0)","v":{"$error":"#N/A"}},"Dublin",285000,"No","No","Second-Hand Dwelling house /Apartment"]
["2017-12-01","3075-11-12",12,"10 71 CABRA RD, DUBLIN 2, DUBLIN",{"$f":"VLOOKUP(L230,Regions!A:B,2,0)","v":"S"},"Dublin",475000,"No","No","Second-Hand Dwelling house /Apartment",null,"Dublin 15"]
["2017-12-01","3075-11-12",12,"12 MARTELLO TERRACE, BALBRIGGAN, DUBLIN",{"$f":"VLOOKUP(L231,Regions!A:B,2,0)","v":{"$error":"#N/A"}},"Dublin",155000,"No","No","Second-Hand Dwelling house /Apartment"]
["2017-12-01","3075-11-12",12,"123 NEW IRELAND RD, RIALTO, DUBLIN 8",{"$f":"VLOOKUP(L232,Regions!A:B,2,0)","v":"S"},"Dublin",359000,"No","No","Second-Hand Dwelling house /Apartment",null,"Dublin 8"]
["2017-12-01","3075-11-12",12,"13 ESKER DR, LUCAN, DUBLIN",{"$f":"VLOOKUP(L233,Regions!A:B,2,0)","v":{"$error":"#N/A"}},"Dublin",187500,"No","No","Second-Hand Dwelling house /Apartment"]
["2017-12-01","3075-11-12",12,"14 EDGEWOOD LAWN, BLANCHARDSTOWN, DUBLIN 15",{"$f":"VLOOKUP(L234,Regions!A:B,2,0)","v":"S"},"Dublin",227000,"No","No","Second-Hand Dwelling house /Apartment",null,"Dublin 15"]
["2017-12-01","3075-11-12",12,"143 MILLRACE RD, CASTLEKNOCK, DUBLIN 15",{"$f":"VLOOKUP(L235,Regions!A:B,2,0)","v":"S"},"Dublin",298000,"No","No","Second-Hand Dwelling house /Apartment",null,"Dublin 15"]
["2017-12-01","3075-11-12",12,"147 WINTER GARDEN, PEARSE ST, DUBLIN 2",{"$f":"VLOOKUP(L236,Regions!A:B,2,0)","v":"E"},"Dublin",550000,"No","No","Second-Hand Dwelling house /Apartment",null,"Dublin 2"]
["2017-12-01","3075-11-12",12,"180 KILDARE RD, CRUMLIN, DUBLIN 12",{"$f":"VLOOKUP(L237,Regions!A:B,2,0)","v":"N"},"Dublin",200000,"No","No","Second-Hand Dwelling house /Apartment",null,"Dublin 12"]
["2017-12-01","3075-11-12",12,"22 The Avenue, Robswall  Malahide",{"$f":"VLOOKUP(L238,Regions!A:B,2,0)","v":{"$error":"#N/A"}},"Dublin",361233.48,"No","Yes","New Dwelling house /Apartment","greater than or equal to 38 sq metres and less than 125 sq metres"]
["2017-12-01","3075-11-12",12,"23 THE ATRIUM, FOLEY ST, DUBLIN 1",{"$f":"VLOOKUP(L239,Regions!A:B,2,0)","v":"S"},"Dublin",256000,"No","No","Second-Hand Dwelling house /Apartment",null,"Dublin 1"]
["2017-12-01","3075-11-12",12,"25 ASH ST, THE LIBERTIES, DUBLIN 8",{"$f":"VLOOKUP(L240,Regions!A:B,2,0)","v":"S"},"Dublin",300000,"No","No","Second-Hand Dwelling house /Apartment",null,"Dublin 8"]
["2017-12-01","3075-11-12",12,"2B LUTTRELLPARK CRESCENT, CARPENTERSTOWN, CASTLEKNOCK DUBLIN 15",{"$f":"VLOOKUP(L241,Regions!A:B,2,0)","v":"S"},"Dublin",397500,"No","No","Second-Hand Dwelling house /Apartment",null,"Dublin 15"]
["2017-12-01","3075-11-12",12,"3 BEECHFIELD COURT, CLONEE, DUBLIN 15",{"$f":"VLOOKUP(L242,Regions!A:B,2,0)","v":"S"},"Dublin",220000,"No","No","Second-Hand Dwelling house /Apartment",null,"Dublin 15"]
["2017-12-01","3075-11-12",12,"3 OHARA AVE, HAROLDS CROSS, DUBLIN",{"$f":"VLOOKUP(L243,Regions!A:B,2,0)","v":"W"},"Dublin",427500,"No","No","Second-Hand Dwelling house /Apartment",null,"Dublin 6"]
["2017-12-01","3075-11-12",12,"30 FORBES QUAY, SIR JOHN ROGERSONS QUAY, DUBLIN 2",{"$f":"VLOOKUP(L244,Regions!A:B,2,0)","v":"E"},"Dublin",345000,"No","No","Second-Hand Dwelling house /Apartment",null,"Dublin 2"]
["2017-12-01","3075-11-12",12,"30 TRINITY PLAZA, PEARSE ST, DUBLIN 2",{"$f":"VLOOKUP(L245,Regions!A:B,2,0)","v":"E"},"Dublin",382500,"No","Yes","New Dwelling house /Apartment","less than 38 sq metres","Dublin 2"]
["2017-12-01","3075-11-12",12,"4 SEFTON GREEN, DUN LAOGHAIRE, DUBLIN",{"$f":"VLOOKUP(L246,Regions!A:B,2,0)","v":{"$error":"#N/A"}},"Dublin",460000,"No","No","Second-Hand Dwelling house /Apartment"]
["2017-12-01","3075-11-12",12,"4 SHANDON GREEN, PHIBSBOROUGH, DUBLIN 7",{"$f":"VLOOKUP(L247,Regions!A:B,2,0)","v":"W"},"Dublin",333000,"No","No","Second-Hand Dwelling house /Apartment",null,"Dublin 7"]
["2017-12-01","3075-11-12",12,"47 DOCK MILL, BARROW STREET, DUBLIN 4",{"$f":"VLOOKUP(L248,Regions!A:B,2,0)","v":"W"},"Dublin",366000,"No","No","Second-Hand Dwelling house /Apartment",null,"Dublin 4"]
["2017-12-01","3075-11-12",12,"48 Diswellstown Way, Castleknock, Dublin 15",{"$f":"VLOOKUP(L249,Regions!A:B,2,0)","v":"S"},"Dublin",405286.34,"No","Yes","New Dwelling house /Apartment","greater than or equal to 38 sq metres and less than 125 sq metres","Dublin 15"]
["2017-12-01","3075-11-12",12,"49 CASTLEWAY, GOLDEN LANE, DUBLIN 8",{"$f":"VLOOKUP(L250,Regions!A:B,2,0)","v":{"$error":"#N/A"}},"Dublin",418000,"No","No","Second-Hand Dwelling house /Apartment"]
["2017-12-01","3075-11-12",12,"51 LATCHFORD CLOSE, BLANCHARDSTOWN, DUBLIN 15",{"$f":"VLOOKUP(L251,Regions!A:B,2,0)","v":{"$error":"#N/A"}},"Dublin",200000,"No","No","Second-Hand Dwelling house /Apartment"]
["2017-12-01","3075-11-12",12,"51 MONALEA WOOD, FIRHOUSE, DUBLIN 24",{"$f":"VLOOKUP(L252,Regions!A:B,2,0)","v":"E"},"Dublin",478000,"No","No","Second-Hand Dwelling house /Apartment",null,"Dublin 24"]
["2017-12-01","3075-11-12",12,"57 FOXROCK AVE, FOXROCK, DUBLIN 18",{"$f":"VLOOKUP(L253,Regions!A:B,2,0)","v":"W"},"Dublin",841651,"No","No","Second-Hand Dwelling house /Apartment",null,"Dublin 18"]
["2017-12-01","3075-11-12",12,"58 HARCOURT GREEN, CHARLEMONT ST, DUBLIN 2",{"$f":"VLOOKUP(L254,Regions!A:B,2,0)","v":"E"},"Dublin",150000,"Yes","No","Second-Hand Dwelling house /Apartment",null,"Dublin 2"]
["2017-12-01","3075-11-12",12,"6 DUNDRUM COURT, DUNDRUM, DUBLIN 14",{"$f":"VLOOKUP(L255,Regions!A:B,2,0)","v":"E"},"Dublin",260000,"No","No","Second-Hand Dwelling house /Apartment",null,"Dublin 16"]
["2017-12-01","3075-11-12",12,"6 MELVILLE DR, MEAKSTOWN DUBLIN 11, DUBLIN",{"$f":"VLOOKUP(L256,Regions!A:B,2,0)","v":"E"},"Dublin",166000,"No","No","Second-Hand Dwelling house /Apartment",null,"Dublin 11"]
["2017-12-01","3075-11-12",12,"6 Parkside Close, Parkside, Malahide Road",{"$f":"VLOOKUP(L257,Regions!A:B,2,0)","v":"S"},"Dublin",276652,"No","Yes","New Dwelling house /Apartment","greater than or equal to 38 sq metres and less than 125 sq metres","Dublin 13"]
["2017-12-01","3075-11-12",12,"6 THE LAWN, HANSFIELD WOOD, HANSFIELD",{"$f":"VLOOKUP(L258,Regions!A:B,2,0)","v":{"$error":"#N/A"}},"Dublin",255506,"No","Yes","New Dwelling house /Apartment","greater than or equal to 38 sq metres and less than 125 sq metres"]
["2017-12-01",{"$f":"DATE(RIGHT(A259,4),MID(A259,4,2),LEFT(A259,2))","v":"3075-11-12"},{"$f":"IF(ISERROR(MONTH(A259)),MONTH(B259),MONTH(A259))","v":12},"63 WHITEOAK, CLONSKEAGH, DUBLIN 14",{"$f":"VLOOKUP(L259,Regions!A:B,2,0)","v":"E"},"Dublin",280000,"No","No","Second-Hand Dwelling house /Apartment",null,"Dublin 14"]
["2017-12-01","3075-11-12",12,"66 BULFIN RD, INCHICORE, DUBLIN 8",{"$f":"VLOOKUP(L260,Regions!A:B,2,0)","v":"S"},"Dublin",428000,"No","No","Second-Hand Dwelling house /Apartment",null,"Dublin 8"]
["2017-12-01","3075-11-12",12,"67 SPENCER HOUSE, CUSTOM HOUSE SQ, I F S C DUBLIN 1",{"$f":"VLOOKUP(L261,Regions!A:B,2,0)","v":"S"},"Dublin",370500,"No","No","Second-Hand Dwelling house /Apartment",null,"Dublin 1"]
["2017-12-01","3075-11-12",12,"7 RATHBORNE CLOSE, ASHTOWN, DUBLIN 15",{"$f":"VLOOKUP(L262,Regions!A:B,2,0)","v":"S"},"Dublin",395000,"No","No","Second-Hand Dwelling house /Apartment",null,"Dublin 15"]
["2017-12-01","3075-11-12",12,"7 WELLMOUNT GREEN, FINGLAS WEST, DUBLIN 11",{"$f":"VLOOKUP(L263,Regions!A:B,2,0)","v":"E"},"Dublin",170000,"No","No","Second-Hand Dwelling house /Apartment",null,"Dublin 11"]
["2017-12-01","3075-11-12",12,"7 WINDMILL RISE, SWORDS, DUBLIN",{"$f":"VLOOKUP(L264,Regions!A:B,2,0)","v":{"$error":"#N/A"}},"Dublin",300000,"No","No","Second-Hand Dwelling house /Apartment"]
["2017-12-01","3075-11-12",12,"73 CABRA RD, PHIBSBOROUGH, DUBLIN 7",{"$f":"VLOOKUP(L265,Regions!A:B,2,0)","v":"W"},"Dublin",475000,"No","No","Second-Hand Dwelling house /Apartment",null,"Dublin 7"]
["2017-12-01","3075-11-12",12,"78 ANNMORE DR, CABRA, DUBLIN 7",{"$f":"VLOOKUP(L266,Regions!A:B,2,0)","v":"W"},"Dublin",267000,"No","No","Second-Hand Dwelling house /Apartment",null,"Dublin 7"]
["2017-12-01","3075-11-12",12,"8 Elder Heath Park, Elder Heath, Kiltipper Road",{"$f":"VLOOKUP(L267,Regions!A:B,2,0)","v":"E"},"Dublin",280000,"No","Yes","New Dwelling house /Apartment","less than 38 sq metres","Dublin 24"]
["2017-12-01","3075-11-12",12,"81 MOUNTAIN VIEW, RATHFARNHAM, DUBLIN 14",{"$f":"VLOOKUP(L268,Regions!A:B,2,0)","v":{"$error":"#N/A"}},"Dublin",375000,"No","No","Second-Hand Dwelling house /Apartment"]
["2017-12-01","3075-11-12",12,"9 Castlegrange Court, Castaheany",{"$f":"VLOOKUP(L269,Regions!A:B,2,0)","v":"S"},"Dublin",260000,"No","Yes","New Dwelling house /Apartment","greater than or equal to 125 sq metres","Dublin 15"]
["2017-12-01","3075-11-12",12,"9 EASTMORELAND COURT, EASTMORELAND PLACE, BALLSBRIDGE DUBLIN 4",{"$f":"VLOOKUP(L270,Regions!A:B,2,0)","v":"W"},"Dublin",150000,"Yes","No","Second-Hand Dwelling house /Apartment",null,"Dublin 4"]
["2017-12-01","3075-11-12",12,"91 ORLYNN PARK, LUSK, DUBLIN",{"$f":"VLOOKUP(L271,Regions!A:B,2,0)","v":{"$error":"#N/A"}},"Dublin",300000,"No","No","Second-Hand Dwelling house /Apartment"]
["2017-12-01","3075-11-12",12,"98 MERRION PARK, BLACKROCK, DUBLIN",{"$f":"VLOOKUP(L272,Regions!A:B,2,0)","v":{"$error":"#N/A"}},"Dublin",710000,"No","No","Second-Hand Dwelling house /Apartment"]
["2017-12-01","3075-11-12",12,"APARTMENT 61, BLOCK E, SMITHFIELD MARKET",{"$f":"VLOOKUP(L273,Regions!A:B,2,0)","v":{"$error":"#N/A"}},"Dublin",420000,"No","No","Second-Hand Dwelling house /Apartment"]
["2017-12-01","3075-11-12",12,"APT 116, THE RICHMOND, NORTH BRUNSWICK ST",{"$f":"VLOOKUP(L274,Regions!A:B,2,0)","v":"W"},"Dublin",160000,"No","No","Second-Hand Dwelling house /Apartment",null,"Dublin 7"]
["2017-12-01","3075-11-12",12,"APT 143, THE HARDWICKE VILLAGE, NORTH BRUNSWICK",{"$f":"VLOOKUP(L275,Regions!A:B,2,0)","v":{"$error":"#N/A"}},"Dublin",165000,"No","No","Second-Hand Dwelling house /Apartment"]
["2017-12-01","3075-11-12",12,"APT 163, THE TRAMYARD, INCHICORE",{"$f":"VLOOKUP(L276,Regions!A:B,2,0)","v":{"$error":"#N/A"}},"Dublin",175000,"No","No","Second-Hand Dwelling house /Apartment"]
["2017-12-01","3075-11-12",12,"APT 47, 52 MOUNTJOY SQUARE, DUBLIN 1",{"$f":"VLOOKUP(L277,Regions!A:B,2,0)","v":"S"},"Dublin",275000,"No","No","Second-Hand Dwelling house /Apartment",null,"Dublin 1"]
["2017-12-01","3075-11-12",12,"APT 5, 36 MOREHAMPTON RD, DONNYBROOK DUBLIN 4",{"$f":"VLOOKUP(L278,Regions!A:B,2,0)","v":"W"},"Dublin",167000,"No","No","Second-Hand Dwelling house /Apartment",null,"Dublin 4"]
["2017-12-01","3075-11-12",12,"APT 8, BRIGHTON HOUSE, BRIGHTON TERRACE",{"$f":"VLOOKUP(L279,Regions!A:B,2,0)","v":{"$error":"#N/A"}},"Dublin",375000,"No","No","Second-Hand Dwelling house /Apartment"]
["2017-12-01","3075-11-12",12,"APT 8, LINDEN COURT, LINDEN GROVE AVE BLACKROCK",{"$f":"VLOOKUP(L280,Regions!A:B,2,0)","v":"S"},"Dublin",342500,"No","No","Second-Hand Dwelling house /Apartment",null,"Dublin 15"]
["2017-12-01","3075-11-12",12,"WALSHESTOWN, LUSK, CO DUBLIN",{"$f":"VLOOKUP(L281,Regions!A:B,2,0)","v":{"$error":"#N/A"}},"Dublin",30000,"Yes","No","Second-Hand Dwelling house /Apartment"]
["13/01/2017","2017-01-13",1,"1 CHAPELWOOD AVE, CHAPELWOOD BALLYMACARNEY, DUBLIN 15",{"$f":"VLOOKUP(L282,Regions!A:B,2,0)","v":"S"},"Dublin",245000,"No","No","Second-Hand Dwelling house /Apartment",null,"Dublin 15"]
["13/01/2017","2017-01-13",1,"10 GLENART AVE, BLACKROCK, DUBLIN",{"$f":"VLOOKUP(L283,Regions!A:B,2,0)","v":{"$error":"#N/A"}},"Dublin",915000,"No","No","Second-Hand Dwelling house /Apartment"]
["13/01/2017","2017-01-13",1,"10 ST ANNES AVE, RAHENY, DUBLIN 5",{"$f":"VLOOKUP(L284,Regions!A:B,2,0)","v":"S"},"Dublin",495000,"No","No","Second-Hand Dwelling house /Apartment",null,"Dublin 5"]
["13/01/2017","2017-01-13",1,"11 LAWNSWOOD PARK, STILLORGAN, DUBLIN",{"$f":"VLOOKUP(L285,Regions!A:B,2,0)","v":{"$error":"#N/A"}},"Dublin",740000,"No","No","Second-Hand Dwelling house /Apartment"]
["13/01/2017","2017-01-13",1,"11 MOYCLARE PARK, BALDOYLE, DUBLIN 13",{"$f":"VLOOKUP(L286,Regions!A:B,2,0)","v":"S"},"Dublin",278000,"No","No","Second-Hand Dwelling house /Apartment",null,"Dublin 13"]
["13/01/2017","2017-01-13",1,"111 Diswellstown Manor, Castleknock, Dublin 15",{"$f":"VLOOKUP(L287,Regions!A:B,2,0)","v":"S"},"Dublin",555066.06999999995,"No","Yes","New Dwelling house /Apartment","greater than or equal to 125 sq metres","Dublin 15"]
["13/01/2017","2017-01-13",1,"112 CASTLEFIELD COURT, CLONSILLA, DUBLIN 15",{"$f":"VLOOKUP(L288,Regions!A:B,2,0)","v":"S"},"Dublin",450000,"No","No","Second-Hand Dwelling house /Apartment",null,"Dublin 15"]
["13/01/2017","2017-01-13",1,"13 COLTHURST RISE, LUCAN, DUBLIN",{"$f":"VLOOKUP(L289,Regions!A:B,2,0)","v":{"$error":"#N/A"}},"Dublin",275000,"No","No","Second-Hand Dwelling house /Apartment"]
["13/01/2017","2017-01-13",1,"13 Parkside Drive  Parkside, Malahide Road, Balgriffin",{"$f":"VLOOKUP(L290,Regions!A:B,2,0)","v":"S"},"Dublin",275330.40000000002,"No","Yes","New Dwelling house /Apartment","greater than or equal to 38 sq metres and less than 125 sq metres","Dublin 13"]
["13/01/2017","2017-01-13",1,"14 Ashfield Avenue, Ridgewood, Swords",{"$f":"VLOOKUP(L291,Regions!A:B,2,0)","v":{"$error":"#N/A"}},"Dublin",286343,"No","Yes","New Dwelling house /Apartment","greater than or equal to 38 sq metres and less than 125 sq metres"]
["13/01/2017","2017-01-13",1,"14 Barnwell Road, Hansfield, Barnwell",{"$f":"VLOOKUP(L292,Regions!A:B,2,0)","v":"S"},"Dublin",251101.32,"No","Yes","New Dwelling house /Apartment","greater than or equal to 38 sq metres and less than 125 sq metres","Dublin 15"]
["13/01/2017","2017-01-13",1,"16 FERNVALE DR, DUBLIN 12, DUBLIN",{"$f":"VLOOKUP(L293,Regions!A:B,2,0)","v":"N"},"Dublin",375000,"No","No","Second-Hand Dwelling house /Apartment",null,"Dublin 12"]
["13/01/2017","2017-01-13",1,"17 THE BELFRY, KILBARRACK RD, DUBLIN 5",{"$f":"VLOOKUP(L294,Regions!A:B,2,0)","v":"S"},"Dublin",210000,"No","No","Second-Hand Dwelling house /Apartment",null,"Dublin 5"]
["13/01/2017","2017-01-13",1,"18 CHURCHWELL MEWS, BELMAYNE, MALAHIDE RD",{"$f":"VLOOKUP(L295,Regions!A:B,2,0)","v":"S"},"Dublin",285000,"No","No","Second-Hand Dwelling house /Apartment",null,"Dublin 13"]
["13/01/2017","2017-01-13",1,"19 Ashfield Avenue, Ridgewood, Forrest Raod",{"$f":"VLOOKUP(L296,Regions!A:B,2,0)","v":{"$error":"#N/A"}},"Dublin",286202,"No","Yes","New Dwelling house /Apartment","greater than or equal to 38 sq metres and less than 125 sq metres"]
["13/01/2017","2017-01-13",1,"2 TEMPLE COURT, NORTHWOOD, SANTRY",{"$f":"VLOOKUP(L297,Regions!A:B,2,0)","v":{"$error":"#N/A"}},"Dublin",211000,"No","No","Second-Hand Dwelling house /Apartment"]
["13/01/2017","2017-01-13",1,"20 HAZELWOOD LANE, GREENISLE, CLONDALKIN DUBLIN 22",{"$f":"VLOOKUP(L298,Regions!A:B,2,0)","v":"E"},"Dublin",252000,"No","No","Second-Hand Dwelling house /Apartment",null,"Dublin 22"]
["13/01/2017","2017-01-13",1,"22 KENILWORTH MANOR, HAROLDS CROSS RD, HAROLDS CROSS DUBLIN 6",{"$f":"VLOOKUP(L299,Regions!A:B,2,0)","v":{"$error":"#N/A"}},"Dublin",361000,"No","No","Second-Hand Dwelling house /Apartment"]
["13/01/2017","2017-01-13",1,"23 MONTROSE GROVE, ARTANE, DUBLIN 5",{"$f":"VLOOKUP(L300,Regions!A:B,2,0)","v":"S"},"Dublin",265000,"No","No","Second-Hand Dwelling house /Apartment",null,"Dublin 5"]
["13/01/2017","2017-01-13",1,"23 TALLOW HALL, BELGARD SQ EAST, TALLAGHT",{"$f":"VLOOKUP(L301,Regions!A:B,2,0)","v":"E"},"Dublin",140000,"No","No","Second-Hand Dwelling house /Apartment",null,"Dublin 24"]
["13/01/2017","2017-01-13",1,"24 BELLEVUE AVE, GLENAGEARY, DUBLIN",{"$f":"VLOOKUP(L302,Regions!A:B,2,0)","v":{"$error":"#N/A"}},"Dublin",675000,"No","No","Second-Hand Dwelling house /Apartment"]
["13/01/2017","2017-01-13",1,"24 HUNTERS AVE, BALLYCULLEN RD, DUBLIN 24",{"$f":"VLOOKUP(L303,Regions!A:B,2,0)","v":"E"},"Dublin",380000,"No","No","Second-Hand Dwelling house /Apartment",null,"Dublin 24"]
["13/01/2017","2017-01-13",1,"24 ROSSBERRY AVENUE, LUCAN, CO DUBLIN",{"$f":"VLOOKUP(L304,Regions!A:B,2,0)","v":{"$error":"#N/A"}},"Dublin",269000,"No","No","Second-Hand Dwelling house /Apartment"]
["13/01/2017","2017-01-13",1,"27 ASHLAWN, BALLINTEER RD, DUNDRUM DUBLIN 16",{"$f":"VLOOKUP(L305,Regions!A:B,2,0)","v":"E"},"Dublin",685000,"No","No","Second-Hand Dwelling house /Apartment",null,"Dublin 16"]
["13/01/2017","2017-01-13",1,"28 BALLYOGAN DRIVE, CARRICKMINES, DUBLIN 18",{"$f":"VLOOKUP(L306,Regions!A:B,2,0)","v":"W"},"Dublin",306000,"Yes","No","Second-Hand Dwelling house /Apartment",null,"Dublin 18"]
["13/01/2017","2017-01-13",1,"29 LINNBLA APTS, SANTRY CROSS, DUBLIN 11",{"$f":"VLOOKUP(L307,Regions!A:B,2,0)","v":"E"},"Dublin",185000,"No","No","Second-Hand Dwelling house /Apartment",null,"Dublin 11"]
["13/01/2017","2017-01-13",1,"3 ST AGNES TERRACE, CRUMLIN, DUBLIN 12",{"$f":"VLOOKUP(L308,Regions!A:B,2,0)","v":{"$error":"#N/A"}},"Dublin",220000,"No","No","Second-Hand Dwelling house /Apartment"]
["13/01/2017","2017-01-13",1,"34 WESTMINSTER LAWNS, FOXROCK, DUBLIN 18",{"$f":"VLOOKUP(L309,Regions!A:B,2,0)","v":"W"},"Dublin",400000,"Yes","No","Second-Hand Dwelling house /Apartment",null,"Dublin 18"]
["13/01/2017","2017-01-13",1,"35 ARTHUR GRIFFITH PARK, LUCAN, DUBLIN",{"$f":"VLOOKUP(L310,Regions!A:B,2,0)","v":{"$error":"#N/A"}},"Dublin",210000,"No","No","Second-Hand Dwelling house /Apartment"]
["13/01/2017","2017-01-13",1,"39 GLEDSWOOD AVE, CLONSKEAGH, DUBLIN 14",{"$f":"VLOOKUP(L311,Regions!A:B,2,0)","v":"E"},"Dublin",630000,"No","No","Second-Hand Dwelling house /Apartment",null,"Dublin 14"]
["13/01/2017","2017-01-13",1,"4 CASIMIR RD, HAROLDS CROSS, DUBLIN 6",{"$f":"VLOOKUP(L312,Regions!A:B,2,0)","v":{"$error":"#N/A"}},"Dublin",630000,"No","No","Second-Hand Dwelling house /Apartment"]
["13/01/2017","2017-01-13",1,"4 CHALFONT AVE, MALAHIDE, DUBLIN",{"$f":"VLOOKUP(L313,Regions!A:B,2,0)","v":{"$error":"#N/A"}},"Dublin",580000,"No","No","Second-Hand Dwelling house /Apartment"]
["13/01/2017","2017-01-13",1,"4 REHOBOTH PLACE, SOUTH CIRCULAR ROAD, DUBLIN 8",{"$f":"VLOOKUP(L314,Regions!A:B,2,0)","v":{"$error":"#N/A"}},"Dublin",167000,"No","No","Second-Hand Dwelling house /Apartment"]
["13/01/2017","2017-01-13",1,"4 WOODLAWN PARK, MOUNTTOWN, DUN LAOGHAIRE",{"$f":"VLOOKUP(L315,Regions!A:B,2,0)","v":{"$error":"#N/A"}},"Dublin",555000,"No","No","Second-Hand Dwelling house /Apartment"]
["13/01/2017","2017-01-13",1,"44 KINCORA AVE, CLONTARF, DUBLIN 3",{"$f":"VLOOKUP(L316,Regions!A:B,2,0)","v":"N"},"Dublin",740000,"No","No","Second-Hand Dwelling house /Apartment",null,"Dublin 3"]
["13/01/2017","2017-01-13",1,"49 EARLS COURT, REUBEN ST, DUBLIN 8",{"$f":"VLOOKUP(L317,Regions!A:B,2,0)","v":"S"},"Dublin",140969.1,"No","Yes","New Dwelling house /Apartment","greater than or equal to 38 sq metres and less than 125 sq metres","Dublin 8"]
["13/01/2017","2017-01-13",1,"5 ELMWOOD RD SWORDS, DUBLIN",{"$f":"VLOOKUP(L318,Regions!A:B,2,0)","v":{"$error":"#N/A"}},"Dublin",340000,"No","No","Second-Hand Dwelling house /Apartment"]
["13/01/2017","2017-01-13",1,"514 MAIN ST, DUBLIN 24, DUBLIN",{"$f":"VLOOKUP(L319,Regions!A:B,2,0)","v":"E"},"Dublin",100000,"No","No","Second-Hand Dwelling house /Apartment",null,"Dublin 24"]
["13/01/2017","2017-01-13",1,"52 THE PAVILION, MARINE RD, DUN LAOGHAIRE",{"$f":"VLOOKUP(L320,Regions!A:B,2,0)","v":{"$error":"#N/A"}},"Dublin",500000,"No","No","Second-Hand Dwelling house /Apartment"]
["13/01/2017","2017-01-13",1,"53 Sion Hill Park, Sion Hill Road, Drumcondra",{"$f":"VLOOKUP(L321,Regions!A:B,2,0)","v":{"$error":"#N/A"}},"Dublin",524229.08,"No","Yes","New Dwelling house /Apartment","greater than or equal to 125 sq metres"]
["13/01/2017","2017-01-13",1,"56 CUSTOM HOUSE HARBOUR, IFSC, DUBLIN 1",{"$f":"VLOOKUP(L322,Regions!A:B,2,0)","v":"S"},"Dublin",331000,"No","No","Second-Hand Dwelling house /Apartment",null,"Dublin 1"]
["13/01/2017",{"$f":"DATE(RIGHT(A323,4),MID(A323,4,2),LEFT(A323,2))","v":"2017-01-13"},{"$f":"IF(ISERROR(MONTH(A323)),MONTH(B323),MONTH(A323))","v":1},"58 SONESTA, MALAHIDE, DUBLIN",{"$f":"VLOOKUP(L323,Regions!A:B,2,0)","v":{"$error":"#N/A"}},"Dublin",534000,"No","No","Second-Hand Dwelling house /Apartment"]
["13/01/2017","2017-01-13",1,"59A MOUTFIELD RD, COOLOCK, DUBLIN 5",{"$f":"VLOOKUP(L324,Regions!A:B,2,0)","v":"S"},"Dublin",171000,"No","No","Second-Hand Dwelling house /Apartment",null,"Dublin 5"]
["13/01/2017","2017-01-13",1,"6 HOLYWELL HEATH, GORSE HILL, SWORDS",{"$f":"VLOOKUP(L325,Regions!A:B,2,0)","v":{"$error":"#N/A"}},"Dublin",275000,"No","No","Second-Hand Dwelling house /Apartment"]
["13/01/2017","2017-01-13",1,"6 THE SCHOONER, ARRAN QUAY, DUBLIN 7",{"$f":"VLOOKUP(L326,Regions!A:B,2,0)","v":"W"},"Dublin",135000,"No","No","Second-Hand Dwelling house /Apartment",null,"Dublin 7"]
["13/01/2017","2017-01-13",1,"67 BLACKHALL SQ, KING ST NORTH, DUBLIN 7",{"$f":"VLOOKUP(L327,Regions!A:B,2,0)","v":"W"},"Dublin",202000,"No","No","Second-Hand Dwelling house /Apartment",null,"Dublin 7"]
["13/01/2017","2017-01-13",1,"68 The Sanderling, Barnageeragh Cove, Skerries",{"$f":"VLOOKUP(L328,Regions!A:B,2,0)","v":{"$error":"#N/A"}},"Dublin",286343,"No","Yes","New Dwelling house /Apartment","greater than or equal to 38 sq metres and less than 125 sq metres"]
["13/01/2017","2017-01-13",1,"8 MULVEY PARK, DUNDRUM, DUBLIN 14",{"$f":"VLOOKUP(L329,Regions!A:B,2,0)","v":"E"},"Dublin",381000,"No","No","Second-Hand Dwelling house /Apartment",null,"Dublin 14"]
["13/01/2017","2017-01-13",1,"8 SOUTHBANK, SWORDS, DUBLIN",{"$f":"VLOOKUP(L330,Regions!A:B,2,0)","v":{"$error":"#N/A"}},"Dublin",289950,"No","No","Second-Hand Dwelling house /Apartment"]
["13/01/2017","2017-01-13",1,"8 WESTBROOK RISE, BALBRIGGAN, DUBLIN",{"$f":"VLOOKUP(L331,Regions!A:B,2,0)","v":{"$error":"#N/A"}},"Dublin",230000,"No","No","Second-Hand Dwelling house /Apartment"]
["13/01/2017","2017-01-13",1,"9 Elder Heath Meadow, Elder Heath, Kiltipper Road",{"$f":"VLOOKUP(L332,Regions!A:B,2,0)","v":"E"},"Dublin",246696.03,"No","Yes","New Dwelling house /Apartment","greater than or equal to 38 sq metres and less than 125 sq metres","Dublin 24"]
["13/01/2017","2017-01-13",1,"97 SNOWDROP WALK, DARNDALE, DUBLIN 17",{"$f":"VLOOKUP(L333,Regions!A:B,2,0)","v":"N"},"Dublin",155000,"No","No","Second-Hand Dwelling house /Apartment",null,"Dublin 17"]
["13/01/2017","2017-01-13",1,"APARTMENT 1, 53 AMIENS STREET, DUBLIN 1",{"$f":"VLOOKUP(L334,Regions!A:B,2,0)","v":"S"},"Dublin",276000,"No","No","Second-Hand Dwelling house /Apartment",null,"Dublin 1"]
["13/01/2017","2017-01-13",1,"APARTMENT 37, WATERSIDE DRIVE, WATERSIDE SWORDS ROAD",{"$f":"VLOOKUP(L335,Regions!A:B,2,0)","v":{"$error":"#N/A"}},"Dublin",220264.32000000001,"No","Yes","New Dwelling house /Apartment","greater than or equal to 38 sq metres and less than 125 sq metres"]
["13/01/2017","2017-01-13",1,"APT 10 STRANDVILLE HOUSE, STRANDVILLE AVE EAST, CLONTARF DUBLIN 3",{"$f":"VLOOKUP(L336,Regions!A:B,2,0)","v":"N"},"Dublin",255000,"No","No","Second-Hand Dwelling house /Apartment",null,"Dublin 3"]
["13/01/2017","2017-01-13",1,"APT 10, MARSFIELD AVE, CLONGRIFFIN",{"$f":"VLOOKUP(L337,Regions!A:B,2,0)","v":"S"},"Dublin",192000,"No","No","Second-Hand Dwelling house /Apartment",null,"Dublin 15"]
["13/01/2017","2017-01-13",1,"APT 1, 8 RAILWAY RD, DALKEY",{"$f":"VLOOKUP(L338,Regions!A:B,2,0)","v":{"$error":"#N/A"}},"Dublin",470000,"No","No","Second-Hand Dwelling house /Apartment"]
["13/01/2017","2017-01-13",1,"APT 34, COROFIN HOUSE, CLARE VILLAGE DUBLIN 17",{"$f":"VLOOKUP(L339,Regions!A:B,2,0)","v":"N"},"Dublin",178000,"No","No","Second-Hand Dwelling house /Apartment",null,"Dublin 17"]
["13/01/2017","2017-01-13",1,"APT 5, 225A LOWER KIMMAGE RD, DUBLIN 6W",{"$f":"VLOOKUP(L340,Regions!A:B,2,0)","v":{"$error":"#N/A"}},"Dublin",195000,"No","No","Second-Hand Dwelling house /Apartment"]
["13/01/2017","2017-01-13",1,"Apt No. 37 Seascape, 366 Clontraf Road, Dublin 3",{"$f":"VLOOKUP(L341,Regions!A:B,2,0)","v":"N"},"Dublin",290749,"No","Yes","New Dwelling house /Apartment","greater than or equal to 38 sq metres and less than 125 sq metres","Dublin 3"]
["13/01/2017","2017-01-13",1,"FLEMINGTOWN HOUSE, CLONALVY, DUBLIN",{"$f":"VLOOKUP(L342,Regions!A:B,2,0)","v":{"$error":"#N/A"}},"Dublin",445000,"No","No","Second-Hand Dwelling house /Apartment"]
["14/01/2017","2017-01-14",1,"25 THE ORCHARD, CARPENTERSTOWN ROAD, CASTLEKNOCK",{"$f":"VLOOKUP(L343,Regions!A:B,2,0)","v":"S"},"Dublin",150000,"No","No","Second-Hand Dwelling house /Apartment",null,"Dublin 15"]
["14/01/2017","2017-01-14",1,"5 KELLYS BAY JETTY, SKERRIES, DUBLIN",{"$f":"VLOOKUP(L344,Regions!A:B,2,0)","v":{"$error":"#N/A"}},"Dublin",212000,"No","No","Second-Hand Dwelling house /Apartment"]
["16/01/2017","2017-01-16",1,"1 LES BUISSONNETS, SWEETMANS AVE, BLACKROCK",{"$f":"VLOOKUP(L345,Regions!A:B,2,0)","v":{"$error":"#N/A"}},"Dublin",310000,"No","No","Second-Hand Dwelling house /Apartment"]
["16/01/2017","2017-01-16",1,"1 NEWTOWN COTTAGES, BALROTHERY, TALLAGHT",{"$f":"VLOOKUP(L346,Regions!A:B,2,0)","v":{"$error":"#N/A"}},"Dublin",170000,"No","No","Second-Hand Dwelling house /Apartment"]
["16/01/2017","2017-01-16",1,"101 Comerfords Cross, Portmarnock, County Dublin",{"$f":"VLOOKUP(L347,Regions!A:B,2,0)","v":{"$error":"#N/A"}},"Dublin",375000,"No","Yes","New Dwelling house /Apartment","greater than or equal to 38 sq metres and less than 125 sq metres"]
["16/01/2017","2017-01-16",1,"101 SILLOGE GARDENS, BALLYMUN, DUBLIN 11",{"$f":"VLOOKUP(L348,Regions!A:B,2,0)","v":"E"},"Dublin",168000,"No","No","Second-Hand Dwelling house /Apartment",null,"Dublin 11"]
["16/01/2017","2017-01-16",1,"11 FORTFIELD COURT, TERENURE, DUBLIN 6W",{"$f":"VLOOKUP(L349,Regions!A:B,2,0)","v":{"$error":"#N/A"}},"Dublin",192000,"No","No","Second-Hand Dwelling house /Apartment"]
["16/01/2017","2017-01-16",1,"11 POOLBEG QUAY, RINGSEND, DUBLIN 4",{"$f":"VLOOKUP(L350,Regions!A:B,2,0)","v":"W"},"Dublin",285000,"No","No","Second-Hand Dwelling house /Apartment",null,"Dublin 4"]
["16/01/2017","2017-01-16",1,"127 BRACKEN HILL, SANDYFORD, DUBLIN",{"$f":"VLOOKUP(L351,Regions!A:B,2,0)","v":"W"},"Dublin",215000,"No","No","Second-Hand Dwelling house /Apartment",null,"Dublin 18"]
["16/01/2017","2017-01-16",1,"14 THE ELMS, STILLORGAN RD, DUBLIN 4",{"$f":"VLOOKUP(L352,Regions!A:B,2,0)","v":"W"},"Dublin",500000,"No","No","Second-Hand Dwelling house /Apartment",null,"Dublin 4"]
["16/01/2017","2017-01-16",1,"19 CASTLE AVE, SWORDS, DUBLIN",{"$f":"VLOOKUP(L353,Regions!A:B,2,0)","v":{"$error":"#N/A"}},"Dublin",370000,"No","No","Second-Hand Dwelling house /Apartment"]
["16/01/2017","2017-01-16",1,"2 GREENWOOD AVENUE, AYRFIELD, DUBLIN 13",{"$f":"VLOOKUP(L354,Regions!A:B,2,0)","v":"S"},"Dublin",277000,"No","No","Second-Hand Dwelling house /Apartment",null,"Dublin 13"]
["16/01/2017","2017-01-16",1,"21 Dodderbrook Park, Ballycullen",{"$f":"VLOOKUP(L355,Regions!A:B,2,0)","v":"E"},"Dublin",347534,"No","Yes","New Dwelling house /Apartment","greater than or equal to 38 sq metres and less than 125 sq metres","Dublin 24"]
["16/01/2017","2017-01-16",1,"21 PARK DR, RATHMINES, DUBLIN 6",{"$f":"VLOOKUP(L356,Regions!A:B,2,0)","v":"W"},"Dublin",1400000,"No","No","Second-Hand Dwelling house /Apartment",null,"Dublin 6"]
["16/01/2017","2017-01-16",1,"22 GLEN ELLAN GROVE, SWORDS, CO DUBLIN",{"$f":"VLOOKUP(L357,Regions!A:B,2,0)","v":{"$error":"#N/A"}},"Dublin",305000,"No","No","Second-Hand Dwelling house /Apartment"]
["16/01/2017","2017-01-16",1,"26 WOODCLIFF HEIGHTS, HOWTH, DUBLIN",{"$f":"VLOOKUP(L358,Regions!A:B,2,0)","v":"S"},"Dublin",610000,"No","No","Second-Hand Dwelling house /Apartment",null,"Dublin 13"]
["16/01/2017","2017-01-16",1,"264 SEAPARK, MALAHIDE, DUBLIN",{"$f":"VLOOKUP(L359,Regions!A:B,2,0)","v":"N"},"Dublin",720000,"No","No","Second-Hand Dwelling house /Apartment",null,"Dublin 3"]
["16/01/2017","2017-01-16",1,"2A CARRIGLEA RISE, FIRHOUSE, DUBLIN 24",{"$f":"VLOOKUP(L360,Regions!A:B,2,0)","v":{"$error":"#N/A"}},"Dublin",350000,"No","No","Second-Hand Dwelling house /Apartment"]
["16/01/2017","2017-01-16",1,"3 LIFFEY VALLEY WALK, LIFFAEY VALLEY PARK, LUCAN",{"$f":"VLOOKUP(L361,Regions!A:B,2,0)","v":{"$error":"#N/A"}},"Dublin",275000,"No","No","Second-Hand Dwelling house /Apartment"]
["16/01/2017","2017-01-16",1,"32 WHEATFIELD RD, PORTMARNOCK, DUBLIN",{"$f":"VLOOKUP(L362,Regions!A:B,2,0)","v":"S"},"Dublin",572000,"No","No","Second-Hand Dwelling house /Apartment",null,"Dublin 13"]
["16/01/2017","2017-01-16",1,"35 DANIEL ST, DUBLIN 8",{"$f":"VLOOKUP(L363,Regions!A:B,2,0)","v":"S"},"Dublin",40000,"No","No","Second-Hand Dwelling house /Apartment",null,"Dublin 8"]
["16/01/2017","2017-01-16",1,"35 OTTERBROOK, RATHFARNHAM, DUBLIN 14",{"$f":"VLOOKUP(L364,Regions!A:B,2,0)","v":"E"},"Dublin",510000,"No","No","Second-Hand Dwelling house /Apartment",null,"Dublin 14"]
["16/01/2017","2017-01-16",1,"36 windmill Close, Rathcoole",{"$f":"VLOOKUP(L365,Regions!A:B,2,0)","v":{"$error":"#N/A"}},"Dublin",286344,"No","Yes","New Dwelling house /Apartment","greater than or equal to 38 sq metres and less than 125 sq metres"]
["16/01/2017","2017-01-16",1,"39 BLUEBELL ROAD, INCHICORE, DUBLIN 8",{"$f":"VLOOKUP(L366,Regions!A:B,2,0)","v":"N"},"Dublin",190000,"No","No","Second-Hand Dwelling house /Apartment",null,"Dublin 12"]
["16/01/2017","2017-01-16",1,"4 CHURCHWELL COURT, BALGRIFFIN, DUBLIN",{"$f":"VLOOKUP(L367,Regions!A:B,2,0)","v":"S"},"Dublin",15000,"Yes","No","Second-Hand Dwelling house /Apartment",null,"Dublin 13"]
["16/01/2017","2017-01-16",1,"4 Elder Heath Park, Elder Heath, Kiltipper Road",{"$f":"VLOOKUP(L368,Regions!A:B,2,0)","v":"E"},"Dublin",233480.17,"No","Yes","New Dwelling house /Apartment","greater than or equal to 125 sq metres","Dublin 24"]
["16/01/2017","2017-01-16",1,"42 Fairhaven Avenue, Castleknock Road, Castleknock",{"$f":"VLOOKUP(L369,Regions!A:B,2,0)","v":{"$error":"#N/A"}},"Dublin",440530,"No","Yes","New Dwelling house /Apartment","greater than or equal to 38 sq metres and less than 125 sq metres"]
["16/01/2017","2017-01-16",1,"50 CEDARHURST RD, PHOENIX PARK RACECOURSE, ASHTOWN DUBLIN 15",{"$f":"VLOOKUP(L370,Regions!A:B,2,0)","v":"S"},"Dublin",342000,"No","No","Second-Hand Dwelling house /Apartment",null,"Dublin 15"]
["16/01/2017","2017-01-16",1,"51-52 THOMAS STREET, DUBLIN 8",{"$f":"VLOOKUP(L371,Regions!A:B,2,0)","v":"S"},"Dublin",700000,"No","No","Second-Hand Dwelling house /Apartment",null,"Dublin 8"]
["16/01/2017","2017-01-16",1,"51 ST ANNES PK, SHANKILL, DUBLIN",{"$f":"VLOOKUP(L372,Regions!A:B,2,0)","v":"W"},"Dublin",370000,"No","No","Second-Hand Dwelling house /Apartment",null,"Dublin 18"]
["16/01/2017","2017-01-16",1,"6 BRAEMOR RD, CHURCHTOWN, DUBLIN 14",{"$f":"VLOOKUP(L373,Regions!A:B,2,0)","v":"E"},"Dublin",606000,"No","No","Second-Hand Dwelling house /Apartment",null,"Dublin 14"]
["16/01/2017","2017-01-16",1,"6 CLONARD PARK, DUNDRUM, DUBLIN 14",{"$f":"VLOOKUP(L374,Regions!A:B,2,0)","v":"E"},"Dublin",570000,"No","No","Second-Hand Dwelling house /Apartment",null,"Dublin 16"]
["16/01/2017","2017-01-16",1,"7 HYDE PARK AVE, BLACKROCK, DUBLIN",{"$f":"VLOOKUP(L375,Regions!A:B,2,0)","v":{"$error":"#N/A"}},"Dublin",870000,"No","No","Second-Hand Dwelling house /Apartment"]
["16/01/2017","2017-01-16",1,"8 SOMERVILLE GREEN, CRUMLIN, DUBLIN 12",{"$f":"VLOOKUP(L376,Regions!A:B,2,0)","v":"N"},"Dublin",275000,"No","No","Second-Hand Dwelling house /Apartment",null,"Dublin 12"]
["16/01/2017","2017-01-16",1,"8 THE COPSE, WOODPARK, BALLINTEER DUBLIN 16",{"$f":"VLOOKUP(L377,Regions!A:B,2,0)","v":"E"},"Dublin",260000,"No","No","Second-Hand Dwelling house /Apartment",null,"Dublin 16"]
["16/01/2017","2017-01-16",1,"9 Bridge Avenue, Royal Canal Park, Ratoath Road",{"$f":"VLOOKUP(L378,Regions!A:B,2,0)","v":"S"},"Dublin",334801,"No","Yes","New Dwelling house /Apartment","greater than or equal to 125 sq metres","Dublin 15"]
["16/01/2017","2017-01-16",1,"APT 1 279 RICHMOND ROAD, FAIRVIEW, DUBLIN 3",{"$f":"VLOOKUP(L379,Regions!A:B,2,0)","v":{"$error":"#N/A"}},"Dublin",80000,"No","No","Second-Hand Dwelling house /Apartment"]
["16/01/2017","2017-01-16",1,"APT 20, SHANOWEN HALL, SHANOWEN RD",{"$f":"VLOOKUP(L380,Regions!A:B,2,0)","v":"W"},"Dublin",276000,"No","No","Second-Hand Dwelling house /Apartment",null,"Dublin 9"]
["16/01/2017","2017-01-16",1,"APT 3, 30 KENILWORTH SQ, DUBLIN 6",{"$f":"VLOOKUP(L381,Regions!A:B,2,0)","v":"W"},"Dublin",287000,"No","No","Second-Hand Dwelling house /Apartment",null,"Dublin 6"]
["16/01/2017","2017-01-16",1,"CARRAIG MEWS, STRAND RD, KILLINEY",{"$f":"VLOOKUP(L382,Regions!A:B,2,0)","v":{"$error":"#N/A"}},"Dublin",780000,"No","No","Second-Hand Dwelling house /Apartment"]
["16/01/2017","2017-01-16",1,"KINCORA, 106 LOWER KIMMAGE ROAD, HAROLDS CROSS",{"$f":"VLOOKUP(L383,Regions!A:B,2,0)","v":{"$error":"#N/A"}},"Dublin",505000,"No","No","Second-Hand Dwelling house /Apartment"]
["17/01/2017","2017-01-17",1,"1 HOLLYSTOWN, DEMESNE, DUBLIN 15",{"$f":"VLOOKUP(L384,Regions!A:B,2,0)","v":"S"},"Dublin",465000,"No","No","Second-Hand Dwelling house /Apartment",null,"Dublin 15"]
["17/01/2017","2017-01-17",1,"1 THE COURTYARD, NEWTOWN AVE, BLACKROCK",{"$f":"VLOOKUP(L385,Regions!A:B,2,0)","v":{"$error":"#N/A"}},"Dublin",330000,"No","No","Second-Hand Dwelling house /Apartment"]
["17/01/2017","2017-01-17",1,"106 GRATTAN LODGE, DONAGHMEDE, DUBLIN 13",{"$f":"VLOOKUP(L386,Regions!A:B,2,0)","v":"S"},"Dublin",350000,"No","No","Second-Hand Dwelling house /Apartment",null,"Dublin 13"]
["17/01/2017",{"$f":"DATE(RIGHT(A387,4),MID(A387,4,2),LEFT(A387,2))","v":"2017-01-17"},{"$f":"IF(ISERROR(MONTH(A387)),MONTH(B387),MONTH(A387))","v":1},"12 Blackberry Hill, Carrickmines, Dublin 18",{"$f":"VLOOKUP(L387,Regions!A:B,2,0)","v":"W"},"Dublin",528634.36,"No","Yes","New Dwelling house /Apartment","greater than or equal to 38 sq metres and less than 125 sq metres","Dublin 18"]
["17/01/2017","2017-01-17",1,"13 TORCAILL, PORTMARNOCK, DUBLIN",{"$f":"VLOOKUP(L388,Regions!A:B,2,0)","v":"S"},"Dublin",525000,"No","No","Second-Hand Dwelling house /Apartment",null,"Dublin 13"]
["17/01/2017","2017-01-17",1,"14 The Lawn, Hansfield Wood, Hansfield",{"$f":"VLOOKUP(L389,Regions!A:B,2,0)","v":"S"},"Dublin",239837.4,"No","Yes","New Dwelling house /Apartment","less than 38 sq metres","Dublin 15"]
["17/01/2017","2017-01-17",1,"149 BALLYGALL PARADE, FINGLAS, DUBLIN 11",{"$f":"VLOOKUP(L390,Regions!A:B,2,0)","v":"E"},"Dublin",165000,"No","No","Second-Hand Dwelling house /Apartment",null,"Dublin 11"]
["17/01/2017","2017-01-17",1,"149 CLONLIFFE RD, DRUMCONDRA, DUBLIN 3",{"$f":"VLOOKUP(L391,Regions!A:B,2,0)","v":"N"},"Dublin",477000,"No","No","Second-Hand Dwelling house /Apartment",null,"Dublin 3"]
["17/01/2017","2017-01-17",1,"15 SWORDS MANOR WAY, SWORDS, DUBLIN",{"$f":"VLOOKUP(L392,Regions!A:B,2,0)","v":{"$error":"#N/A"}},"Dublin",281000,"No","No","Second-Hand Dwelling house /Apartment"]
["17/01/2017","2017-01-17",1,"17 BROOKVILLE PARK, MALAHIDE RD, DUBLIN 5",{"$f":"VLOOKUP(L393,Regions!A:B,2,0)","v":"S"},"Dublin",397500,"No","No","Second-Hand Dwelling house /Apartment",null,"Dublin 5"]
["17/01/2017","2017-01-17",1,"17 CASTLELAND, BALBRIGGAN, PARK VIEW",{"$f":"VLOOKUP(L394,Regions!A:B,2,0)","v":{"$error":"#N/A"}},"Dublin",220000,"No","No","Second-Hand Dwelling house /Apartment"]
["17/01/2017","2017-01-17",1,"176 CROSBIES YARD, OSSORY RD, DUBLIN 3",{"$f":"VLOOKUP(L395,Regions!A:B,2,0)","v":"N"},"Dublin",195000,"No","No","Second-Hand Dwelling house /Apartment",null,"Dublin 3"]
["17/01/2017","2017-01-17",1,"18 NEWLAND MANOR DR, CLONDLAKIN, DUBLIN 22",{"$f":"VLOOKUP(L396,Regions!A:B,2,0)","v":"E"},"Dublin",290000,"No","No","Second-Hand Dwelling house /Apartment",null,"Dublin 22"]
["17/01/2017","2017-01-17",1,"18 RATHMINES TOWN CENTRE, RATHMINES ROAD LOWER, RATHMINES",{"$f":"VLOOKUP(L397,Regions!A:B,2,0)","v":"W"},"Dublin",278000,"No","No","Second-Hand Dwelling house /Apartment",null,"Dublin 6"]
["17/01/2017","2017-01-17",1,"19 NORTHUMBERLAND RD, DUBLIN 4, DUBLIN",{"$f":"VLOOKUP(L398,Regions!A:B,2,0)","v":"W"},"Dublin",300000,"No","No","Second-Hand Dwelling house /Apartment",null,"Dublin 4"]
["17/01/2017","2017-01-17",1,"2 CARRIGMORE MANOR, SAGGART, DUBLIN 24",{"$f":"VLOOKUP(L399,Regions!A:B,2,0)","v":"E"},"Dublin",210000,"No","No","Second-Hand Dwelling house /Apartment",null,"Dublin 24"]
["17/01/2017","2017-01-17",1,"21 PRIORY DR, STILLORGAN, DUBLIN",{"$f":"VLOOKUP(L400,Regions!A:B,2,0)","v":{"$error":"#N/A"}},"Dublin",815000,"No","No","Second-Hand Dwelling house /Apartment"]
["17/01/2017","2017-01-17",1,"26 ST CONLETHS RD, WALKINSTOWN DUBLIN 12, DUBLIN",{"$f":"VLOOKUP(L401,Regions!A:B,2,0)","v":"N"},"Dublin",300000,"No","No","Second-Hand Dwelling house /Apartment",null,"Dublin 12"]
["17/01/2017","2017-01-17",1,"27 The Terrace, Robswall, Malahide",{"$f":"VLOOKUP(L402,Regions!A:B,2,0)","v":{"$error":"#N/A"}},"Dublin",497797,"No","Yes","New Dwelling house /Apartment","greater than or equal to 125 sq metres"]
["17/01/2017","2017-01-17",1,"28 SCARLET ROW, Essex Street West, DUBLIN 2",{"$f":"VLOOKUP(L403,Regions!A:B,2,0)","v":"S"},"Dublin",235000,"No","No","Second-Hand Dwelling house /Apartment",null,"Dublin 8"]
["17/01/2017","2017-01-17",1,"3 Diswellstown Chase, Castleknock, Dublin 15",{"$f":"VLOOKUP(L404,Regions!A:B,2,0)","v":"S"},"Dublin",365638.76,"No","Yes","New Dwelling house /Apartment","greater than or equal to 125 sq metres","Dublin 15"]
["17/01/2017","2017-01-17",1,"32 Croftwell Square, School Road, Rathcoole",{"$f":"VLOOKUP(L405,Regions!A:B,2,0)","v":{"$error":"#N/A"}},"Dublin",308370.03999999998,"No","Yes","New Dwelling house /Apartment","greater than or equal to 38 sq metres and less than 125 sq metres"]
["17/01/2017","2017-01-17",1,"36 TEMPLE HALL, MOUNT ST ANNES, MILLTOWN DUBLIN 6",{"$f":"VLOOKUP(L406,Regions!A:B,2,0)","v":{"$error":"#N/A"}},"Dublin",565000,"No","No","Second-Hand Dwelling house /Apartment"]
["17/01/2017","2017-01-17",1,"36 THE VIEW, CARRICKMINES MANOR, GLENAMUCK RD",{"$f":"VLOOKUP(L407,Regions!A:B,2,0)","v":"W"},"Dublin",300000,"No","No","Second-Hand Dwelling house /Apartment",null,"Dublin 18"]
["17/01/2017","2017-01-17",1,"4 Wendover, Beechpark Avenue, Castleknock",{"$f":"VLOOKUP(L408,Regions!A:B,2,0)","v":"S"},"Dublin",506608,"No","Yes","New Dwelling house /Apartment","greater than or equal to 38 sq metres and less than 125 sq metres","Dublin 15"]
["17/01/2017","2017-01-17",1,"48 FITZWILLIAM POINT, FITZWILLIAM QUAY, RINGSEND DUBLIN 4",{"$f":"VLOOKUP(L409,Regions!A:B,2,0)","v":"W"},"Dublin",245000,"No","No","Second-Hand Dwelling house /Apartment",null,"Dublin 4"]
["17/01/2017","2017-01-17",1,"48 GORDON ST, RINGSEND, DUBLIN 4",{"$f":"VLOOKUP(L410,Regions!A:B,2,0)","v":"W"},"Dublin",380000,"No","No","Second-Hand Dwelling house /Apartment",null,"Dublin 4"]
["17/01/2017","2017-01-17",1,"5 ST MARGARET'S ROAD, MALAHIDE, CO DUBLIN",{"$f":"VLOOKUP(L411,Regions!A:B,2,0)","v":{"$error":"#N/A"}},"Dublin",970000,"No","No","Second-Hand Dwelling house /Apartment"]
["17/01/2017","2017-01-17",1,"52 Diswellstown Way, Castleknock, Dublin 15",{"$f":"VLOOKUP(L412,Regions!A:B,2,0)","v":"S"},"Dublin",405286,"No","Yes","New Dwelling house /Apartment","greater than or equal to 38 sq metres and less than 125 sq metres","Dublin 15"]
["17/01/2017","2017-01-17",1,"57 CALEDON RD, EAST WALL, DUBLIN 13",{"$f":"VLOOKUP(L413,Regions!A:B,2,0)","v":"N"},"Dublin",210000,"No","No","Second-Hand Dwelling house /Apartment",null,"Dublin 3"]
["17/01/2017","2017-01-17",1,"57 NEWCASTLE MANOR SQ, MAIN ST, NEWCASTLE",{"$f":"VLOOKUP(L414,Regions!A:B,2,0)","v":"E"},"Dublin",215000,"No","No","Second-Hand Dwelling house /Apartment",null,"Dublin 22"]
["17/01/2017","2017-01-17",1,"6 BROADFIELD COURT, BROADFIELD MANOR, RATHCOOLE",{"$f":"VLOOKUP(L415,Regions!A:B,2,0)","v":"E"},"Dublin",272000,"No","No","Second-Hand Dwelling house /Apartment",null,"Dublin 24"]
["17/01/2017","2017-01-17",1,"6 FARNEY PARK, SANDYMOUNT, DUBLIN 4",{"$f":"VLOOKUP(L416,Regions!A:B,2,0)","v":"W"},"Dublin",1030000,"No","No","Second-Hand Dwelling house /Apartment",null,"Dublin 4"]
["17/01/2017","2017-01-17",1,"64 WARREN AVE, CARPENTERSTOWN, DUBLIN",{"$f":"VLOOKUP(L417,Regions!A:B,2,0)","v":"S"},"Dublin",495000,"No","No","Second-Hand Dwelling house /Apartment",null,"Dublin 15"]
["17/01/2017","2017-01-17",1,"65 66 THE PAVILION, MARINE RD, DUN LAOGHAIRE",{"$f":"VLOOKUP(L418,Regions!A:B,2,0)","v":{"$error":"#N/A"}},"Dublin",905000,"No","No","Second-Hand Dwelling house /Apartment"]
["17/01/2017","2017-01-17",1,"69 KINCORA AVE, CLONTARF, DUBLIN 3",{"$f":"VLOOKUP(L419,Regions!A:B,2,0)","v":"N"},"Dublin",625000,"No","No","Second-Hand Dwelling house /Apartment",null,"Dublin 3"]
["17/01/2017","2017-01-17",1,"7 Dalriada Walk, Knocklyon, Dublin 16",{"$f":"VLOOKUP(L420,Regions!A:B,2,0)","v":"E"},"Dublin",306607,"No","Yes","New Dwelling house /Apartment","less than 38 sq metres","Dublin 16"]
["17/01/2017","2017-01-17",1,"8 Blackberry Hill, Carrickmines, Dublin 18",{"$f":"VLOOKUP(L421,Regions!A:B,2,0)","v":"W"},"Dublin",528634.36,"No","Yes","New Dwelling house /Apartment","greater than or equal to 38 sq metres and less than 125 sq metres","Dublin 18"]
["17/01/2017","2017-01-17",1,"88 PRIORS GATE, GREENHILLS RD EXTENSION, TALLAGHT DUBLIN 24",{"$f":"VLOOKUP(L422,Regions!A:B,2,0)","v":"E"},"Dublin",141000,"No","No","Second-Hand Dwelling house /Apartment",null,"Dublin 24"]
["17/01/2017","2017-01-17",1,"96 BALALLY DR, DUNDRUM, DUBLIN 16",{"$f":"VLOOKUP(L423,Regions!A:B,2,0)","v":"E"},"Dublin",545000,"No","No","Second-Hand Dwelling house /Apartment",null,"Dublin 16"]
["17/01/2017","2017-01-17",1,"99A STRAND STREET, SKERRIES, CO.DUBLIN",{"$f":"VLOOKUP(L424,Regions!A:B,2,0)","v":{"$error":"#N/A"}},"Dublin",125000,"No","No","Second-Hand Dwelling house /Apartment"]
["17/01/2017","2017-01-17",1,"99B STRAND ST, SKERRIES, DUBLIN",{"$f":"VLOOKUP(L425,Regions!A:B,2,0)","v":{"$error":"#N/A"}},"Dublin",125000,"No","No","Second-Hand Dwelling house /Apartment"]
["17/01/2017","2017-01-17",1,"99C STRAND STREET, SKERRIES, CO DUBLIN",{"$f":"VLOOKUP(L426,Regions!A:B,2,0)","v":{"$error":"#N/A"}},"Dublin",200000,"No","No","Second-Hand Dwelling house /Apartment"]
["17/01/2017","2017-01-17",1,"Apartment 247, Kilmainham Square, Inchicore Road",{"$f":"VLOOKUP(L427,Regions!A:B,2,0)","v":"S"},"Dublin",435000,"No","Yes","New Dwelling house /Apartment","greater than or equal to 38 sq metres and less than 125 sq metres","Dublin 8"]
["17/01/2017","2017-01-17",1,"APT 24, KIRKWOOD, PARK AVENUE",{"$f":"VLOOKUP(L428,Regions!A:B,2,0)","v":{"$error":"#N/A"}},"Dublin",350000,"No","No","Second-Hand Dwelling house /Apartment"]
["17/01/2017","2017-01-17",1,"FERN COTTAGE, LOWER RD, SHANKILL",{"$f":"VLOOKUP(L429,Regions!A:B,2,0)","v":"W"},"Dublin",250000,"No","No","Second-Hand Dwelling house /Apartment",null,"Dublin 18"]
["17/01/2017","2017-01-17",1,"REAR 88 NEW CABRA RD, CABRA, DUBLIN 7",{"$f":"VLOOKUP(L430,Regions!A:B,2,0)","v":"W"},"Dublin",400000,"No","No","Second-Hand Dwelling house /Apartment",null,"Dublin 7"]
["17/01/2017","2017-01-17",1,"THE LODGE, GLENBRIAN HALL, 98 HOWTH ROAD  CLONTARF",{"$f":"VLOOKUP(L431,Regions!A:B,2,0)","v":{"$error":"#N/A"}},"Dublin",520000,"No","No","Second-Hand Dwelling house /Apartment"]
["17/01/2017","2017-01-17",1,"Unit 6 The Avenue, Scholarstown Wood, Scholarstown Road",{"$f":"VLOOKUP(L432,Regions!A:B,2,0)","v":{"$error":"#N/A"}},"Dublin",400881,"No","Yes","New Dwelling house /Apartment","greater than or equal to 125 sq metres"]
["18/01/2017","2017-01-18",1,"1 The Lodge, Hersil Wood, Knocklyon",{"$f":"VLOOKUP(L433,Regions!A:B,2,0)","v":"E"},"Dublin",612335,"No","Yes","New Dwelling house /Apartment","greater than or equal to 38 sq metres and less than 125 sq metres","Dublin 16"]
["18/01/2017","2017-01-18",1,"10 SAUL RD, CRUMLIN, DUBLIN 12",{"$f":"VLOOKUP(L434,Regions!A:B,2,0)","v":"N"},"Dublin",245000,"No","No","Second-Hand Dwelling house /Apartment",null,"Dublin 12"]
["18/01/2017","2017-01-18",1,"10 WESTON CLOSE, WESTON PARK, LUCAN",{"$f":"VLOOKUP(L435,Regions!A:B,2,0)","v":{"$error":"#N/A"}},"Dublin",405000,"No","No","Second-Hand Dwelling house /Apartment"]
["18/01/2017","2017-01-18",1,"106 COLLINS AVE EAST, DUBLIN 3, DUBLIN",{"$f":"VLOOKUP(L436,Regions!A:B,2,0)","v":"S"},"Dublin",362500,"No","No","Second-Hand Dwelling house /Apartment",null,"Dublin 5"]
["18/01/2017","2017-01-18",1,"11 WARREN CRESCENT, WARREN PARK, CASTLEKNOCK DUBLIN 15",{"$f":"VLOOKUP(L437,Regions!A:B,2,0)","v":"S"},"Dublin",375000,"No","No","Second-Hand Dwelling house /Apartment",null,"Dublin 15"]
["18/01/2017","2017-01-18",1,"12 RADCLIFFE HALL, ST JOHNS RD, SANDYMOUNT",{"$f":"VLOOKUP(L438,Regions!A:B,2,0)","v":"W"},"Dublin",625790,"No","No","Second-Hand Dwelling house /Apartment",null,"Dublin 4"]
["18/01/2017","2017-01-18",1,"12 WASHINGTON ST, SOUTH CIRCULAR RD, DUBLIN 8",{"$f":"VLOOKUP(L439,Regions!A:B,2,0)","v":"S"},"Dublin",530000,"No","No","Second-Hand Dwelling house /Apartment",null,"Dublin 8"]
["18/01/2017","2017-01-18",1,"13 GLENCAIRN RD, THE GALLOPS, LEOPARDSTOWN DUBLIN 18",{"$f":"VLOOKUP(L440,Regions!A:B,2,0)","v":"W"},"Dublin",640000,"No","No","Second-Hand Dwelling house /Apartment",null,"Dublin 18"]
["18/01/2017","2017-01-18",1,"13 PHIBSBOROUGH AVE, DUBLIN 7, DUBLIN",{"$f":"VLOOKUP(L441,Regions!A:B,2,0)","v":"W"},"Dublin",343500,"No","No","Second-Hand Dwelling house /Apartment",null,"Dublin 7"]
["18/01/2017","2017-01-18",1,"13 WHITETHORN CRESCENT, ARTANE, DUBLIN 5",{"$f":"VLOOKUP(L442,Regions!A:B,2,0)","v":"S"},"Dublin",342000,"No","No","Second-Hand Dwelling house /Apartment",null,"Dublin 5"]
["18/01/2017","2017-01-18",1,"16 BALLYOWEN HALL, BALLYOWEN LANE, LUCAN",{"$f":"VLOOKUP(L443,Regions!A:B,2,0)","v":{"$error":"#N/A"}},"Dublin",185000,"No","No","Second-Hand Dwelling house /Apartment"]
["18/01/2017","2017-01-18",1,"173 INCHICORE RD, INCHICORE, DUBLIN 8",{"$f":"VLOOKUP(L444,Regions!A:B,2,0)","v":"S"},"Dublin",278000,"No","No","Second-Hand Dwelling house /Apartment",null,"Dublin 8"]
["18/01/2017","2017-01-18",1,"18 BROADFIELD HALL, TALLAGHT CROSS, DUBLIN 24",{"$f":"VLOOKUP(L445,Regions!A:B,2,0)","v":{"$error":"#N/A"}},"Dublin",135000,"No","No","Second-Hand Dwelling house /Apartment"]
["18/01/2017","2017-01-18",1,"2  Orwell Park Gardens, Rathgar, Dublin 6",{"$f":"VLOOKUP(L446,Regions!A:B,2,0)","v":"W"},"Dublin",895000,"No","Yes","New Dwelling house /Apartment","greater than or equal to 125 sq metres","Dublin 6"]
["18/01/2017","2017-01-18",1,"2 THE OLD SCHOOLHOUSE, PORTRANE, DONABATE",{"$f":"VLOOKUP(L447,Regions!A:B,2,0)","v":{"$error":"#N/A"}},"Dublin",395000,"No","No","Second-Hand Dwelling house /Apartment"]
["18/01/2017","2017-01-18",1,"2 WINDMILL SQ, PORTERSTOWN, DUBLIN 15",{"$f":"VLOOKUP(L448,Regions!A:B,2,0)","v":"S"},"Dublin",254000,"No","No","Second-Hand Dwelling house /Apartment",null,"Dublin 15"]
["18/01/2017","2017-01-18",1,"21 FITZWILLIAM QUAY, RINGSEND, DUBLIN 4",{"$f":"VLOOKUP(L449,Regions!A:B,2,0)","v":{"$error":"#N/A"}},"Dublin",325000,"No","No","Second-Hand Dwelling house /Apartment"]
["18/01/2017","2017-01-18",1,"22 PEYTON DRIVE, STONEY ROAD, RATHCOOLE",{"$f":"VLOOKUP(L450,Regions!A:B,2,0)","v":{"$error":"#N/A"}},"Dublin",346000,"No","No","Second-Hand Dwelling house /Apartment"]
["18/01/2017",{"$f":"DATE(RIGHT(A451,4),MID(A451,4,2),LEFT(A451,2))","v":"2017-01-18"},{"$f":"IF(ISERROR(MONTH(A451)),MONTH(B451),MONTH(A451))","v":1},"227 GRANGE RD, RATHFARNHAM, DUBLIN 16",{"$f":"VLOOKUP(L451,Regions!A:B,2,0)","v":"E"},"Dublin",577500,"No","No","Second-Hand Dwelling house /Apartment",null,"Dublin 16"]
["18/01/2017","2017-01-18",1,"25 Dodderbrook Park, Ballycullen",{"$f":"VLOOKUP(L452,Regions!A:B,2,0)","v":"E"},"Dublin",343612,"No","Yes","New Dwelling house /Apartment","greater than or equal to 38 sq metres and less than 125 sq metres","Dublin 24"]
["18/01/2017","2017-01-18",1,"27 CEDARBROOK WALK, CHERRY ORCHARD, DUBLIN 10",{"$f":"VLOOKUP(L453,Regions!A:B,2,0)","v":"E"},"Dublin",168190.67,"Yes","No","Second-Hand Dwelling house /Apartment",null,"Dublin 10"]
["18/01/2017","2017-01-18",1,"28 DAVITT PARK, BALLYBRACK, DUBLIN",{"$f":"VLOOKUP(L454,Regions!A:B,2,0)","v":{"$error":"#N/A"}},"Dublin",290000,"No","No","Second-Hand Dwelling house /Apartment"]
["18/01/2017","2017-01-18",1,"3 GLENBRAE COURT, SHANKILL, DUBLIN",{"$f":"VLOOKUP(L455,Regions!A:B,2,0)","v":"W"},"Dublin",330000,"No","No","Second-Hand Dwelling house /Apartment",null,"Dublin 18"]
["18/01/2017","2017-01-18",1,"3 SERPENTINE AVENUE, BALLSBRIDGE, DUBLIN 4",{"$f":"VLOOKUP(L456,Regions!A:B,2,0)","v":"W"},"Dublin",875000,"No","No","Second-Hand Dwelling house /Apartment",null,"Dublin 4"]
["18/01/2017","2017-01-18",1,"3 SHAMROCK PLACE, NORTH STRAND DUBLIN 3, DUBLIN",{"$f":"VLOOKUP(L457,Regions!A:B,2,0)","v":"S"},"Dublin",257000,"No","No","Second-Hand Dwelling house /Apartment",null,"Dublin 1"]
["18/01/2017","2017-01-18",1,"36 CASTLEFORBES SQ DUBLIN 1, DUBLIN 1, DUBLIN",{"$f":"VLOOKUP(L458,Regions!A:B,2,0)","v":"S"},"Dublin",70723.66,"Yes","No","Second-Hand Dwelling house /Apartment",null,"Dublin 1"]
["18/01/2017","2017-01-18",1,"39 CHERRYFIELD AVE, WALKINSTOWN, DUBLIN 12",{"$f":"VLOOKUP(L459,Regions!A:B,2,0)","v":"N"},"Dublin",405000,"No","No","Second-Hand Dwelling house /Apartment",null,"Dublin 12"]
["18/01/2017","2017-01-18",1,"4 OXFORD TERRACE, EAST WALL, DUBLIN 3",{"$f":"VLOOKUP(L460,Regions!A:B,2,0)","v":"N"},"Dublin",427500,"No","No","Second-Hand Dwelling house /Apartment",null,"Dublin 3"]
["18/01/2017","2017-01-18",1,"49 Diswellstown Way, Castleknock",{"$f":"VLOOKUP(L461,Regions!A:B,2,0)","v":"S"},"Dublin",439647,"No","Yes","New Dwelling house /Apartment","greater than or equal to 38 sq metres and less than 125 sq metres","Dublin 15"]
["18/01/2017","2017-01-18",1,"55 Sion Hill Park, Sion Hill Road, Drumcondra",{"$f":"VLOOKUP(L462,Regions!A:B,2,0)","v":"W"},"Dublin",560975,"No","Yes","New Dwelling house /Apartment","greater than or equal to 125 sq metres","Dublin 9"]
["18/01/2017","2017-01-18",1,"58 CREMONA RD, BALLYFERMOT, DUBLIN 10",{"$f":"VLOOKUP(L463,Regions!A:B,2,0)","v":"E"},"Dublin",191000,"No","No","Second-Hand Dwelling house /Apartment",null,"Dublin 10"]
["18/01/2017","2017-01-18",1,"60 The Sanderling, Barnageeragh Cove, Barnageeragh",{"$f":"VLOOKUP(L464,Regions!A:B,2,0)","v":{"$error":"#N/A"}},"Dublin",334800,"No","Yes","New Dwelling house /Apartment","greater than or equal to 38 sq metres and less than 125 sq metres"]
["18/01/2017","2017-01-18",1,"64 VERBENA AVE, BAYSIDE, DUBLIN 13",{"$f":"VLOOKUP(L465,Regions!A:B,2,0)","v":"S"},"Dublin",415000,"No","No","Second-Hand Dwelling house /Apartment",null,"Dublin 13"]
["18/01/2017","2017-01-18",1,"77 COLLEGE VIEW, BALLYMUN, DUBLIN 11",{"$f":"VLOOKUP(L466,Regions!A:B,2,0)","v":"E"},"Dublin",141500,"No","No","Second-Hand Dwelling house /Apartment",null,"Dublin 11"]
["18/01/2017","2017-01-18",1,"8 RUTLEDGE TERRACE, DUBLIN 8, DUBLIN",{"$f":"VLOOKUP(L467,Regions!A:B,2,0)","v":"S"},"Dublin",465000,"No","No","Second-Hand Dwelling house /Apartment",null,"Dublin 8"]
["18/01/2017","2017-01-18",1,"9 DODDER DALE, RATHFARNHAM, DUBLIN 14",{"$f":"VLOOKUP(L468,Regions!A:B,2,0)","v":"E"},"Dublin",385200,"No","No","Second-Hand Dwelling house /Apartment",null,"Dublin 14"]
["18/01/2017","2017-01-18",1,"93 THORNEFIELD SQUARE, CLONDALKIN, DUBLIN 22",{"$f":"VLOOKUP(L469,Regions!A:B,2,0)","v":{"$error":"#N/A"}},"Dublin",137000,"No","No","Second-Hand Dwelling house /Apartment"]
["18/01/2017","2017-01-18",1,"APT 22, 18 LOWER BAGGOT ST, DUBLIN 2",{"$f":"VLOOKUP(L470,Regions!A:B,2,0)","v":"E"},"Dublin",2285000,"No","No","Second-Hand Dwelling house /Apartment",null,"Dublin 2"]
["18/01/2017","2017-01-18",1,"APT 52, THE HAMPTON, SANTRY CROSS DUBLIN 11",{"$f":"VLOOKUP(L471,Regions!A:B,2,0)","v":"E"},"Dublin",102202.64,"No","No","Second-Hand Dwelling house /Apartment",null,"Dublin 11"]
["18/01/2017","2017-01-18",1,"APT 69, SMITHFIELD VILLAGE, SMITHFIELD DUBLIN 7",{"$f":"VLOOKUP(L472,Regions!A:B,2,0)","v":"W"},"Dublin",275000,"No","No","Second-Hand Dwelling house /Apartment",null,"Dublin 7"]
["18/01/2017","2017-01-18",1,"MARANTHA, SORRENTO RD, DALKEY",{"$f":"VLOOKUP(L473,Regions!A:B,2,0)","v":{"$error":"#N/A"}},"Dublin",630000,"No","No","Second-Hand Dwelling house /Apartment"]
["19/01/2017","2017-01-19",1,"1 Bridge Avenue, Royal Canal Park, Ratoath Road",{"$f":"VLOOKUP(L474,Regions!A:B,2,0)","v":"W"},"Dublin",425000,"No","Yes","New Dwelling house /Apartment","greater than or equal to 38 sq metres and less than 125 sq metres","Dublin 7"]
["19/01/2017","2017-01-19",1,"1 THE GREEN, HAZELBROOK SQUARE, WHITEHALL ROAD",{"$f":"VLOOKUP(L475,Regions!A:B,2,0)","v":"E"},"Dublin",563877,"No","Yes","New Dwelling house /Apartment","greater than or equal to 125 sq metres","Dublin 14"]
["19/01/2017","2017-01-19",1,"102 MOYLARAGH CRESCENT, BALBRIGGAN, DUBLIN",{"$f":"VLOOKUP(L476,Regions!A:B,2,0)","v":{"$error":"#N/A"}},"Dublin",165000,"No","No","Second-Hand Dwelling house /Apartment"]
["19/01/2017","2017-01-19",1,"11 DRYNAM GLEN, KINSEALY, DUBLIN",{"$f":"VLOOKUP(L477,Regions!A:B,2,0)","v":{"$error":"#N/A"}},"Dublin",175000,"No","No","Second-Hand Dwelling house /Apartment"]
["19/01/2017","2017-01-19",1,"111 BALLYROAN RD, RATHFARNHAM, DUBLIN 16",{"$f":"VLOOKUP(L478,Regions!A:B,2,0)","v":"E"},"Dublin",555000,"No","No","Second-Hand Dwelling house /Apartment",null,"Dublin 16"]
["19/01/2017","2017-01-19",1,"12 CASTLEVIEW ROW, SWORDS, CO DUBLIN",{"$f":"VLOOKUP(L479,Regions!A:B,2,0)","v":{"$error":"#N/A"}},"Dublin",241000,"No","No","Second-Hand Dwelling house /Apartment"]
["19/01/2017","2017-01-19",1,"12 ST. DECLANS, TERRANCE, MARINO",{"$f":"VLOOKUP(L480,Regions!A:B,2,0)","v":{"$error":"#N/A"}},"Dublin",380000,"No","No","Second-Hand Dwelling house /Apartment"]
["19/01/2017","2017-01-19",1,"13 ASHDALE RD, KINSEALY, COUNTY DUBLIN",{"$f":"VLOOKUP(L481,Regions!A:B,2,0)","v":{"$error":"#N/A"}},"Dublin",290000,"No","No","Second-Hand Dwelling house /Apartment"]
["19/01/2017","2017-01-19",1,"13 BLACKHEATH AVE, CLONTARF, DUBLIN 3",{"$f":"VLOOKUP(L482,Regions!A:B,2,0)","v":"N"},"Dublin",735000,"No","No","Second-Hand Dwelling house /Apartment",null,"Dublin 3"]
["19/01/2017","2017-01-19",1,"13 Parkside Walk, Parkside, Malahide Road",{"$f":"VLOOKUP(L483,Regions!A:B,2,0)","v":"S"},"Dublin",277532,"No","Yes","New Dwelling house /Apartment","greater than or equal to 38 sq metres and less than 125 sq metres","Dublin 13"]
["19/01/2017","2017-01-19",1,"14 BELFRY MEADOWS, CITYWEST RD, TALLAGHT DUBLIN 24",{"$f":"VLOOKUP(L484,Regions!A:B,2,0)","v":"E"},"Dublin",148000,"Yes","No","Second-Hand Dwelling house /Apartment",null,"Dublin 24"]
["19/01/2017","2017-01-19",1,"145 PEARSE STREET, DUBLIN 2",{"$f":"VLOOKUP(L485,Regions!A:B,2,0)","v":{"$error":"#N/A"}},"Dublin",562500,"No","No","Second-Hand Dwelling house /Apartment"]
["19/01/2017","2017-01-19",1,"15 ELM GROVE, CARYSFORT AVE, BLACKROCK",{"$f":"VLOOKUP(L486,Regions!A:B,2,0)","v":{"$error":"#N/A"}},"Dublin",895000,"No","No","Second-Hand Dwelling house /Apartment"]
["19/01/2017","2017-01-19",1,"2 Sheils Court, Rathcoole, Co. Dublin",{"$f":"VLOOKUP(L487,Regions!A:B,2,0)","v":{"$error":"#N/A"}},"Dublin",365638,"No","Yes","New Dwelling house /Apartment","greater than or equal to 125 sq metres"]
["19/01/2017","2017-01-19",1,"2 ST DOMINICS TERACE, TALLAGHT, DUBLIN 24",{"$f":"VLOOKUP(L488,Regions!A:B,2,0)","v":"E"},"Dublin",150000,"No","No","Second-Hand Dwelling house /Apartment",null,"Dublin 24"]
["19/01/2017","2017-01-19",1,"21 CHURCHVIEW AVE, KILLINEY, DUBLIN",{"$f":"VLOOKUP(L489,Regions!A:B,2,0)","v":{"$error":"#N/A"}},"Dublin",625000,"No","No","Second-Hand Dwelling house /Apartment"]
["19/01/2017","2017-01-19",1,"25 ORCHARDSTOWN PARK, RATHFARNHAM, DUBLIN 14",{"$f":"VLOOKUP(L490,Regions!A:B,2,0)","v":"E"},"Dublin",597000,"No","No","Second-Hand Dwelling house /Apartment",null,"Dublin 14"]
["19/01/2017","2017-01-19",1,"26 WEAVERS HALL, LEVMOSS PARK, LEOPARDSTOWN DUBLIN 18",{"$f":"VLOOKUP(L491,Regions!A:B,2,0)","v":"W"},"Dublin",205000,"No","No","Second-Hand Dwelling house /Apartment",null,"Dublin 18"]
["19/01/2017","2017-01-19",1,"28 Ballygossan Park, Golf Links Road, Skerries",{"$f":"VLOOKUP(L492,Regions!A:B,2,0)","v":{"$error":"#N/A"}},"Dublin",278550,"No","Yes","New Dwelling house /Apartment","greater than or equal to 38 sq metres and less than 125 sq metres"]
["19/01/2017","2017-01-19",1,"29 BRIDESGLEN AVE, SWORDS, DUBLIN",{"$f":"VLOOKUP(L493,Regions!A:B,2,0)","v":{"$error":"#N/A"}},"Dublin",339500,"No","No","Second-Hand Dwelling house /Apartment"]
["19/01/2017","2017-01-19",1,"30 Belarmine Grove, Belarmine Woods, Stepaside",{"$f":"VLOOKUP(L494,Regions!A:B,2,0)","v":{"$error":"#N/A"}},"Dublin",352422.9,"No","Yes","New Dwelling house /Apartment","greater than or equal to 125 sq metres"]
["19/01/2017","2017-01-19",1,"32 ARDCIAN PARK, RATHBEAG RD, SWORDS",{"$f":"VLOOKUP(L495,Regions!A:B,2,0)","v":{"$error":"#N/A"}},"Dublin",313000,"No","No","Second-Hand Dwelling house /Apartment"]
["19/01/2017","2017-01-19",1,"378 CASHEL RD, CRUMLIN, DUBLIN",{"$f":"VLOOKUP(L496,Regions!A:B,2,0)","v":"N"},"Dublin",215000,"No","No","Second-Hand Dwelling house /Apartment",null,"Dublin 12"]
["19/01/2017","2017-01-19",1,"4 usher park, knocksedan demesne, swords",{"$f":"VLOOKUP(L497,Regions!A:B,2,0)","v":{"$error":"#N/A"}},"Dublin",436123,"No","Yes","New Dwelling house /Apartment","greater than or equal to 125 sq metres"]
["19/01/2017","2017-01-19",1,"44 MARLBOROUGH RD, DONNY BROOK, DUBLIN 4",{"$f":"VLOOKUP(L498,Regions!A:B,2,0)","v":"W"},"Dublin",1500025,"No","No","Second-Hand Dwelling house /Apartment",null,"Dublin 4"]
["19/01/2017","2017-01-19",1,"48 CASTLEGATE DENE, ADAMSTOWN CASTLE, DUBLIN",{"$f":"VLOOKUP(L499,Regions!A:B,2,0)","v":{"$error":"#N/A"}},"Dublin",155000,"No","No","Second-Hand Dwelling house /Apartment"]
["19/01/2017","2017-01-19",1,"49 PARKMORE DR, TERENURE, DUBLIN 6W",{"$f":"VLOOKUP(L500,Regions!A:B,2,0)","v":{"$error":"#N/A"}},"Dublin",705000,"No","No","Second-Hand Dwelling house /Apartment"]
["19/01/2017","2017-01-19",1,"5 LIMELAWN ROW, CLONSILLA RD, CLONSILLA DUBLIN 15",{"$f":"VLOOKUP(L501,Regions!A:B,2,0)","v":"S"},"Dublin",260000,"No","No","Second-Hand Dwelling house /Apartment",null,"Dublin 15"]
["19/01/2017","2017-01-19",1,"53 FOREST DR, KINGSWOOD HEIGHTS, TALLAGHT DUBLIN 24",{"$f":"VLOOKUP(L502,Regions!A:B,2,0)","v":"E"},"Dublin",275000,"No","No","Second-Hand Dwelling house /Apartment",null,"Dublin 24"]
["19/01/2017","2017-01-19",1,"55 COLLEGE GROVE, CASTLEKNOCK, DUBLIN 15",{"$f":"VLOOKUP(L503,Regions!A:B,2,0)","v":"S"},"Dublin",860000,"No","No","Second-Hand Dwelling house /Apartment",null,"Dublin 15"]
["19/01/2017","2017-01-19",1,"55 LORETO ROW, RATHFARNHAM, DUBLIN 14",{"$f":"VLOOKUP(L504,Regions!A:B,2,0)","v":"E"},"Dublin",345000,"No","No","Second-Hand Dwelling house /Apartment",null,"Dublin 14"]
["19/01/2017","2017-01-19",1,"56 Woodbank, Dublin Road, Shankill",{"$f":"VLOOKUP(L505,Regions!A:B,2,0)","v":{"$error":"#N/A"}},"Dublin",391275,"No","Yes","New Dwelling house /Apartment","greater than or equal to 38 sq metres and less than 125 sq metres"]
["19/01/2017","2017-01-19",1,"57 CHURCHWELL DR, BELMAYNE, BALGRIFFIN",{"$f":"VLOOKUP(L506,Regions!A:B,2,0)","v":"S"},"Dublin",230000,"No","No","Second-Hand Dwelling house /Apartment",null,"Dublin 13"]
["19/01/2017","2017-01-19",1,"57 Diswellstown Way, Castleknock",{"$f":"VLOOKUP(L507,Regions!A:B,2,0)","v":"S"},"Dublin",439647.58,"No","Yes","New Dwelling house /Apartment","greater than or equal to 125 sq metres","Dublin 15"]
["19/01/2017","2017-01-19",1,"58 Woodbank, Dublin Road, Shankill",{"$f":"VLOOKUP(L508,Regions!A:B,2,0)","v":{"$error":"#N/A"}},"Dublin",383259,"No","Yes","New Dwelling house /Apartment","greater than or equal to 38 sq metres and less than 125 sq metres"]
["19/01/2017","2017-01-19",1,"62 EAST ARRAN ST, DUBLIN 7",{"$f":"VLOOKUP(L509,Regions!A:B,2,0)","v":"W"},"Dublin",285000,"No","No","Second-Hand Dwelling house /Apartment",null,"Dublin 7"]
["19/01/2017","2017-01-19",1,"65 THE HIBERNIAN, THE GASWORKS, SOUTH LOTTS RD DUBLIN 4",{"$f":"VLOOKUP(L510,Regions!A:B,2,0)","v":"W"},"Dublin",300000,"No","No","Second-Hand Dwelling house /Apartment",null,"Dublin 4"]
["19/01/2017","2017-01-19",1,"65 WESTEND GATE, TALLAGHT, DUBLIN 24",{"$f":"VLOOKUP(L511,Regions!A:B,2,0)","v":"E"},"Dublin",130000,"No","No","Second-Hand Dwelling house /Apartment",null,"Dublin 24"]
["19/01/2017","2017-01-19",1,"8 Pembrin Wood, Beech Park Wood, Foxrock",{"$f":"VLOOKUP(L512,Regions!A:B,2,0)","v":{"$error":"#N/A"}},"Dublin",810572.65,"No","Yes","New Dwelling house /Apartment","greater than or equal to 38 sq metres and less than 125 sq metres"]
["19/01/2017","2017-01-19",1,"8 SWORDS MANOR COURT, SWORDS MANOR, SWORDS",{"$f":"VLOOKUP(L513,Regions!A:B,2,0)","v":{"$error":"#N/A"}},"Dublin",268000,"No","No","Second-Hand Dwelling house /Apartment"]
["19/01/2017","2017-01-19",1,"86 WOODFIELD, SCHOLARSTOWN RD, DUBLIN 16",{"$f":"VLOOKUP(L514,Regions!A:B,2,0)","v":"E"},"Dublin",475000,"No","No","Second-Hand Dwelling house /Apartment",null,"Dublin 16"]
["19/01/2017",{"$f":"DATE(RIGHT(A515,4),MID(A515,4,2),LEFT(A515,2))","v":"2017-01-19"},{"$f":"IF(ISERROR(MONTH(A515)),MONTH(B515),MONTH(A515))","v":1},"88 WATERMILL, BETTYGLEN, RAHENY DUBLIN 5",{"$f":"VLOOKUP(L515,Regions!A:B,2,0)","v":"S"},"Dublin",401000,"No","No","Second-Hand Dwelling house /Apartment",null,"Dublin 5"]
["19/01/2017","2017-01-19",1,"89 SANDYFORD RD, DUNDRUM, DUBLIN 16",{"$f":"VLOOKUP(L516,Regions!A:B,2,0)","v":"E"},"Dublin",549000,"No","No","Second-Hand Dwelling house /Apartment",null,"Dublin 16"]
["19/01/2017","2017-01-19",1,"9 RATHMORE VILLAGE, TYRRELSTOWN, DUBLIN 15",{"$f":"VLOOKUP(L517,Regions!A:B,2,0)","v":"S"},"Dublin",24840,"Yes","No","Second-Hand Dwelling house /Apartment",null,"Dublin 15"]
["19/01/2017","2017-01-19",1,"APT 8 NORTHLANDS, RATHMICHAEL PARK, BRAY RD",{"$f":"VLOOKUP(L518,Regions!A:B,2,0)","v":"W"},"Dublin",327500,"No","No","Second-Hand Dwelling house /Apartment",null,"Dublin 18"]
["19/01/2017","2017-01-19",1,"ROSEBANK, TREES AVENUE, MOUNT MERRION",{"$f":"VLOOKUP(L519,Regions!A:B,2,0)","v":{"$error":"#N/A"}},"Dublin",900000,"No","No","Second-Hand Dwelling house /Apartment"]
["19/01/2017","2017-01-19",1,"THE WHITE HOUSE, STRAWBERRY BEDS RD, DUBLIN 20",{"$f":"VLOOKUP(L520,Regions!A:B,2,0)","v":"N"},"Dublin",1100000,"No","No","Second-Hand Dwelling house /Apartment",null,"Dublin 20"]
["20/01/2017","2017-01-20",1,"1-26 27-33 27A 28A 29A 30A 31A 1-6, BLOCK2 BLACKGLEN VIEW APTS, BLLACKGLEN SANDYFORD",{"$f":"VLOOKUP(L521,Regions!A:B,2,0)","v":"W"},"Dublin",1500000,"No","No","Second-Hand Dwelling house /Apartment",null,"Dublin 18"]
["20/01/2017","2017-01-20",1,"1 CASTLEFIELD DR, CASTLEFIELD MANOR, KNOCKLYON DUBLIN 16",{"$f":"VLOOKUP(L522,Regions!A:B,2,0)","v":"E"},"Dublin",565000,"No","No","Second-Hand Dwelling house /Apartment",null,"Dublin 16"]
["20/01/2017","2017-01-20",1,"1 ST KEVIN'S PARK, KILMACUD, STILLORGAN",{"$f":"VLOOKUP(L523,Regions!A:B,2,0)","v":{"$error":"#N/A"}},"Dublin",480000,"No","No","Second-Hand Dwelling house /Apartment"]
["20/01/2017","2017-01-20",1,"1 SYDNEY PARADE AVE, DUBLIN 4, DUBLIN",{"$f":"VLOOKUP(L524,Regions!A:B,2,0)","v":"W"},"Dublin",1325000,"No","No","Second-Hand Dwelling house /Apartment",null,"Dublin 4"]
["20/01/2017","2017-01-20",1,"1 THE OAKS, PELLETSTOWN MANOR, DUBLIN 15",{"$f":"VLOOKUP(L525,Regions!A:B,2,0)","v":"S"},"Dublin",255000,"No","No","Second-Hand Dwelling house /Apartment",null,"Dublin 15"]
["20/01/2017","2017-01-20",1,"10 ST JOHN ST, BLACKPITTS, DUBLIN 8",{"$f":"VLOOKUP(L526,Regions!A:B,2,0)","v":"S"},"Dublin",320000,"No","No","Second-Hand Dwelling house /Apartment",null,"Dublin 8"]
["20/01/2017","2017-01-20",1,"101 THE ICE RINK, DOLPHINS BARN, DUBLIN 8",{"$f":"VLOOKUP(L527,Regions!A:B,2,0)","v":"S"},"Dublin",98061,"No","No","Second-Hand Dwelling house /Apartment",null,"Dublin 8"]
["20/01/2017","2017-01-20",1,"11 Heathfield Way, Cappagh Road, Finglas",{"$f":"VLOOKUP(L528,Regions!A:B,2,0)","v":{"$error":"#N/A"}},"Dublin",216335,"No","Yes","New Dwelling house /Apartment","greater than or equal to 38 sq metres and less than 125 sq metres"]
["20/01/2017","2017-01-20",1,"11 SANDYMOUNT COURT, SANDYMOUNT, DUBLIN 4",{"$f":"VLOOKUP(L529,Regions!A:B,2,0)","v":"W"},"Dublin",635000,"No","No","Second-Hand Dwelling house /Apartment",null,"Dublin 4"]
["20/01/2017","2017-01-20",1,"115 EAST COURTYARD, TULLYVALE, CABINTEELY",{"$f":"VLOOKUP(L530,Regions!A:B,2,0)","v":"W"},"Dublin",350000,"No","No","Second-Hand Dwelling house /Apartment",null,"Dublin 18"]
["20/01/2017","2017-01-20",1,"116 ST BRENDANS AVE, ARTANE DUBLIN 9, DUBLIN",{"$f":"VLOOKUP(L531,Regions!A:B,2,0)","v":"S"},"Dublin",275000,"No","No","Second-Hand Dwelling house /Apartment",null,"Dublin 5"]
["20/01/2017","2017-01-20",1,"11A BLESSINGTON PLACE, DUBLIN 7",{"$f":"VLOOKUP(L532,Regions!A:B,2,0)","v":"W"},"Dublin",275000,"No","No","Second-Hand Dwelling house /Apartment",null,"Dublin 7"]
["20/01/2017","2017-01-20",1,"12 BATH AVE PLACE, SANDYMOUNT, DUBLIN 4",{"$f":"VLOOKUP(L533,Regions!A:B,2,0)","v":"W"},"Dublin",785000,"No","No","Second-Hand Dwelling house /Apartment",null,"Dublin 4"]
["20/01/2017","2017-01-20",1,"12 OSSORY ROAD, NORTH STRAND, DUBLIN 3",{"$f":"VLOOKUP(L534,Regions!A:B,2,0)","v":"N"},"Dublin",251515,"No","No","Second-Hand Dwelling house /Apartment",null,"Dublin 3"]
["20/01/2017","2017-01-20",1,"127 ARENA COURT, WHITESTOWN WAY, TALLAGHT",{"$f":"VLOOKUP(L535,Regions!A:B,2,0)","v":{"$error":"#N/A"}},"Dublin",97000,"No","No","Second-Hand Dwelling house /Apartment"]
["20/01/2017","2017-01-20",1,"128 SCARIFF HOUSE, CUSTOM HOUSE SQUARE, DUBLIN 1",{"$f":"VLOOKUP(L536,Regions!A:B,2,0)","v":{"$error":"#N/A"}},"Dublin",356000,"No","No","Second-Hand Dwelling house /Apartment"]
["20/01/2017","2017-01-20",1,"13 RUSSELL PLACE, TALLAGHT DUBLIN 24, DUBLIN",{"$f":"VLOOKUP(L537,Regions!A:B,2,0)","v":"E"},"Dublin",150000,"No","No","Second-Hand Dwelling house /Apartment",null,"Dublin 24"]
["20/01/2017","2017-01-20",1,"137 THE OVAL, TULLYVALE, CABINTEELY",{"$f":"VLOOKUP(L538,Regions!A:B,2,0)","v":"W"},"Dublin",320000,"No","No","Second-Hand Dwelling house /Apartment",null,"Dublin 18"]
["20/01/2017","2017-01-20",1,"14 RIVERWOOD COPSE, CARPENTERSTOWN, DUBLIN 15",{"$f":"VLOOKUP(L539,Regions!A:B,2,0)","v":{"$error":"#N/A"}},"Dublin",328500,"No","No","Second-Hand Dwelling house /Apartment"]
["20/01/2017","2017-01-20",1,"15 MOUNT PROSPECT LAWNS, CLONTARF, DUBLIN 3",{"$f":"VLOOKUP(L540,Regions!A:B,2,0)","v":"N"},"Dublin",750000,"No","No","Second-Hand Dwelling house /Apartment",null,"Dublin 3"]
["20/01/2017","2017-01-20",1,"15 MUCKROSS PARK, PERRYSTOWN, DUBLIN 12",{"$f":"VLOOKUP(L541,Regions!A:B,2,0)","v":"N"},"Dublin",280000,"No","No","Second-Hand Dwelling house /Apartment",null,"Dublin 12"]
["20/01/2017","2017-01-20",1,"162 THE GALLERY, DONABATE, DUBLIN",{"$f":"VLOOKUP(L542,Regions!A:B,2,0)","v":{"$error":"#N/A"}},"Dublin",222000,"No","No","Second-Hand Dwelling house /Apartment"]
["20/01/2017","2017-01-20",1,"17 Dodderbrook Park, Oldcourt Road, Ballycullen",{"$f":"VLOOKUP(L543,Regions!A:B,2,0)","v":"E"},"Dublin",347533.03,"No","Yes","New Dwelling house /Apartment","greater than or equal to 38 sq metres and less than 125 sq metres","Dublin 24"]
["20/01/2017","2017-01-20",1,"17 THE LAWN, HANSFIELD WOOD, HANSFIELD",{"$f":"VLOOKUP(L544,Regions!A:B,2,0)","v":"S"},"Dublin",317180.62,"No","Yes","New Dwelling house /Apartment","greater than or equal to 38 sq metres and less than 125 sq metres","Dublin 15"]
["20/01/2017","2017-01-20",1,"182 KILLESTER AVE, DONNYCARNEY, DUBLIN 5",{"$f":"VLOOKUP(L545,Regions!A:B,2,0)","v":"S"},"Dublin",280000,"No","No","Second-Hand Dwelling house /Apartment",null,"Dublin 5"]
["20/01/2017","2017-01-20",1,"2 MOUNT GARRETT AVE, TYRELLSTOWN, DUBLIN 15",{"$f":"VLOOKUP(L546,Regions!A:B,2,0)","v":"S"},"Dublin",228000,"No","No","Second-Hand Dwelling house /Apartment",null,"Dublin 15"]
["20/01/2017","2017-01-20",1,"2 Priorswood Lodge, Clonshaugh, DUBLIN 17",{"$f":"VLOOKUP(L547,Regions!A:B,2,0)","v":{"$error":"#N/A"}},"Dublin",242290,"No","Yes","New Dwelling house /Apartment","greater than or equal to 38 sq metres and less than 125 sq metres"]
["20/01/2017","2017-01-20",1,"21 KILLAKEE DR, WALKINSTOWN, DUBLIN 12",{"$f":"VLOOKUP(L548,Regions!A:B,2,0)","v":"N"},"Dublin",330000,"No","No","Second-Hand Dwelling house /Apartment",null,"Dublin 12"]
["20/01/2017","2017-01-20",1,"21A MULGRAVE ST, DUN LAOGHAIRE, DUBLIN",{"$f":"VLOOKUP(L549,Regions!A:B,2,0)","v":{"$error":"#N/A"}},"Dublin",475000,"No","No","Second-Hand Dwelling house /Apartment"]
["20/01/2017","2017-01-20",1,"22 CASTLEGRANGE GREEN, CLONDALKIN, DUBLIN 22",{"$f":"VLOOKUP(L550,Regions!A:B,2,0)","v":"E"},"Dublin",165000,"No","No","Second-Hand Dwelling house /Apartment",null,"Dublin 22"]
["20/01/2017","2017-01-20",1,"22 FOSTERS AVE, MOUNT MERRION, DUBLIN",{"$f":"VLOOKUP(L551,Regions!A:B,2,0)","v":{"$error":"#N/A"}},"Dublin",805000,"No","No","Second-Hand Dwelling house /Apartment"]
["20/01/2017","2017-01-20",1,"23 BROOKWOOD LAWN, ARTANE, DUBLIN 5",{"$f":"VLOOKUP(L552,Regions!A:B,2,0)","v":"S"},"Dublin",395000,"No","No","Second-Hand Dwelling house /Apartment",null,"Dublin 5"]
["20/01/2017","2017-01-20",1,"23 GREENTREES RD, DUBLIN 12, DUBLIN",{"$f":"VLOOKUP(L553,Regions!A:B,2,0)","v":"N"},"Dublin",465000,"No","No","Second-Hand Dwelling house /Apartment",null,"Dublin 12"]
["20/01/2017","2017-01-20",1,"23 THe Lawn, Hansfield Wood, Hansfield",{"$f":"VLOOKUP(L554,Regions!A:B,2,0)","v":"S"},"Dublin",251101,"No","Yes","New Dwelling house /Apartment","greater than or equal to 38 sq metres and less than 125 sq metres","Dublin 15"]
["20/01/2017","2017-01-20",1,"24 Tullyhall Close, LUCAN",{"$f":"VLOOKUP(L555,Regions!A:B,2,0)","v":{"$error":"#N/A"}},"Dublin",271618.08,"No","Yes","New Dwelling house /Apartment","greater than or equal to 38 sq metres and less than 125 sq metres"]
["20/01/2017","2017-01-20",1,"248 COLLINS AVE EAST, DONNYCARNEY, DUBLIN 5",{"$f":"VLOOKUP(L556,Regions!A:B,2,0)","v":"S"},"Dublin",280000,"No","No","Second-Hand Dwelling house /Apartment",null,"Dublin 5"]
["20/01/2017","2017-01-20",1,"26 KILCROSS LAWN, SANDYFORD, DUBLIN",{"$f":"VLOOKUP(L557,Regions!A:B,2,0)","v":"W"},"Dublin",320000,"No","No","Second-Hand Dwelling house /Apartment",null,"Dublin 18"]
["20/01/2017","2017-01-20",1,"28 RIVERWOOD GARDENS, CASTLEKNOCK, DUBLIN 15",{"$f":"VLOOKUP(L558,Regions!A:B,2,0)","v":"S"},"Dublin",370000,"No","No","Second-Hand Dwelling house /Apartment",null,"Dublin 15"]
["20/01/2017","2017-01-20",1,"29 WESTMINSTER LAWNS, FOXROCK, DUBLIN 18",{"$f":"VLOOKUP(L559,Regions!A:B,2,0)","v":"W"},"Dublin",850000,"No","No","Second-Hand Dwelling house /Apartment",null,"Dublin 18"]
["20/01/2017","2017-01-20",1,"3 BUCKLEY COURT, ELTON PARK, SANDYCOVE",{"$f":"VLOOKUP(L560,Regions!A:B,2,0)","v":{"$error":"#N/A"}},"Dublin",253000,"No","No","Second-Hand Dwelling house /Apartment"]
["20/01/2017","2017-01-20",1,"3 CASTLEKNOCK WOOD, CASTLEKNOCK, DUBLIN 15",{"$f":"VLOOKUP(L561,Regions!A:B,2,0)","v":"S"},"Dublin",590000,"No","No","Second-Hand Dwelling house /Apartment",null,"Dublin 15"]
["20/01/2017","2017-01-20",1,"3 SLADE CASTLE VIEW, SAGGART, DUBLIN",{"$f":"VLOOKUP(L562,Regions!A:B,2,0)","v":"E"},"Dublin",301000,"No","No","Second-Hand Dwelling house /Apartment",null,"Dublin 24"]
["20/01/2017","2017-01-20",1,"3 WESTBOURNE AVE, CLONDALKIN, DUBLIN 22",{"$f":"VLOOKUP(L563,Regions!A:B,2,0)","v":"E"},"Dublin",200000,"No","No","Second-Hand Dwelling house /Apartment",null,"Dublin 22"]
["20/01/2017","2017-01-20",1,"32 LYONS RD, NEWCASTLE, DUBLIN",{"$f":"VLOOKUP(L564,Regions!A:B,2,0)","v":"E"},"Dublin",275000,"No","No","Second-Hand Dwelling house /Apartment",null,"Dublin 22"]
["20/01/2017","2017-01-20",1,"37 ROSEDALE, TYRCONNELL ST, INCHICORE DUBLIN 8",{"$f":"VLOOKUP(L565,Regions!A:B,2,0)","v":"S"},"Dublin",250000,"No","No","Second-Hand Dwelling house /Apartment",null,"Dublin 8"]
["20/01/2017","2017-01-20",1,"40 RADCLIFFE HALL, ST JOHNS RD, SANDYMOUNT",{"$f":"VLOOKUP(L566,Regions!A:B,2,0)","v":"W"},"Dublin",795000,"No","No","Second-Hand Dwelling house /Apartment",null,"Dublin 4"]
["20/01/2017","2017-01-20",1,"41 THE GREEN, WOODBROOK GLEN, BRAY",{"$f":"VLOOKUP(L567,Regions!A:B,2,0)","v":{"$error":"#N/A"}},"Dublin",330000,"No","No","Second-Hand Dwelling house /Apartment"]
["20/01/2017","2017-01-20",1,"43 BROOKDALE AVE, RIVERVALLEY, SWORDS",{"$f":"VLOOKUP(L568,Regions!A:B,2,0)","v":{"$error":"#N/A"}},"Dublin",286000,"No","No","Second-Hand Dwelling house /Apartment"]
["20/01/2017","2017-01-20",1,"45 BLACKHALL SQ, BRUNSWICK ST NORTH, SMITHFIELD DUBLIN 7",{"$f":"VLOOKUP(L569,Regions!A:B,2,0)","v":"W"},"Dublin",218000,"No","No","Second-Hand Dwelling house /Apartment",null,"Dublin 7"]
["20/01/2017","2017-01-20",1,"4ST MURAS TERRACE, STRANGFORD RD, EAST WALL DUBLIN 3",{"$f":"VLOOKUP(L570,Regions!A:B,2,0)","v":"N"},"Dublin",285000,"No","No","Second-Hand Dwelling house /Apartment",null,"Dublin 3"]
["20/01/2017","2017-01-20",1,"5 LATCHFORD CLOSE, CASTAHEANY, DUBLIN 15",{"$f":"VLOOKUP(L571,Regions!A:B,2,0)","v":"S"},"Dublin",255000,"No","No","Second-Hand Dwelling house /Apartment",null,"Dublin 15"]
["20/01/2017","2017-01-20",1,"50 CLANAWLEY RD, DONNYCARNEY, DUBLIN 5",{"$f":"VLOOKUP(L572,Regions!A:B,2,0)","v":"S"},"Dublin",283000,"No","No","Second-Hand Dwelling house /Apartment",null,"Dublin 5"]
["20/01/2017","2017-01-20",1,"51 DRIMNAGH RD, CRUMLIN, DUBLIN 12",{"$f":"VLOOKUP(L573,Regions!A:B,2,0)","v":"N"},"Dublin",360000,"No","No","Second-Hand Dwelling house /Apartment",null,"Dublin 12"]
["20/01/2017","2017-01-20",1,"53 Woodbank, Dublin Road, Shankhill",{"$f":"VLOOKUP(L574,Regions!A:B,2,0)","v":"W"},"Dublin",317180.62,"No","Yes","New Dwelling house /Apartment","greater than or equal to 38 sq metres and less than 125 sq metres","Dublin 18"]
["20/01/2017","2017-01-20",1,"54 BUTTERFIELD PARK, RATHFARNHAM, DUBLIN 14",{"$f":"VLOOKUP(L575,Regions!A:B,2,0)","v":"E"},"Dublin",625000,"No","No","Second-Hand Dwelling house /Apartment",null,"Dublin 14"]
["20/01/2017","2017-01-20",1,"54 Woodbank, Shankill, County Dublin",{"$f":"VLOOKUP(L576,Regions!A:B,2,0)","v":{"$error":"#N/A"}},"Dublin",348017,"No","Yes","New Dwelling house /Apartment","greater than or equal to 125 sq metres"]
["20/01/2017","2017-01-20",1,"56 MERIDIAN COURT, ROYAL CANAL PARK, ASHTOWN",{"$f":"VLOOKUP(L577,Regions!A:B,2,0)","v":"S"},"Dublin",212000,"No","No","Second-Hand Dwelling house /Apartment",null,"Dublin 15"]
["20/01/2017","2017-01-20",1,"56 WHITEBEAM RD, CLONSKEAGH, DUBLIN 14",{"$f":"VLOOKUP(L578,Regions!A:B,2,0)","v":"E"},"Dublin",865000,"No","No","Second-Hand Dwelling house /Apartment",null,"Dublin 14"]
["20/01/2017",{"$f":"DATE(RIGHT(A579,4),MID(A579,4,2),LEFT(A579,2))","v":"2017-01-20"},{"$f":"IF(ISERROR(MONTH(A579)),MONTH(B579),MONTH(A579))","v":1},"57 Woodbank, Dublin Road, Shankill",{"$f":"VLOOKUP(L579,Regions!A:B,2,0)","v":{"$error":"#N/A"}},"Dublin",302772.58,"No","Yes","New Dwelling house /Apartment","greater than or equal to 38 sq metres and less than 125 sq metres"]
["20/01/2017","2017-01-20",1,"58 AUBURN RD, KILLINEY, DUBLIN",{"$f":"VLOOKUP(L580,Regions!A:B,2,0)","v":{"$error":"#N/A"}},"Dublin",665000,"No","No","Second-Hand Dwelling house /Apartment"]
["20/01/2017","2017-01-20",1,"6 CASTLEFIELD GROVE, KNOCKLYON, DUBLIN 16",{"$f":"VLOOKUP(L581,Regions!A:B,2,0)","v":"E"},"Dublin",440000,"No","No","Second-Hand Dwelling house /Apartment",null,"Dublin 16"]
["20/01/2017","2017-01-20",1,"67 GRAND CANAL ST UPPER, DUBLIN 4, DUBLIN",{"$f":"VLOOKUP(L582,Regions!A:B,2,0)","v":"W"},"Dublin",1075000,"No","No","Second-Hand Dwelling house /Apartment",null,"Dublin 4"]
["20/01/2017","2017-01-20",1,"7 SANDYMOUNT CASTLE PARK, SANDYMOUNT, DUBLIN",{"$f":"VLOOKUP(L583,Regions!A:B,2,0)","v":"W"},"Dublin",1220000,"No","No","Second-Hand Dwelling house /Apartment",null,"Dublin 4"]
["20/01/2017","2017-01-20",1,"72 Roseland Avenue, Cualanor, Upper Glenageary Road",{"$f":"VLOOKUP(L584,Regions!A:B,2,0)","v":{"$error":"#N/A"}},"Dublin",638766,"No","Yes","New Dwelling house /Apartment","greater than or equal to 125 sq metres"]
["20/01/2017","2017-01-20",1,"78 THE LIGHTHOUSE, EAST WALL RD, DUBLIN 3",{"$f":"VLOOKUP(L585,Regions!A:B,2,0)","v":"N"},"Dublin",96871.59,"Yes","No","Second-Hand Dwelling house /Apartment",null,"Dublin 3"]
["20/01/2017","2017-01-20",1,"8 Sion Hill Park, Sion Hill Road, Drumcondra",{"$f":"VLOOKUP(L586,Regions!A:B,2,0)","v":"W"},"Dublin",511013,"No","Yes","New Dwelling house /Apartment","greater than or equal to 38 sq metres and less than 125 sq metres","Dublin 9"]
["20/01/2017","2017-01-20",1,"8 THE OVAL, TULLYVALE, CABINTEELY",{"$f":"VLOOKUP(L587,Regions!A:B,2,0)","v":"W"},"Dublin",290000,"No","No","Second-Hand Dwelling house /Apartment",null,"Dublin 18"]
["20/01/2017","2017-01-20",1,"80 THE ICE RINK, DOLPHINS BARN, DUBLIN 8",{"$f":"VLOOKUP(L588,Regions!A:B,2,0)","v":"S"},"Dublin",134044,"No","No","Second-Hand Dwelling house /Apartment",null,"Dublin 8"]
["20/01/2017","2017-01-20",1,"81 THE ICE RINK, DOLPHINS BARN, DUBLIN 8",{"$f":"VLOOKUP(L589,Regions!A:B,2,0)","v":"S"},"Dublin",101217,"No","No","Second-Hand Dwelling house /Apartment",null,"Dublin 8"]
["20/01/2017","2017-01-20",1,"82 TEMPLE GARDENS, SANTRY, DUBLIN 9",{"$f":"VLOOKUP(L590,Regions!A:B,2,0)","v":"W"},"Dublin",219000,"No","No","Second-Hand Dwelling house /Apartment",null,"Dublin 9"]
["20/01/2017","2017-01-20",1,"82 THE ICE RINK, DOLPHINS BARN, DUBLIN 8",{"$f":"VLOOKUP(L591,Regions!A:B,2,0)","v":"S"},"Dublin",147512,"No","No","Second-Hand Dwelling house /Apartment",null,"Dublin 8"]
["20/01/2017","2017-01-20",1,"83 GROVE PARK, RATHMINES, DUBLIN 6",{"$f":"VLOOKUP(L592,Regions!A:B,2,0)","v":"W"},"Dublin",620000,"No","No","Second-Hand Dwelling house /Apartment",null,"Dublin 6"]
["20/01/2017","2017-01-20",1,"83 THE ICE RINK, DOLPHINS BARN, DUBLIN 8",{"$f":"VLOOKUP(L593,Regions!A:B,2,0)","v":"S"},"Dublin",100796,"No","No","Second-Hand Dwelling house /Apartment",null,"Dublin 8"]
["20/01/2017","2017-01-20",1,"84 THE ICE RINK, DOLPHINS BARN, DUBLIN 8",{"$f":"VLOOKUP(L594,Regions!A:B,2,0)","v":"S"},"Dublin",147512,"No","No","Second-Hand Dwelling house /Apartment",null,"Dublin 8"]
["20/01/2017","2017-01-20",1,"85 THE ICE RINK, DOLPHINS BARN, DUBLIN 8",{"$f":"VLOOKUP(L595,Regions!A:B,2,0)","v":"S"},"Dublin",101217,"No","No","Second-Hand Dwelling house /Apartment",null,"Dublin 8"]
["20/01/2017","2017-01-20",1,"86 THE ICE RINK, DOLPHINS BARN, DUBLIN 8",{"$f":"VLOOKUP(L596,Regions!A:B,2,0)","v":"S"},"Dublin",147512,"No","No","Second-Hand Dwelling house /Apartment",null,"Dublin 8"]
["20/01/2017","2017-01-20",1,"87 MERRION PARK, HILL AVE SOUTH, BLACKROCK",{"$f":"VLOOKUP(L597,Regions!A:B,2,0)","v":{"$error":"#N/A"}},"Dublin",612500,"No","No","Second-Hand Dwelling house /Apartment"]
["20/01/2017","2017-01-20",1,"87 THE ICE RINK, DOLPHINS BARN, DUBLIN 8",{"$f":"VLOOKUP(L598,Regions!A:B,2,0)","v":"S"},"Dublin",101217,"No","No","Second-Hand Dwelling house /Apartment",null,"Dublin 8"]
["20/01/2017","2017-01-20",1,"88 THEICE RINK, DOLPHINS BARN, DUBLIN 8",{"$f":"VLOOKUP(L599,Regions!A:B,2,0)","v":"S"},"Dublin",149406,"No","No","Second-Hand Dwelling house /Apartment",null,"Dublin 8"]
["20/01/2017","2017-01-20",1,"89 NEW HAVEN, FLEMINGTON LANE, BALBRIGGAN",{"$f":"VLOOKUP(L600,Regions!A:B,2,0)","v":{"$error":"#N/A"}},"Dublin",165000,"No","No","Second-Hand Dwelling house /Apartment"]
["20/01/2017","2017-01-20",1,"89 THE ICE RINK, DOLPHINS BARN, DUBLIN 8",{"$f":"VLOOKUP(L601,Regions!A:B,2,0)","v":"S"},"Dublin",155719,"No","No","Second-Hand Dwelling house /Apartment",null,"Dublin 8"]
["20/01/2017","2017-01-20",1,"89 TURVEY WOODS, DONABATE, DUBLIN",{"$f":"VLOOKUP(L602,Regions!A:B,2,0)","v":{"$error":"#N/A"}},"Dublin",187000,"No","No","Second-Hand Dwelling house /Apartment"]
["20/01/2017","2017-01-20",1,"9 DUN EMER GREEN, LUSK, DUBLIN",{"$f":"VLOOKUP(L603,Regions!A:B,2,0)","v":{"$error":"#N/A"}},"Dublin",202000,"No","No","Second-Hand Dwelling house /Apartment"]
["20/01/2017","2017-01-20",1,"9 JAMES PLUNKETT HOUSE, GRATTAN CRESCENT, INCHICORE DUBLIN 8",{"$f":"VLOOKUP(L604,Regions!A:B,2,0)","v":"S"},"Dublin",200000,"No","No","Second-Hand Dwelling house /Apartment",null,"Dublin 8"]
["20/01/2017","2017-01-20",1,"90 THE ICE RINK, DOLPHINS BARN, DUBLIN 8",{"$f":"VLOOKUP(L605,Regions!A:B,2,0)","v":"S"},"Dublin",87539,"No","No","Second-Hand Dwelling house /Apartment",null,"Dublin 8"]
["20/01/2017","2017-01-20",1,"91 THE ICE RINK, DOLPHINS BARN, DUBLIN 8",{"$f":"VLOOKUP(L606,Regions!A:B,2,0)","v":"S"},"Dublin",108161,"No","No","Second-Hand Dwelling house /Apartment",null,"Dublin 8"]
["20/01/2017","2017-01-20",1,"92 THE ICE RINK, DOLPHINS BARN, DUBLIN 8",{"$f":"VLOOKUP(L607,Regions!A:B,2,0)","v":"S"},"Dublin",148143,"No","No","Second-Hand Dwelling house /Apartment",null,"Dublin 8"]
["20/01/2017","2017-01-20",1,"93 THEICE RINK, DOLPHINS BARN, DUBLIN 8",{"$f":"VLOOKUP(L608,Regions!A:B,2,0)","v":"S"},"Dublin",88381,"No","No","Second-Hand Dwelling house /Apartment",null,"Dublin 8"]
["20/01/2017","2017-01-20",1,"94 THE ICE RINK, DOLPHINS BARN, DUBLIN 8",{"$f":"VLOOKUP(L609,Regions!A:B,2,0)","v":"S"},"Dublin",108161,"No","No","Second-Hand Dwelling house /Apartment",null,"Dublin 8"]
["20/01/2017","2017-01-20",1,"95 THE ICE RINK, DOLPHINS BARN, DUBLIN 8",{"$f":"VLOOKUP(L610,Regions!A:B,2,0)","v":"S"},"Dublin",148143,"No","No","Second-Hand Dwelling house /Apartment",null,"Dublin 8"]
["20/01/2017","2017-01-20",1,"96 THE ICE RINK, DOLPHINS BARN, DUBLIN 8",{"$f":"VLOOKUP(L611,Regions!A:B,2,0)","v":"S"},"Dublin",87539,"No","No","Second-Hand Dwelling house /Apartment",null,"Dublin 8"]
["20/01/2017","2017-01-20",1,"97 THE ICE RINK, DOLPHINS BARN, DUBLIN 8",{"$f":"VLOOKUP(L612,Regions!A:B,2,0)","v":"S"},"Dublin",108161,"No","No","Second-Hand Dwelling house /Apartment",null,"Dublin 8"]
["20/01/2017","2017-01-20",1,"98 THE ICE RINK, DOLPHINS BARN, DUBLIN 8",{"$f":"VLOOKUP(L613,Regions!A:B,2,0)","v":"S"},"Dublin",148143,"No","No","Second-Hand Dwelling house /Apartment",null,"Dublin 8"]
["20/01/2017","2017-01-20",1,"99 THE ICE RINK, DOLPHINS BARN, DUBLIN 8",{"$f":"VLOOKUP(L614,Regions!A:B,2,0)","v":"S"},"Dublin",133413,"No","No","Second-Hand Dwelling house /Apartment",null,"Dublin 8"]
["20/01/2017","2017-01-20",1,"APARTMENT 1, 1 SYDENHAM ROAD, BALLSBRIDGE",{"$f":"VLOOKUP(L615,Regions!A:B,2,0)","v":{"$error":"#N/A"}},"Dublin",341400,"No","No","Second-Hand Dwelling house /Apartment"]
["20/01/2017","2017-01-20",1,"APARTMENT 2, 1 SYDENHAM ROAD, BALLSBRIDGE",{"$f":"VLOOKUP(L616,Regions!A:B,2,0)","v":{"$error":"#N/A"}},"Dublin",341400,"No","No","Second-Hand Dwelling house /Apartment"]
["20/01/2017","2017-01-20",1,"APARTMENT 3, 1 SYDENHAM ROAD, BALLSBRIDGE",{"$f":"VLOOKUP(L617,Regions!A:B,2,0)","v":{"$error":"#N/A"}},"Dublin",341400,"No","No","Second-Hand Dwelling house /Apartment"]
["20/01/2017","2017-01-20",1,"APARTMENT 4, 1 SYDENHAM ROAD, BALLSBRIDGE",{"$f":"VLOOKUP(L618,Regions!A:B,2,0)","v":{"$error":"#N/A"}},"Dublin",341400,"No","No","Second-Hand Dwelling house /Apartment"]
["20/01/2017","2017-01-20",1,"APARTMENT 5, 1 SYDENHAM ROAD, BALLSBRIDGE",{"$f":"VLOOKUP(L619,Regions!A:B,2,0)","v":{"$error":"#N/A"}},"Dublin",341400,"No","No","Second-Hand Dwelling house /Apartment"]
["20/01/2017","2017-01-20",1,"APT 13, THE CRESCENT, FORTFIELD SQ",{"$f":"VLOOKUP(L620,Regions!A:B,2,0)","v":{"$error":"#N/A"}},"Dublin",275000,"No","No","Second-Hand Dwelling house /Apartment"]
["20/01/2017","2017-01-20",1,"APT 1, 10 FOWNES STREET, TEMPLE BAR",{"$f":"VLOOKUP(L621,Regions!A:B,2,0)","v":{"$error":"#N/A"}},"Dublin",900000,"No","No","Second-Hand Dwelling house /Apartment"]
["20/01/2017","2017-01-20",1,"APT 38 BERRYS CLOSE SPA RD, INCHICORE DUBLIN 8, DUBLIN",{"$f":"VLOOKUP(L622,Regions!A:B,2,0)","v":"S"},"Dublin",58933.16,"Yes","No","Second-Hand Dwelling house /Apartment",null,"Dublin 8"]
["20/01/2017","2017-01-20",1,"APT 75, 25 WOLFE TONE ST, DUBLIN CITY",{"$f":"VLOOKUP(L623,Regions!A:B,2,0)","v":"S"},"Dublin",200000,"No","No","Second-Hand Dwelling house /Apartment",null,"Dublin 1"]
["20/01/2017","2017-01-20",1,"APT1 70 GROVE PARK, RATHMINES, DUBLIN 6",{"$f":"VLOOKUP(L624,Regions!A:B,2,0)","v":"W"},"Dublin",884459,"No","No","Second-Hand Dwelling house /Apartment",null,"Dublin 6"]
["20/01/2017","2017-01-20",1,"LISMORE, KNOCKNACREE RD, DALKEY",{"$f":"VLOOKUP(L625,Regions!A:B,2,0)","v":{"$error":"#N/A"}},"Dublin",3100000,"No","No","Second-Hand Dwelling house /Apartment"]
["20/01/2017","2017-01-20",1,"MEWS 2 REAR OF ASHURST APTS, MOUNT MERRION AVE, BLACKROCK",{"$f":"VLOOKUP(L626,Regions!A:B,2,0)","v":{"$error":"#N/A"}},"Dublin",632500,"No","No","Second-Hand Dwelling house /Apartment"]
["20/01/2017","2017-01-20",1,"MOYLE, SANDYFORD RD, SANDYFORD",{"$f":"VLOOKUP(L627,Regions!A:B,2,0)","v":"E"},"Dublin",420000,"No","No","Second-Hand Dwelling house /Apartment",null,"Dublin 16"]
["23/01/2017","2017-01-23",1,"1 GARVILLE MEWS, RATHGAR, DUBLIN 6",{"$f":"VLOOKUP(L628,Regions!A:B,2,0)","v":"W"},"Dublin",607500,"No","No","Second-Hand Dwelling house /Apartment",null,"Dublin 6"]
["23/01/2017","2017-01-23",1,"1 Milford Manor Green, Clondalkin, Dublin 22",{"$f":"VLOOKUP(L629,Regions!A:B,2,0)","v":"E"},"Dublin",5525000,"No","Yes","New Dwelling house /Apartment","greater than or equal to 38 sq metres and less than 125 sq metres","Dublin 22"]
["23/01/2017","2017-01-23",1,"10 BAGGOT RD, NAVAN RD, DUBLIN 7",{"$f":"VLOOKUP(L630,Regions!A:B,2,0)","v":"W"},"Dublin",437000,"No","No","Second-Hand Dwelling house /Apartment",null,"Dublin 7"]
["23/01/2017","2017-01-23",1,"101 WALKINSTOWN RD, WALKINSTOWN, DUBLIN 12",{"$f":"VLOOKUP(L631,Regions!A:B,2,0)","v":"N"},"Dublin",371000,"No","No","Second-Hand Dwelling house /Apartment",null,"Dublin 12"]
["23/01/2017","2017-01-23",1,"11 Castlegrange Court, Castaheany, Dublin 15",{"$f":"VLOOKUP(L632,Regions!A:B,2,0)","v":{"$error":"#N/A"}},"Dublin",259911.89,"No","Yes","New Dwelling house /Apartment","greater than or equal to 38 sq metres and less than 125 sq metres"]
["23/01/2017","2017-01-23",1,"16 ASHFIELD PARK, TERENURE, DUBLIN 6W",{"$f":"VLOOKUP(L633,Regions!A:B,2,0)","v":{"$error":"#N/A"}},"Dublin",858000,"No","No","Second-Hand Dwelling house /Apartment"]
["23/01/2017","2017-01-23",1,"17 ALEXANDRA WALK, WHITEFRIAR ST, DUBLIN 8",{"$f":"VLOOKUP(L634,Regions!A:B,2,0)","v":"S"},"Dublin",224757,"No","Yes","New Dwelling house /Apartment","greater than or equal to 38 sq metres and less than 125 sq metres","Dublin 8"]
["23/01/2017","2017-01-23",1,"1A LINN DUBH, HAYSTOWN RD, RUSH",{"$f":"VLOOKUP(L635,Regions!A:B,2,0)","v":{"$error":"#N/A"}},"Dublin",2360101,"No","No","Second-Hand Dwelling house /Apartment"]
["23/01/2017","2017-01-23",1,"2 GRANITE PLACE, BALLSBRIDGE, DUBLIN 4",{"$f":"VLOOKUP(L636,Regions!A:B,2,0)","v":"W"},"Dublin",295000,"No","No","Second-Hand Dwelling house /Apartment",null,"Dublin 4"]
["23/01/2017","2017-01-23",1,"20 ORMOND RD, RATHMINES, DUBLIN 6",{"$f":"VLOOKUP(L637,Regions!A:B,2,0)","v":"W"},"Dublin",1225000,"No","No","Second-Hand Dwelling house /Apartment",null,"Dublin 6"]
["23/01/2017","2017-01-23",1,"20 SCRIBBLESTOWN AVE FINGLAS SOUTH, DUBLIN 11, DUBLIN",{"$f":"VLOOKUP(L638,Regions!A:B,2,0)","v":"E"},"Dublin",52439.56,"Yes","No","Second-Hand Dwelling house /Apartment",null,"Dublin 11"]
["23/01/2017","2017-01-23",1,"202 EAST WALL RD, DUBLIN 3, DUBLIN",{"$f":"VLOOKUP(L639,Regions!A:B,2,0)","v":"N"},"Dublin",250000,"No","No","Second-Hand Dwelling house /Apartment",null,"Dublin 3"]
["23/01/2017","2017-01-23",1,"21 ST MALACHYS RD, GLASNEVIN, DUBLIN 9",{"$f":"VLOOKUP(L640,Regions!A:B,2,0)","v":"W"},"Dublin",330000,"No","No","Second-Hand Dwelling house /Apartment",null,"Dublin 9"]
["23/01/2017","2017-01-23",1,"26 HEATH SQ, MCKEE AVE, FINGLAS DUBLIN 11",{"$f":"VLOOKUP(L641,Regions!A:B,2,0)","v":"E"},"Dublin",216000,"No","No","Second-Hand Dwelling house /Apartment",null,"Dublin 11"]
["23/01/2017","2017-01-23",1,"28 HAMPTONWOOD AVE, HAMPTONWOOD, FINGLAS DUBLIN 11",{"$f":"VLOOKUP(L642,Regions!A:B,2,0)","v":"E"},"Dublin",75717.960000000006,"Yes","No","Second-Hand Dwelling house /Apartment",null,"Dublin 11"]
["23/01/2017",{"$f":"DATE(RIGHT(A643,4),MID(A643,4,2),LEFT(A643,2))","v":"2017-01-23"},{"$f":"IF(ISERROR(MONTH(A643)),MONTH(B643),MONTH(A643))","v":1},"29 Ballygossan Park, Golf Links Road, Skerries",{"$f":"VLOOKUP(L643,Regions!A:B,2,0)","v":{"$error":"#N/A"}},"Dublin",277533,"No","Yes","New Dwelling house /Apartment","greater than or equal to 38 sq metres and less than 125 sq metres"]
["23/01/2017","2017-01-23",1,"29 ROCKWOOD, FINNSTOWN ABBEY, LUCAN",{"$f":"VLOOKUP(L644,Regions!A:B,2,0)","v":{"$error":"#N/A"}},"Dublin",385500,"No","No","Second-Hand Dwelling house /Apartment"]
["23/01/2017","2017-01-23",1,"3 MOUNT EUSTACE GREEN, TYRRELSTOWN, DUBLIN 15",{"$f":"VLOOKUP(L645,Regions!A:B,2,0)","v":"S"},"Dublin",205000,"No","No","Second-Hand Dwelling house /Apartment",null,"Dublin 15"]
["23/01/2017","2017-01-23",1,"31 CALEDON RD, EASTWALL, DUBLIN 3",{"$f":"VLOOKUP(L646,Regions!A:B,2,0)","v":"N"},"Dublin",235000,"No","No","Second-Hand Dwelling house /Apartment",null,"Dublin 3"]
["23/01/2017","2017-01-23",1,"33 MOUNT MERRION AVE, BLACKROCK, DUBLIN",{"$f":"VLOOKUP(L647,Regions!A:B,2,0)","v":{"$error":"#N/A"}},"Dublin",1530000,"No","No","Second-Hand Dwelling house /Apartment"]
["23/01/2017","2017-01-23",1,"33 NEWTOWNPARKS, SKERRIES, DUBLIN",{"$f":"VLOOKUP(L648,Regions!A:B,2,0)","v":{"$error":"#N/A"}},"Dublin",575000,"No","No","Second-Hand Dwelling house /Apartment"]
["23/01/2017","2017-01-23",1,"37 PORTERSGATE COURT, CLONSILLA, DUBLIN 15",{"$f":"VLOOKUP(L649,Regions!A:B,2,0)","v":"S"},"Dublin",327000,"No","No","Second-Hand Dwelling house /Apartment",null,"Dublin 15"]
["23/01/2017","2017-01-23",1,"42 BALALLY DR, DUNDRUM, DUBLIN 16",{"$f":"VLOOKUP(L650,Regions!A:B,2,0)","v":"E"},"Dublin",555000,"No","No","Second-Hand Dwelling house /Apartment",null,"Dublin 16"]
["23/01/2017","2017-01-23",1,"45 COLLEGE SQ, TERENURE, DUBLIN",{"$f":"VLOOKUP(L651,Regions!A:B,2,0)","v":{"$error":"#N/A"}},"Dublin",625000,"No","No","Second-Hand Dwelling house /Apartment"]
["23/01/2017","2017-01-23",1,"45 PARKVALE, SANDYFORD ROAD, DUNDRUM",{"$f":"VLOOKUP(L652,Regions!A:B,2,0)","v":{"$error":"#N/A"}},"Dublin",1150000,"No","No","Second-Hand Dwelling house /Apartment"]
["23/01/2017","2017-01-23",1,"45 WALKINSTOWN AVE, DUBLIN 12, DUBLIN",{"$f":"VLOOKUP(L653,Regions!A:B,2,0)","v":"N"},"Dublin",275000,"No","No","Second-Hand Dwelling house /Apartment",null,"Dublin 12"]
["23/01/2017","2017-01-23",1,"49 DONNYBROOK MANOR, DONNYBROOK, DUBLIN 4",{"$f":"VLOOKUP(L654,Regions!A:B,2,0)","v":"W"},"Dublin",592500,"No","No","Second-Hand Dwelling house /Apartment",null,"Dublin 4"]
["23/01/2017","2017-01-23",1,"53 SMITHFIELD MARKET, BLOCK E, SMITHFIELD",{"$f":"VLOOKUP(L655,Regions!A:B,2,0)","v":{"$error":"#N/A"}},"Dublin",315000,"No","No","Second-Hand Dwelling house /Apartment"]
["23/01/2017","2017-01-23",1,"58 SOUTHBANK, SWORDS, DUBLIN",{"$f":"VLOOKUP(L656,Regions!A:B,2,0)","v":{"$error":"#N/A"}},"Dublin",320000,"No","No","Second-Hand Dwelling house /Apartment"]
["23/01/2017","2017-01-23",1,"8 CARNDONAGH ROAD, DONAGHMEDE, DUBLIN 13",{"$f":"VLOOKUP(L657,Regions!A:B,2,0)","v":"S"},"Dublin",262000,"No","No","Second-Hand Dwelling house /Apartment",null,"Dublin 13"]
["23/01/2017","2017-01-23",1,"8 KINGS HALL, WATERSIDE, SWORDS RD",{"$f":"VLOOKUP(L658,Regions!A:B,2,0)","v":"W"},"Dublin",225000,"No","No","Second-Hand Dwelling house /Apartment",null,"Dublin 9"]
["23/01/2017","2017-01-23",1,"9 ELM MOUNT CRESCENT, BEAUMONT, DUBLIN 9",{"$f":"VLOOKUP(L659,Regions!A:B,2,0)","v":{"$error":"#N/A"}},"Dublin",325000,"No","No","Second-Hand Dwelling house /Apartment"]
["23/01/2017","2017-01-23",1,"9 THE CEDARS, MONKSTOWN VALLEY, MONKSTOWN",{"$f":"VLOOKUP(L660,Regions!A:B,2,0)","v":{"$error":"#N/A"}},"Dublin",305000,"No","No","Second-Hand Dwelling house /Apartment"]
["23/01/2017","2017-01-23",1,"APT 11 ARAS NA CLUAINE, YELLOW MEADOWS ROAD, CLONDALKIN",{"$f":"VLOOKUP(L661,Regions!A:B,2,0)","v":"E"},"Dublin",182000,"No","No","Second-Hand Dwelling house /Apartment",null,"Dublin 22"]
["23/01/2017","2017-01-23",1,"APT 12 ARAS NA CLUAINE, YELLOW MEADOWS ROAD, CLONDALKIN",{"$f":"VLOOKUP(L662,Regions!A:B,2,0)","v":{"$error":"#N/A"}},"Dublin",182000,"No","No","Second-Hand Dwelling house /Apartment"]
["23/01/2017","2017-01-23",1,"APT 44 GEORGES QUAY APTS, DUBLIN 2, DUBLIN",{"$f":"VLOOKUP(L663,Regions!A:B,2,0)","v":"E"},"Dublin",275000,"No","No","Second-Hand Dwelling house /Apartment",null,"Dublin 2"]
["23/01/2017","2017-01-23",1,"DAMUR, 37 HYDE RD, DALKEY",{"$f":"VLOOKUP(L664,Regions!A:B,2,0)","v":{"$error":"#N/A"}},"Dublin",725000,"No","No","Second-Hand Dwelling house /Apartment"]
["24/01/2017","2017-01-24",1,"1 KYLEMORE AVENUE, BALLYFERMOT, DUBLIN 10",{"$f":"VLOOKUP(L665,Regions!A:B,2,0)","v":"E"},"Dublin",194000,"No","No","Second-Hand Dwelling house /Apartment",null,"Dublin 10"]
["24/01/2017","2017-01-24",1,"1 TOLKA ESTATE, GLASNEVIN, DUBLIN 11",{"$f":"VLOOKUP(L666,Regions!A:B,2,0)","v":{"$error":"#N/A"}},"Dublin",299500,"No","No","Second-Hand Dwelling house /Apartment"]
["24/01/2017","2017-01-24",1,"105 THE ORCHARD, LEIXLIP ROAD, LUCAN",{"$f":"VLOOKUP(L667,Regions!A:B,2,0)","v":{"$error":"#N/A"}},"Dublin",245000,"No","No","Second-Hand Dwelling house /Apartment"]
["24/01/2017","2017-01-24",1,"13 BEECHFIELD WAY, CLONEE, DUBLIN 15",{"$f":"VLOOKUP(L668,Regions!A:B,2,0)","v":"S"},"Dublin",264000,"No","No","Second-Hand Dwelling house /Apartment",null,"Dublin 15"]
["24/01/2017","2017-01-24",1,"13 PRIORY GROVE, BLACKROCK, DUBLIN",{"$f":"VLOOKUP(L669,Regions!A:B,2,0)","v":{"$error":"#N/A"}},"Dublin",880000,"No","No","Second-Hand Dwelling house /Apartment"]
["24/01/2017","2017-01-24",1,"14 FERNDALE, HUNTSTOWN GLEN, CLONSILLA DUBLIN 15",{"$f":"VLOOKUP(L670,Regions!A:B,2,0)","v":"S"},"Dublin",235000,"No","No","Second-Hand Dwelling house /Apartment",null,"Dublin 15"]
["24/01/2017","2017-01-24",1,"14 FRIARSLAND CRESENT, ROEBUCK RD, CLONSKEAGH DUBLIN 14",{"$f":"VLOOKUP(L671,Regions!A:B,2,0)","v":"E"},"Dublin",330000,"No","No","Second-Hand Dwelling house /Apartment",null,"Dublin 14"]
["24/01/2017","2017-01-24",1,"153 GLENMAROON RD, PALMERSTOWN, DUBLIN 20",{"$f":"VLOOKUP(L672,Regions!A:B,2,0)","v":"N"},"Dublin",310000,"No","No","Second-Hand Dwelling house /Apartment",null,"Dublin 20"]
["24/01/2017","2017-01-24",1,"17 FOXHILL GREEN, BALDOYLE WEST, DUBLIN 13",{"$f":"VLOOKUP(L673,Regions!A:B,2,0)","v":"S"},"Dublin",130000,"Yes","No","Second-Hand Dwelling house /Apartment",null,"Dublin 13"]
["24/01/2017","2017-01-24",1,"177 LYMEWOOD MEWS, NORTHWOOD, SANTRY DUBLIN 9",{"$f":"VLOOKUP(L674,Regions!A:B,2,0)","v":"W"},"Dublin",217000,"No","No","Second-Hand Dwelling house /Apartment",null,"Dublin 9"]
["24/01/2017","2017-01-24",1,"20 The Lawn, Hansfield Wood, Hansfield",{"$f":"VLOOKUP(L675,Regions!A:B,2,0)","v":"S"},"Dublin",242246,"No","Yes","New Dwelling house /Apartment","greater than or equal to 38 sq metres and less than 125 sq metres","Dublin 15"]
["24/01/2017","2017-01-24",1,"22 HANBURY HALL, MEATH STREET, DUBLIN",{"$f":"VLOOKUP(L676,Regions!A:B,2,0)","v":{"$error":"#N/A"}},"Dublin",250000,"No","No","Second-Hand Dwelling house /Apartment"]
["24/01/2017","2017-01-24",1,"24 KELLYS BAY PROMENADE, SKERRIES, DUBLIN",{"$f":"VLOOKUP(L677,Regions!A:B,2,0)","v":{"$error":"#N/A"}},"Dublin",325000,"No","No","Second-Hand Dwelling house /Apartment"]
["24/01/2017","2017-01-24",1,"24E VALEVIEW GARDENS, FINGLAS SOUTH, DUBLIN 11",{"$f":"VLOOKUP(L678,Regions!A:B,2,0)","v":"E"},"Dublin",44490.77,"Yes","No","Second-Hand Dwelling house /Apartment",null,"Dublin 11"]
["24/01/2017","2017-01-24",1,"24E VALEVIEW GARDENS, FINGLAS SOUTH, DUBLIN 11",{"$f":"VLOOKUP(L679,Regions!A:B,2,0)","v":"E"},"Dublin",44490.77,"Yes","No","Second-Hand Dwelling house /Apartment",null,"Dublin 11"]
["24/01/2017","2017-01-24",1,"25 ST HELENS ROAD, BLACKROCK, CO DUBLIN",{"$f":"VLOOKUP(L680,Regions!A:B,2,0)","v":{"$error":"#N/A"}},"Dublin",1070000,"No","No","Second-Hand Dwelling house /Apartment"]
["24/01/2017","2017-01-24",1,"28 Belarmine Grove, Belarmine Woods, Stepaside",{"$f":"VLOOKUP(L681,Regions!A:B,2,0)","v":{"$error":"#N/A"}},"Dublin",352422.91,"No","Yes","New Dwelling house /Apartment","greater than or equal to 38 sq metres and less than 125 sq metres"]
["24/01/2017","2017-01-24",1,"3 BOOTERSTOWN WOOD, BOOTERSTOWN AVE, BOOTERSTOWN",{"$f":"VLOOKUP(L682,Regions!A:B,2,0)","v":{"$error":"#N/A"}},"Dublin",430000,"No","No","Second-Hand Dwelling house /Apartment"]
["24/01/2017","2017-01-24",1,"3 DUBBER CROSS, FINGLAS, DUBLIN11",{"$f":"VLOOKUP(L683,Regions!A:B,2,0)","v":{"$error":"#N/A"}},"Dublin",180000,"No","No","Second-Hand Dwelling house /Apartment"]
["24/01/2017","2017-01-24",1,"32 ASHFIELD, TEMPLEOGUE, DUBLIN 6W",{"$f":"VLOOKUP(L684,Regions!A:B,2,0)","v":{"$error":"#N/A"}},"Dublin",755000,"No","No","Second-Hand Dwelling house /Apartment"]
["24/01/2017","2017-01-24",1,"356 SOUTH CIRCULAR RD, DOLPHINS BARN, DUBLIN 8",{"$f":"VLOOKUP(L685,Regions!A:B,2,0)","v":"S"},"Dublin",530000,"No","No","Second-Hand Dwelling house /Apartment",null,"Dublin 8"]
["24/01/2017","2017-01-24",1,"38 WATERVILLE HALL, WATERVILLE TERRACE, WATERVILLE",{"$f":"VLOOKUP(L686,Regions!A:B,2,0)","v":"S"},"Dublin",212500,"No","No","Second-Hand Dwelling house /Apartment",null,"Dublin 15"]
["24/01/2017","2017-01-24",1,"4 SEAFIELD COURT, MALAHIDE, DUBLIN",{"$f":"VLOOKUP(L687,Regions!A:B,2,0)","v":{"$error":"#N/A"}},"Dublin",405000,"No","No","Second-Hand Dwelling house /Apartment"]
["24/01/2017","2017-01-24",1,"40 BOROIMHE CHERRY, SWORDS, DUBLIN",{"$f":"VLOOKUP(L688,Regions!A:B,2,0)","v":{"$error":"#N/A"}},"Dublin",180000,"No","No","Second-Hand Dwelling house /Apartment"]
["24/01/2017","2017-01-24",1,"41 GALTRIM GRANGE, MALAHIDE, DUBLIN",{"$f":"VLOOKUP(L689,Regions!A:B,2,0)","v":{"$error":"#N/A"}},"Dublin",467500,"No","No","Second-Hand Dwelling house /Apartment"]
["24/01/2017","2017-01-24",1,"48 LARAGHCON, LUCAN VILLAGE, DUBLIN",{"$f":"VLOOKUP(L690,Regions!A:B,2,0)","v":{"$error":"#N/A"}},"Dublin",310000,"No","No","Second-Hand Dwelling house /Apartment"]
["24/01/2017","2017-01-24",1,"58 NORTHCLIFFE, MARTINS ROW, CHAPELIZOD",{"$f":"VLOOKUP(L691,Regions!A:B,2,0)","v":"N"},"Dublin",215000,"No","No","Second-Hand Dwelling house /Apartment",null,"Dublin 20"]
["24/01/2017","2017-01-24",1,"6 GLENAULIN PARK, CHAPELIZOD, DUBLIN 20",{"$f":"VLOOKUP(L692,Regions!A:B,2,0)","v":"N"},"Dublin",550000,"No","No","Second-Hand Dwelling house /Apartment",null,"Dublin 20"]
["24/01/2017","2017-01-24",1,"6 Silverton, harolds grange road, rathfarnham",{"$f":"VLOOKUP(L693,Regions!A:B,2,0)","v":"E"},"Dublin",524228,"No","Yes","New Dwelling house /Apartment","greater than or equal to 125 sq metres","Dublin 16"]
["24/01/2017","2017-01-24",1,"60 SEAMOUNT, STILLORGAN, DUBLIN",{"$f":"VLOOKUP(L694,Regions!A:B,2,0)","v":{"$error":"#N/A"}},"Dublin",342500,"No","No","Second-Hand Dwelling house /Apartment"]
["24/01/2017","2017-01-24",1,"7 STONEVIEW PLACE, DUN LAOGHAIRE, DUBLIN",{"$f":"VLOOKUP(L695,Regions!A:B,2,0)","v":{"$error":"#N/A"}},"Dublin",400000,"No","No","Second-Hand Dwelling house /Apartment"]
["24/01/2017","2017-01-24",1,"74 SYCAMORE RD, FINGLAS EAST, DUBLIN 11",{"$f":"VLOOKUP(L696,Regions!A:B,2,0)","v":"E"},"Dublin",391500,"No","No","Second-Hand Dwelling house /Apartment",null,"Dublin 11"]
["24/01/2017","2017-01-24",1,"8 RIVERBANK HALL, ADDISON AVE, ADDISON PARK DUBLIN 11",{"$f":"VLOOKUP(L697,Regions!A:B,2,0)","v":"E"},"Dublin",208500,"No","No","Second-Hand Dwelling house /Apartment",null,"Dublin 11"]
["24/01/2017","2017-01-24",1,"87 BELARMINE PLAZA, STEPASIDE DUBLIN 18, DUBLIN",{"$f":"VLOOKUP(L698,Regions!A:B,2,0)","v":"W"},"Dublin",197000,"No","No","Second-Hand Dwelling house /Apartment",null,"Dublin 18"]
["24/01/2017","2017-01-24",1,"9 ASHFIELD AVENUE, RIDGEWOOD, FORREST ROAD",{"$f":"VLOOKUP(L699,Regions!A:B,2,0)","v":{"$error":"#N/A"}},"Dublin",343615,"No","Yes","New Dwelling house /Apartment","greater than or equal to 125 sq metres"]
["24/01/2017","2017-01-24",1,"9 OAKCOURT CLOSE, PALMERSTOWN, DUBLIN 20",{"$f":"VLOOKUP(L700,Regions!A:B,2,0)","v":"N"},"Dublin",235000,"No","No","Second-Hand Dwelling house /Apartment",null,"Dublin 20"]
["24/01/2017","2017-01-24",1,"APT 10, THE RESIDENCES, FOUR SEASONS HOTEL",{"$f":"VLOOKUP(L701,Regions!A:B,2,0)","v":"W"},"Dublin",1325000,"No","No","Second-Hand Dwelling house /Apartment",null,"Dublin 4"]
["24/01/2017","2017-01-24",1,"APT 116, COLLEGE VIEW, MAIN ST DUBLIN 11",{"$f":"VLOOKUP(L702,Regions!A:B,2,0)","v":"E"},"Dublin",160000,"No","No","Second-Hand Dwelling house /Apartment",null,"Dublin 11"]
["24/01/2017","2017-01-24",1,"APT 34, CASTLE WAY, CHANCERY LANE DUBLIN 8",{"$f":"VLOOKUP(L703,Regions!A:B,2,0)","v":"S"},"Dublin",79929.070000000007,"Yes","No","Second-Hand Dwelling house /Apartment",null,"Dublin 8"]
["24/01/2017","2017-01-24",1,"APT 5, 12 ADELAIDE RD, DUBLIN 2",{"$f":"VLOOKUP(L704,Regions!A:B,2,0)","v":"E"},"Dublin",226000,"No","No","Second-Hand Dwelling house /Apartment",null,"Dublin 2"]
["24/01/2017","2017-01-24",1,"NO 7 COTTONWOOD, CARPENTERSTOWN, CASTLEKNOCK",{"$f":"VLOOKUP(L705,Regions!A:B,2,0)","v":{"$error":"#N/A"}},"Dublin",916301,"No","Yes","New Dwelling house /Apartment","greater than or equal to 125 sq metres"]
["25/01/2017","2017-01-25",1,"104 BOW BRIDGE PLACE, IRWIN ST, KILMAINHAM DUBLIN 8",{"$f":"VLOOKUP(L706,Regions!A:B,2,0)","v":"S"},"Dublin",280000,"No","No","Second-Hand Dwelling house /Apartment",null,"Dublin 8"]
["25/01/2017",{"$f":"DATE(RIGHT(A707,4),MID(A707,4,2),LEFT(A707,2))","v":"2017-01-25"},{"$f":"IF(ISERROR(MONTH(A707)),MONTH(B707),MONTH(A707))","v":1},"105 VERDEMONT, SNUGBOROUGH RD, BLANCHARDSTOWN DUBLIN 15",{"$f":"VLOOKUP(L707,Regions!A:B,2,0)","v":"S"},"Dublin",240000,"No","No","Second-Hand Dwelling house /Apartment",null,"Dublin 15"]
["25/01/2017","2017-01-25",1,"12 ST ATTRACTA RD, CABRA, DUBLIN 7",{"$f":"VLOOKUP(L708,Regions!A:B,2,0)","v":"W"},"Dublin",190000,"No","No","Second-Hand Dwelling house /Apartment",null,"Dublin 7"]
["25/01/2017","2017-01-25",1,"13 THE GRANNARY, LONGS PLACE, DUBLIN 8",{"$f":"VLOOKUP(L709,Regions!A:B,2,0)","v":"S"},"Dublin",210000,"No","No","Second-Hand Dwelling house /Apartment",null,"Dublin 8"]
["25/01/2017","2017-01-25",1,"15 WOODRUN, VERDEMONT, BLANCHARDSTOWN",{"$f":"VLOOKUP(L710,Regions!A:B,2,0)","v":"S"},"Dublin",197000,"No","No","Second-Hand Dwelling house /Apartment",null,"Dublin 15"]
["25/01/2017","2017-01-25",1,"2 PEMBROKE COTTAGES, BOOTERSTOWN, DUBLIN",{"$f":"VLOOKUP(L711,Regions!A:B,2,0)","v":{"$error":"#N/A"}},"Dublin",565000,"No","No","Second-Hand Dwelling house /Apartment"]
["25/01/2017","2017-01-25",1,"2 Saul's Court, Cows Lane, Temple Bar",{"$f":"VLOOKUP(L712,Regions!A:B,2,0)","v":"S"},"Dublin",215000,"No","Yes","New Dwelling house /Apartment","greater than or equal to 38 sq metres and less than 125 sq metres","Dublin 8"]
["25/01/2017","2017-01-25",1,"21 CHURCH PARK DR, HAROLDS CROSS, DUBLIN 6W",{"$f":"VLOOKUP(L713,Regions!A:B,2,0)","v":{"$error":"#N/A"}},"Dublin",430000,"No","No","Second-Hand Dwelling house /Apartment"]
["25/01/2017","2017-01-25",1,"21 GREENMOUNT RD, TERENURE, DUBLIN 6",{"$f":"VLOOKUP(L714,Regions!A:B,2,0)","v":"W"},"Dublin",920000,"No","No","Second-Hand Dwelling house /Apartment",null,"Dublin 6"]
["25/01/2017","2017-01-25",1,"24 Blackberry Hill, Glenamuck Road, Carrickmines",{"$f":"VLOOKUP(L715,Regions!A:B,2,0)","v":"W"},"Dublin",612334.80000000005,"No","Yes","New Dwelling house /Apartment","greater than or equal to 38 sq metres and less than 125 sq metres","Dublin 18"]
["25/01/2017","2017-01-25",1,"25 EARLS COURT, REUBEN ST, DUBLIN 8",{"$f":"VLOOKUP(L716,Regions!A:B,2,0)","v":"S"},"Dublin",220000,"No","No","Second-Hand Dwelling house /Apartment",null,"Dublin 8"]
["25/01/2017","2017-01-25",1,"27 ANLEY COURT, ESKER LANE, LUCAN",{"$f":"VLOOKUP(L717,Regions!A:B,2,0)","v":{"$error":"#N/A"}},"Dublin",223000,"No","No","Second-Hand Dwelling house /Apartment"]
["25/01/2017","2017-01-25",1,"28 CLONSILLA RD, BLANCHARDSTOWN, DUBLIN 15",{"$f":"VLOOKUP(L718,Regions!A:B,2,0)","v":"S"},"Dublin",290000,"No","No","Second-Hand Dwelling house /Apartment",null,"Dublin 15"]
["25/01/2017","2017-01-25",1,"2F RATHBORNE CLOSE, ASHTOWN, DUBLIN 15",{"$f":"VLOOKUP(L719,Regions!A:B,2,0)","v":"S"},"Dublin",260000,"No","No","Second-Hand Dwelling house /Apartment",null,"Dublin 15"]
["25/01/2017","2017-01-25",1,"3 CRESTON AVE, ST MARGARETS RD, MEAKSTOWN DUBLIN 11",{"$f":"VLOOKUP(L720,Regions!A:B,2,0)","v":"E"},"Dublin",255000,"No","No","Second-Hand Dwelling house /Apartment",null,"Dublin 11"]
["25/01/2017","2017-01-25",1,"308B LOWER KIMMAEL RD, DUBLIN 6, DUBLIN",{"$f":"VLOOKUP(L721,Regions!A:B,2,0)","v":"S"},"Dublin",200000,"No","No","Second-Hand Dwelling house /Apartment",null,"Dublin 15"]
["25/01/2017","2017-01-25",1,"34 LOFTUS SQ, RATHFARNHAM, DUBLIN 14",{"$f":"VLOOKUP(L722,Regions!A:B,2,0)","v":"E"},"Dublin",157500,"Yes","No","Second-Hand Dwelling house /Apartment",null,"Dublin 14"]
["25/01/2017","2017-01-25",1,"36 CLOGHER RD, CRUMLIN, DUBLIN 12",{"$f":"VLOOKUP(L723,Regions!A:B,2,0)","v":"N"},"Dublin",252000,"No","No","Second-Hand Dwelling house /Apartment",null,"Dublin 12"]
["25/01/2017","2017-01-25",1,"4 CASTLEFIELD MANOR, MALAHIDE, DUBLIN",{"$f":"VLOOKUP(L724,Regions!A:B,2,0)","v":{"$error":"#N/A"}},"Dublin",283267.5,"No","No","Second-Hand Dwelling house /Apartment"]
["25/01/2017","2017-01-25",1,"4 HOLLYBROOK, BLUEBELL AVENUE, BLUEBELL",{"$f":"VLOOKUP(L725,Regions!A:B,2,0)","v":"N"},"Dublin",87500,"No","No","Second-Hand Dwelling house /Apartment",null,"Dublin 12"]
["25/01/2017","2017-01-25",1,"4 KILCROSS AVE, SANDYFORD, DUBLIN 18",{"$f":"VLOOKUP(L726,Regions!A:B,2,0)","v":"W"},"Dublin",300000,"No","No","Second-Hand Dwelling house /Apartment",null,"Dublin 18"]
["25/01/2017","2017-01-25",1,"40 Castlegrange Avenue, Castlegrange",{"$f":"VLOOKUP(L727,Regions!A:B,2,0)","v":"S"},"Dublin",321586,"No","Yes","New Dwelling house /Apartment","greater than or equal to 38 sq metres and less than 125 sq metres","Dublin 15"]
["25/01/2017","2017-01-25",1,"41 TERENURE RD NORTH, TERENURE, DUBLIN 6W",{"$f":"VLOOKUP(L728,Regions!A:B,2,0)","v":{"$error":"#N/A"}},"Dublin",615000,"No","No","Second-Hand Dwelling house /Apartment"]
["25/01/2017","2017-01-25",1,"47 COOLNEVAUN, STILLORGAN, DUBLIN",{"$f":"VLOOKUP(L729,Regions!A:B,2,0)","v":{"$error":"#N/A"}},"Dublin",660000,"No","No","Second-Hand Dwelling house /Apartment"]
["25/01/2017","2017-01-25",1,"5 BARROW ST, RINGSEND, DUBLIN 4",{"$f":"VLOOKUP(L730,Regions!A:B,2,0)","v":"W"},"Dublin",180000,"No","No","Second-Hand Dwelling house /Apartment",null,"Dublin 4"]
["25/01/2017","2017-01-25",1,"50 TRITONVILLE RD, SANDYMOUNT, DUBLIN 4",{"$f":"VLOOKUP(L731,Regions!A:B,2,0)","v":"W"},"Dublin",875602,"No","No","Second-Hand Dwelling house /Apartment",null,"Dublin 4"]
["25/01/2017","2017-01-25",1,"6 BANNOW ROAD, CABRA WEST, DUBLIN 7",{"$f":"VLOOKUP(L732,Regions!A:B,2,0)","v":"W"},"Dublin",220000,"No","No","Second-Hand Dwelling house /Apartment",null,"Dublin 7"]
["25/01/2017","2017-01-25",1,"6 ST LAWERENCE TERRACE, HOWTH, FINGAL",{"$f":"VLOOKUP(L733,Regions!A:B,2,0)","v":"S"},"Dublin",500000,"No","No","Second-Hand Dwelling house /Apartment",null,"Dublin 15"]
["25/01/2017","2017-01-25",1,"62 WOODPARK, CASTLEKNOCK, DUBLIN 15",{"$f":"VLOOKUP(L734,Regions!A:B,2,0)","v":"S"},"Dublin",590000,"No","No","Second-Hand Dwelling house /Apartment",null,"Dublin 15"]
["25/01/2017","2017-01-25",1,"67 FERNCOURT GREEN, FIRHOUSE, DUBLIN 24",{"$f":"VLOOKUP(L735,Regions!A:B,2,0)","v":"E"},"Dublin",360000,"No","No","Second-Hand Dwelling house /Apartment",null,"Dublin 24"]
["25/01/2017","2017-01-25",1,"7 ASHFIELD AVENUE, RIDGEWOOD, FOREST ROAD",{"$f":"VLOOKUP(L736,Regions!A:B,2,0)","v":{"$error":"#N/A"}},"Dublin",339207.05,"No","Yes","New Dwelling house /Apartment","greater than or equal to 38 sq metres and less than 125 sq metres"]
["25/01/2017","2017-01-25",1,"7 Castlegrange Court, Castlegrange, Dublin 15",{"$f":"VLOOKUP(L737,Regions!A:B,2,0)","v":"S"},"Dublin",259911,"No","Yes","New Dwelling house /Apartment","less than 38 sq metres","Dublin 15"]
["25/01/2017","2017-01-25",1,"79 BALLYGALL CRESCENT, FINGLAS EAST, DUBLIN 11",{"$f":"VLOOKUP(L738,Regions!A:B,2,0)","v":"E"},"Dublin",205000,"No","No","Second-Hand Dwelling house /Apartment",null,"Dublin 11"]
["25/01/2017","2017-01-25",1,"84 GATEWAY, BALLYMUN, DUBLIN 9",{"$f":"VLOOKUP(L739,Regions!A:B,2,0)","v":"W"},"Dublin",132000,"No","No","Second-Hand Dwelling house /Apartment",null,"Dublin 9"]
["25/01/2017","2017-01-25",1,"86 PEMBROKE RD, BALLSBRIDGE, DUBLIN 4",{"$f":"VLOOKUP(L740,Regions!A:B,2,0)","v":"W"},"Dublin",2125000,"No","No","Second-Hand Dwelling house /Apartment",null,"Dublin 4"]
["25/01/2017","2017-01-25",1,"9 CLONUSKE DR, BALBRIGGAN, DUBLIN",{"$f":"VLOOKUP(L741,Regions!A:B,2,0)","v":{"$error":"#N/A"}},"Dublin",215000,"No","No","Second-Hand Dwelling house /Apartment"]
["25/01/2017","2017-01-25",1,"9 PARTRIDGE TERRACE, INCHICORE, DUBLIN 8",{"$f":"VLOOKUP(L742,Regions!A:B,2,0)","v":"S"},"Dublin",214000,"No","No","Second-Hand Dwelling house /Apartment",null,"Dublin 8"]
["25/01/2017","2017-01-25",1,"APT 7 PACKENHAM, SLOPERTON, MONKSTOWN",{"$f":"VLOOKUP(L743,Regions!A:B,2,0)","v":{"$error":"#N/A"}},"Dublin",335000,"No","No","Second-Hand Dwelling house /Apartment"]
["25/01/2017","2017-01-25",1,"APT 9, BLOCK A, METROPOLITAN DUBLIN 8",{"$f":"VLOOKUP(L744,Regions!A:B,2,0)","v":"S"},"Dublin",200000,"No","No","Second-Hand Dwelling house /Apartment",null,"Dublin 8"]
["25/01/2017","2017-01-25",1,"Apt. 22 Waterside Lawn, Waterside, Swords Road",{"$f":"VLOOKUP(L745,Regions!A:B,2,0)","v":{"$error":"#N/A"}},"Dublin",167400,"No","Yes","New Dwelling house /Apartment","greater than or equal to 38 sq metres and less than 125 sq metres"]
["25/01/2017","2017-01-25",1,"INVICTA, HAROLD CRESCENT, GLASTHULE",{"$f":"VLOOKUP(L746,Regions!A:B,2,0)","v":{"$error":"#N/A"}},"Dublin",805000,"No","No","Second-Hand Dwelling house /Apartment"]
["25/01/2017","2017-01-25",1,"KILTERNAN LODGE, KILTERNAN, DUBLIN",{"$f":"VLOOKUP(L747,Regions!A:B,2,0)","v":"W"},"Dublin",1900000,"No","No","Second-Hand Dwelling house /Apartment",null,"Dublin 18"]
["26/01/2017","2017-01-26",1,"1 LIFFEY PARK, LIFFEY VALLEY PARK, LUCAN",{"$f":"VLOOKUP(L748,Regions!A:B,2,0)","v":{"$error":"#N/A"}},"Dublin",307000,"No","No","Second-Hand Dwelling house /Apartment"]
["26/01/2017","2017-01-26",1,"1 TOWERVIEW COTTAGES, GLASNEVIN, DUBLIN 11",{"$f":"VLOOKUP(L749,Regions!A:B,2,0)","v":"E"},"Dublin",262000,"No","No","Second-Hand Dwelling house /Apartment",null,"Dublin 11"]
["26/01/2017","2017-01-26",1,"10 BRAEMOR RD, CHURCHTOWN, DUBLIN 14",{"$f":"VLOOKUP(L750,Regions!A:B,2,0)","v":"E"},"Dublin",600000,"No","No","Second-Hand Dwelling house /Apartment",null,"Dublin 14"]
["26/01/2017","2017-01-26",1,"10 ST ANNES TERRACE, RAHENY DUBLIN 5",{"$f":"VLOOKUP(L751,Regions!A:B,2,0)","v":{"$error":"#N/A"}},"Dublin",390000,"No","No","Second-Hand Dwelling house /Apartment"]
["26/01/2017","2017-01-26",1,"116 LORETO AVE, RATHFARNHAM, DUBLIN 14",{"$f":"VLOOKUP(L752,Regions!A:B,2,0)","v":"E"},"Dublin",360000,"No","No","Second-Hand Dwelling house /Apartment",null,"Dublin 14"]
["26/01/2017","2017-01-26",1,"12 LONDONBRIDGE RD, SANDYMOUNT, DUBLIN 4",{"$f":"VLOOKUP(L753,Regions!A:B,2,0)","v":"W"},"Dublin",780000,"No","No","Second-Hand Dwelling house /Apartment",null,"Dublin 4"]
["26/01/2017","2017-01-26",1,"13 LINDEN PLACE, GROVE AVE, BLACKROCK",{"$f":"VLOOKUP(L754,Regions!A:B,2,0)","v":{"$error":"#N/A"}},"Dublin",775000,"No","No","Second-Hand Dwelling house /Apartment"]
["26/01/2017","2017-01-26",1,"13 ROEBUCK CASTLE, CLONSKEAGH, DUBLIN 14",{"$f":"VLOOKUP(L755,Regions!A:B,2,0)","v":"E"},"Dublin",647500,"No","No","Second-Hand Dwelling house /Apartment",null,"Dublin 14"]
["26/01/2017","2017-01-26",1,"130 ALLENDALE SQ, CLONSILLA, DUBLIN 15",{"$f":"VLOOKUP(L756,Regions!A:B,2,0)","v":"S"},"Dublin",187000,"No","No","Second-Hand Dwelling house /Apartment",null,"Dublin 15"]
["26/01/2017","2017-01-26",1,"14 PARKSIDE CLOSE, MALAHIDE ROAD, DUBLIN",{"$f":"VLOOKUP(L757,Regions!A:B,2,0)","v":"S"},"Dublin",281931.71000000002,"No","Yes","New Dwelling house /Apartment","greater than or equal to 38 sq metres and less than 125 sq metres","Dublin 13"]
["26/01/2017","2017-01-26",1,"14 SADDLERS CRESENT, DUBLIN 15",{"$f":"VLOOKUP(L758,Regions!A:B,2,0)","v":{"$error":"#N/A"}},"Dublin",240000,"No","No","Second-Hand Dwelling house /Apartment"]
["26/01/2017","2017-01-26",1,"14 THE GREEN, CYPRUS DOWNS, TEMPLEOGUE",{"$f":"VLOOKUP(L759,Regions!A:B,2,0)","v":{"$error":"#N/A"}},"Dublin",725000,"No","No","Second-Hand Dwelling house /Apartment"]
["26/01/2017","2017-01-26",1,"145 TRIMBLESTON, GOATSTOWN RD, DUBLIN",{"$f":"VLOOKUP(L760,Regions!A:B,2,0)","v":"E"},"Dublin",410000,"No","No","Second-Hand Dwelling house /Apartment",null,"Dublin 14"]
["26/01/2017","2017-01-26",1,"157 WHITEHALL RD, TERENURE, DUBLIN 12",{"$f":"VLOOKUP(L761,Regions!A:B,2,0)","v":"N"},"Dublin",525000,"No","No","Second-Hand Dwelling house /Apartment",null,"Dublin 12"]
["26/01/2017","2017-01-26",1,"158 CHERRYWOOD DRIVE, CLONDALKIN, DUBLIN 22",{"$f":"VLOOKUP(L762,Regions!A:B,2,0)","v":{"$error":"#N/A"}},"Dublin",240000,"No","No","Second-Hand Dwelling house /Apartment"]
["26/01/2017","2017-01-26",1,"16 HYDE RD, DALKEY, DUBLIN",{"$f":"VLOOKUP(L763,Regions!A:B,2,0)","v":{"$error":"#N/A"}},"Dublin",395000,"No","No","Second-Hand Dwelling house /Apartment"]
["26/01/2017","2017-01-26",1,"169  The Berkeley, PEMBROKE SQ, GRAND CANAL ST DUBLIN 4",{"$f":"VLOOKUP(L764,Regions!A:B,2,0)","v":"W"},"Dublin",300000,"No","No","Second-Hand Dwelling house /Apartment",null,"Dublin 4"]
["26/01/2017","2017-01-26",1,"17 GLEN ELLAN COURT, SWORDS, DUBLIN",{"$f":"VLOOKUP(L765,Regions!A:B,2,0)","v":{"$error":"#N/A"}},"Dublin",326500,"No","No","Second-Hand Dwelling house /Apartment"]
["26/01/2017","2017-01-26",1,"17 TULLYHALL CLOSE, LUCAN",{"$f":"VLOOKUP(L766,Regions!A:B,2,0)","v":{"$error":"#N/A"}},"Dublin",262114.53,"No","Yes","New Dwelling house /Apartment","greater than or equal to 38 sq metres and less than 125 sq metres"]
["26/01/2017","2017-01-26",1,"17 WINDSOR PARK, MONKSTOWN, DUBLIN",{"$f":"VLOOKUP(L767,Regions!A:B,2,0)","v":{"$error":"#N/A"}},"Dublin",660000,"No","No","Second-Hand Dwelling house /Apartment"]
["26/01/2017","2017-01-26",1,"175 BLOCK C LYMEWOOD, SANTRY, DUBLIN 9",{"$f":"VLOOKUP(L768,Regions!A:B,2,0)","v":"W"},"Dublin",180000,"No","No","Second-Hand Dwelling house /Apartment",null,"Dublin 9"]
["26/01/2017","2017-01-26",1,"18 DUNSOGHLY PK, RATOATH RD FINGLAS, DUBLIN 11",{"$f":"VLOOKUP(L769,Regions!A:B,2,0)","v":"E"},"Dublin",218000,"No","No","Second-Hand Dwelling house /Apartment",null,"Dublin 11"]
["26/01/2017","2017-01-26",1,"18 LORETO PARK, RATHFARNHAM, DUBLIN 14",{"$f":"VLOOKUP(L770,Regions!A:B,2,0)","v":"E"},"Dublin",320000,"No","No","Second-Hand Dwelling house /Apartment",null,"Dublin 14"]
["26/01/2017",{"$f":"DATE(RIGHT(A771,4),MID(A771,4,2),LEFT(A771,2))","v":"2017-01-26"},{"$f":"IF(ISERROR(MONTH(A771)),MONTH(B771),MONTH(A771))","v":1},"18 WATERLOO ROAD, BALLSBRIDGE, DUBLIN 4",{"$f":"VLOOKUP(L771,Regions!A:B,2,0)","v":{"$error":"#N/A"}},"Dublin",156250,"Yes","No","Second-Hand Dwelling house /Apartment"]
["26/01/2017","2017-01-26",1,"19 BELGRAVE, SQ EAST, RATHMINES",{"$f":"VLOOKUP(L772,Regions!A:B,2,0)","v":"W"},"Dublin",1800000,"No","No","Second-Hand Dwelling house /Apartment",null,"Dublin 6"]
["26/01/2017","2017-01-26",1,"2 ORWELL MEWS, RATHGAR, DUBLIN 6",{"$f":"VLOOKUP(L773,Regions!A:B,2,0)","v":"W"},"Dublin",437000,"No","No","Second-Hand Dwelling house /Apartment",null,"Dublin 6"]
["26/01/2017","2017-01-26",1,"2 TRIMBLESTON, ROEBUCK RD, DUBLIN 14",{"$f":"VLOOKUP(L774,Regions!A:B,2,0)","v":"E"},"Dublin",392500,"No","No","Second-Hand Dwelling house /Apartment",null,"Dublin 14"]
["26/01/2017","2017-01-26",1,"20 Bracken Road Close, Carpenterstown, Castleknock",{"$f":"VLOOKUP(L775,Regions!A:B,2,0)","v":"S"},"Dublin",541850.21,"No","Yes","New Dwelling house /Apartment","greater than or equal to 125 sq metres","Dublin 15"]
["26/01/2017","2017-01-26",1,"20 DOOROGE WOODS, BALLYBOUGHAL, SWORDS",{"$f":"VLOOKUP(L776,Regions!A:B,2,0)","v":{"$error":"#N/A"}},"Dublin",383259,"No","Yes","New Dwelling house /Apartment","greater than or equal to 125 sq metres"]
["26/01/2017","2017-01-26",1,"20 EARLSFORT COURT, LUCAN, DUBLIN",{"$f":"VLOOKUP(L777,Regions!A:B,2,0)","v":{"$error":"#N/A"}},"Dublin",260000,"No","No","Second-Hand Dwelling house /Apartment"]
["26/01/2017","2017-01-26",1,"22 FRANKFORT PARK, DUNDRUM, DUBLIN 14",{"$f":"VLOOKUP(L778,Regions!A:B,2,0)","v":"E"},"Dublin",1040000,"No","No","Second-Hand Dwelling house /Apartment",null,"Dublin 14"]
["26/01/2017","2017-01-26",1,"23 LIMEKILN DR, GREENHILLS, DUBLIN 12",{"$f":"VLOOKUP(L779,Regions!A:B,2,0)","v":"N"},"Dublin",370000,"No","No","Second-Hand Dwelling house /Apartment",null,"Dublin 12"]
["26/01/2017","2017-01-26",1,"247 CARNLOUGH RD, CABRA WEST, DUBLIN 7",{"$f":"VLOOKUP(L780,Regions!A:B,2,0)","v":"W"},"Dublin",200000,"No","No","Second-Hand Dwelling house /Apartment",null,"Dublin 7"]
["26/01/2017","2017-01-26",1,"27 KNOWTH COURT, POPPINTREE, BALLYMUN",{"$f":"VLOOKUP(L781,Regions!A:B,2,0)","v":"E"},"Dublin",145000,"No","No","Second-Hand Dwelling house /Apartment",null,"Dublin 11"]
["26/01/2017","2017-01-26",1,"28 SHANOWEN DR, SANTRY, DUBLIN 9",{"$f":"VLOOKUP(L782,Regions!A:B,2,0)","v":"W"},"Dublin",317000,"No","No","Second-Hand Dwelling house /Apartment",null,"Dublin 9"]
["26/01/2017","2017-01-26",1,"30 HOME VILLAS, DONNYBROOK, DUBLIN 4",{"$f":"VLOOKUP(L783,Regions!A:B,2,0)","v":"W"},"Dublin",445000,"No","No","Second-Hand Dwelling house /Apartment",null,"Dublin 4"]
["26/01/2017","2017-01-26",1,"32 MILLBROOK VILLAGE, MILLTOWN, DUBLIN 8",{"$f":"VLOOKUP(L784,Regions!A:B,2,0)","v":"W"},"Dublin",430000,"No","No","Second-Hand Dwelling house /Apartment",null,"Dublin 6"]
["26/01/2017","2017-01-26",1,"33 BOROIMHE, SWORDS, DUBLIN",{"$f":"VLOOKUP(L785,Regions!A:B,2,0)","v":{"$error":"#N/A"}},"Dublin",205000,"No","No","Second-Hand Dwelling house /Apartment"]
["26/01/2017","2017-01-26",1,"33 The Terrace, Robswall, Malahide",{"$f":"VLOOKUP(L786,Regions!A:B,2,0)","v":{"$error":"#N/A"}},"Dublin",506607.93,"No","Yes","New Dwelling house /Apartment","greater than or equal to 38 sq metres and less than 125 sq metres"]
["26/01/2017","2017-01-26",1,"4 LAKELANDS PARK, TERENURE, DUBLIN 6W",{"$f":"VLOOKUP(L787,Regions!A:B,2,0)","v":{"$error":"#N/A"}},"Dublin",1190000,"No","No","Second-Hand Dwelling house /Apartment"]
["26/01/2017","2017-01-26",1,"40 GLASNEVIN DOWNS, GLASNEVIN, DUBLIN 11",{"$f":"VLOOKUP(L788,Regions!A:B,2,0)","v":"E"},"Dublin",326000,"No","No","New Dwelling house /Apartment","greater than or equal to 38 sq metres and less than 125 sq metres","Dublin 11"]
["26/01/2017","2017-01-26",1,"40 HILLCOURT RD, GLENAGEARY, DUBLIN",{"$f":"VLOOKUP(L789,Regions!A:B,2,0)","v":{"$error":"#N/A"}},"Dublin",750000,"No","No","Second-Hand Dwelling house /Apartment"]
["26/01/2017","2017-01-26",1,"41 CLONLEA, BALLINTEER RD, DUNDRUM DUBLIN 16",{"$f":"VLOOKUP(L790,Regions!A:B,2,0)","v":"E"},"Dublin",335000,"Yes","No","Second-Hand Dwelling house /Apartment",null,"Dublin 16"]
["26/01/2017","2017-01-26",1,"43 SEFTON, ROCHESTOWN AVE, DUN LAOGHAIRE",{"$f":"VLOOKUP(L791,Regions!A:B,2,0)","v":{"$error":"#N/A"}},"Dublin",590000,"No","No","Second-Hand Dwelling house /Apartment"]
["26/01/2017","2017-01-26",1,"47 LWR BEECHWOOD AVE, RANELAGH, DUBLIN 6",{"$f":"VLOOKUP(L792,Regions!A:B,2,0)","v":"W"},"Dublin",1130000,"No","No","Second-Hand Dwelling house /Apartment",null,"Dublin 6"]
["26/01/2017","2017-01-26",1,"5 Ashfield Avenue, Ridgewood, Swords",{"$f":"VLOOKUP(L793,Regions!A:B,2,0)","v":{"$error":"#N/A"}},"Dublin",385000,"No","Yes","New Dwelling house /Apartment","greater than or equal to 38 sq metres and less than 125 sq metres"]
["26/01/2017","2017-01-26",1,"5 CASTLEGATE COURT, ADAMSTOWN, DUBLIN",{"$f":"VLOOKUP(L794,Regions!A:B,2,0)","v":{"$error":"#N/A"}},"Dublin",255000,"No","No","Second-Hand Dwelling house /Apartment"]
["26/01/2017","2017-01-26",1,"56 SION HILL PARK, DRUMCONDRA",{"$f":"VLOOKUP(L795,Regions!A:B,2,0)","v":"W"},"Dublin",607929,"No","Yes","New Dwelling house /Apartment","greater than or equal to 125 sq metres","Dublin 9"]
["26/01/2017","2017-01-26",1,"57 THORNVILLE AVE, ARTANE, DUBLIN 5",{"$f":"VLOOKUP(L796,Regions!A:B,2,0)","v":"S"},"Dublin",235000,"No","No","Second-Hand Dwelling house /Apartment",null,"Dublin 5"]
["26/01/2017","2017-01-26",1,"59 Diswellstown Way, Castleknock, Dublin 15",{"$f":"VLOOKUP(L797,Regions!A:B,2,0)","v":"S"},"Dublin",439647.58,"No","Yes","New Dwelling house /Apartment","greater than or equal to 125 sq metres","Dublin 15"]
["26/01/2017","2017-01-26",1,"59 MAYWOOD AVE, RAHENY, DUBLIN 5",{"$f":"VLOOKUP(L798,Regions!A:B,2,0)","v":"S"},"Dublin",290000,"Yes","No","Second-Hand Dwelling house /Apartment",null,"Dublin 5"]
["26/01/2017","2017-01-26",1,"63 RATOATH EST, CABRA, DUBLIN 7",{"$f":"VLOOKUP(L799,Regions!A:B,2,0)","v":"W"},"Dublin",272500,"No","No","Second-Hand Dwelling house /Apartment",null,"Dublin 7"]
["26/01/2017","2017-01-26",1,"63 THE TALLOW, RATHBORNE VILLAGE, ASHTOWN",{"$f":"VLOOKUP(L800,Regions!A:B,2,0)","v":"S"},"Dublin",250000,"No","No","Second-Hand Dwelling house /Apartment",null,"Dublin 15"]
["26/01/2017","2017-01-26",1,"7 TALBOT PARK, MALAHIDE, DUBLIN",{"$f":"VLOOKUP(L801,Regions!A:B,2,0)","v":{"$error":"#N/A"}},"Dublin",485000,"No","No","Second-Hand Dwelling house /Apartment"]
["26/01/2017","2017-01-26",1,"723 VIRGINIA HEIGHTS, TALLAGHT, DUBLIN 24",{"$f":"VLOOKUP(L802,Regions!A:B,2,0)","v":"E"},"Dublin",220000,"No","No","Second-Hand Dwelling house /Apartment",null,"Dublin 24"]
["26/01/2017","2017-01-26",1,"80 CASTLE RIADA GROVE, LUCAN, DUBLIN",{"$f":"VLOOKUP(L803,Regions!A:B,2,0)","v":{"$error":"#N/A"}},"Dublin",243000,"No","No","Second-Hand Dwelling house /Apartment"]
["26/01/2017","2017-01-26",1,"9 Abbotts Grove Avenue, Knocklyon",{"$f":"VLOOKUP(L804,Regions!A:B,2,0)","v":"E"},"Dublin",325109,"No","Yes","New Dwelling house /Apartment","greater than or equal to 38 sq metres and less than 125 sq metres","Dublin 16"]
["26/01/2017","2017-01-26",1,"9 Fairhaven Close, Castleknock",{"$f":"VLOOKUP(L805,Regions!A:B,2,0)","v":"S"},"Dublin",546255,"No","Yes","New Dwelling house /Apartment","greater than or equal to 38 sq metres and less than 125 sq metres","Dublin 15"]
["26/01/2017","2017-01-26",1,"9 the gate, millers glen, swords",{"$f":"VLOOKUP(L806,Regions!A:B,2,0)","v":{"$error":"#N/A"}},"Dublin",277533,"No","Yes","New Dwelling house /Apartment","greater than or equal to 38 sq metres and less than 125 sq metres"]
["26/01/2017","2017-01-26",1,"97 Diswellstown Manor, Castleknock",{"$f":"VLOOKUP(L807,Regions!A:B,2,0)","v":"S"},"Dublin",670484,"No","Yes","New Dwelling house /Apartment","greater than or equal to 125 sq metres","Dublin 15"]
["26/01/2017","2017-01-26",1,"ALCOVE, CHANNEL ROAD, RUSH",{"$f":"VLOOKUP(L808,Regions!A:B,2,0)","v":{"$error":"#N/A"}},"Dublin",435000,"No","No","Second-Hand Dwelling house /Apartment"]
["26/01/2017","2017-01-26",1,"APT 201, BLOCK B, THE DISTILLERY DISTILLERY RD",{"$f":"VLOOKUP(L809,Regions!A:B,2,0)","v":"S"},"Dublin",210000,"No","No","Second-Hand Dwelling house /Apartment",null,"Dublin 15"]
["26/01/2017","2017-01-26",1,"APT 25A THE BOTTLEWORKS, IRISHTOWN, DUBLIN 4",{"$f":"VLOOKUP(L810,Regions!A:B,2,0)","v":"W"},"Dublin",355000,"No","No","Second-Hand Dwelling house /Apartment",null,"Dublin 4"]
["26/01/2017","2017-01-26",1,"APT 30, 55 MOUNTJOY SQ WEST, DUBLIN 1",{"$f":"VLOOKUP(L811,Regions!A:B,2,0)","v":"S"},"Dublin",160000,"No","No","Second-Hand Dwelling house /Apartment",null,"Dublin 1"]
["27/01/2017","2017-01-27",1,"1 COLLEGE DR, TERENURE, DUBLIN 6W",{"$f":"VLOOKUP(L812,Regions!A:B,2,0)","v":{"$error":"#N/A"}},"Dublin",750000,"No","No","Second-Hand Dwelling house /Apartment"]
["27/01/2017","2017-01-27",1,"10  UPPER SHERRARD ST, DUBLIN 1",{"$f":"VLOOKUP(L813,Regions!A:B,2,0)","v":"S"},"Dublin",350000,"No","No","Second-Hand Dwelling house /Apartment",null,"Dublin 1"]
["27/01/2017","2017-01-27",1,"10 Garryknock, Bracken Park, Carpenterstown Road",{"$f":"VLOOKUP(L814,Regions!A:B,2,0)","v":{"$error":"#N/A"}},"Dublin",246696,"No","Yes","New Dwelling house /Apartment","greater than or equal to 38 sq metres and less than 125 sq metres"]
["27/01/2017","2017-01-27",1,"11 Tullyhall Close, Lucan, Co Dublin",{"$f":"VLOOKUP(L815,Regions!A:B,2,0)","v":{"$error":"#N/A"}},"Dublin",273127.83,"No","Yes","New Dwelling house /Apartment","greater than or equal to 38 sq metres and less than 125 sq metres"]
["27/01/2017","2017-01-27",1,"12 APPLEWOOD LAWN, APPLEWOOD VILLAGE, SWORDS",{"$f":"VLOOKUP(L816,Regions!A:B,2,0)","v":{"$error":"#N/A"}},"Dublin",185000,"No","No","Second-Hand Dwelling house /Apartment"]
["27/01/2017","2017-01-27",1,"126 WILLOW PARK AVENUE, BALLYMUN, DUBLIN 11",{"$f":"VLOOKUP(L817,Regions!A:B,2,0)","v":"E"},"Dublin",475000,"No","No","Second-Hand Dwelling house /Apartment",null,"Dublin 11"]
["27/01/2017","2017-01-27",1,"13 FERN COURT DR, OLD COURT RD, DUBLIN 24",{"$f":"VLOOKUP(L818,Regions!A:B,2,0)","v":"E"},"Dublin",395000,"No","No","Second-Hand Dwelling house /Apartment",null,"Dublin 24"]
["27/01/2017","2017-01-27",1,"13 THE ORCHARD, GREENWOOD",{"$f":"VLOOKUP(L819,Regions!A:B,2,0)","v":"S"},"Dublin",88000,"No","No","Second-Hand Dwelling house /Apartment",null,"Dublin 13"]
["27/01/2017","2017-01-27",1,"13 The Place, Hazelbrook Square, Churchtown",{"$f":"VLOOKUP(L820,Regions!A:B,2,0)","v":"E"},"Dublin",418502,"No","Yes","New Dwelling house /Apartment","greater than or equal to 38 sq metres and less than 125 sq metres","Dublin 14"]
["27/01/2017","2017-01-27",1,"14 BROOKFIELD GREEN, KIMMAGE, DUBLIN 12",{"$f":"VLOOKUP(L821,Regions!A:B,2,0)","v":"N"},"Dublin",470000,"No","No","Second-Hand Dwelling house /Apartment",null,"Dublin 12"]
["27/01/2017","2017-01-27",1,"14 KILTALOWN COURT, JOBSTOWN, TALLAGHT",{"$f":"VLOOKUP(L822,Regions!A:B,2,0)","v":{"$error":"#N/A"}},"Dublin",149350,"No","No","Second-Hand Dwelling house /Apartment"]
["27/01/2017","2017-01-27",1,"15 BLACKDITCH RD, BALLYFERMOT, DUBLIN 10",{"$f":"VLOOKUP(L823,Regions!A:B,2,0)","v":"E"},"Dublin",253500,"No","No","Second-Hand Dwelling house /Apartment",null,"Dublin 10"]
["27/01/2017","2017-01-27",1,"16 GLASILAWN AVE, GLASNEVIN, DUBLIN 11",{"$f":"VLOOKUP(L824,Regions!A:B,2,0)","v":"E"},"Dublin",310000,"No","No","Second-Hand Dwelling house /Apartment",null,"Dublin 11"]
["27/01/2017","2017-01-27",1,"18 Ashfield Avenue, Ridgewood, Swords",{"$f":"VLOOKUP(L825,Regions!A:B,2,0)","v":{"$error":"#N/A"}},"Dublin",286343.61,"No","Yes","New Dwelling house /Apartment","less than 38 sq metres"]
["27/01/2017","2017-01-27",1,"18 Barnwell Crescent, Hansfield, Barnwell",{"$f":"VLOOKUP(L826,Regions!A:B,2,0)","v":"S"},"Dublin",305000,"No","Yes","New Dwelling house /Apartment","greater than or equal to 125 sq metres","Dublin 15"]
["27/01/2017","2017-01-27",1,"18 BOROIMHE HAWTHORNS, SWORDS, DUBLIN",{"$f":"VLOOKUP(L827,Regions!A:B,2,0)","v":{"$error":"#N/A"}},"Dublin",375000,"No","No","Second-Hand Dwelling house /Apartment"]
["27/01/2017","2017-01-27",1,"18 The Lawn, Hansfield Wood, Hansfield",{"$f":"VLOOKUP(L828,Regions!A:B,2,0)","v":{"$error":"#N/A"}},"Dublin",321585.90999999997,"No","Yes","New Dwelling house /Apartment","greater than or equal to 38 sq metres and less than 125 sq metres"]
["27/01/2017","2017-01-27",1,"19 TEMPLE HALL, MOUNT SAINT ANNES, MILLTOWN",{"$f":"VLOOKUP(L829,Regions!A:B,2,0)","v":{"$error":"#N/A"}},"Dublin",450000,"No","No","Second-Hand Dwelling house /Apartment"]
["27/01/2017","2017-01-27",1,"19 Usher Park, Knocksedan Demesne, Swords",{"$f":"VLOOKUP(L830,Regions!A:B,2,0)","v":{"$error":"#N/A"}},"Dublin",348017.62,"No","Yes","New Dwelling house /Apartment","greater than or equal to 38 sq metres and less than 125 sq metres"]
["27/01/2017","2017-01-27",1,"194 THE SWEEPSTAKES, BALLSBRIDGE, DUBLIN 4",{"$f":"VLOOKUP(L831,Regions!A:B,2,0)","v":"W"},"Dublin",295000,"No","No","Second-Hand Dwelling house /Apartment",null,"Dublin 4"]
["27/01/2017","2017-01-27",1,"1A SEAMOUNT VIEW, SWORDS, DUBLIN",{"$f":"VLOOKUP(L832,Regions!A:B,2,0)","v":{"$error":"#N/A"}},"Dublin",390000,"No","No","Second-Hand Dwelling house /Apartment"]
["27/01/2017","2017-01-27",1,"2 CYPRESS RD, MOUNT MERRION, DUBLIN",{"$f":"VLOOKUP(L833,Regions!A:B,2,0)","v":{"$error":"#N/A"}},"Dublin",840000,"No","No","Second-Hand Dwelling house /Apartment"]
["27/01/2017","2017-01-27",1,"2 MOUNTAIN VILLA, CHURCH RD, KILLINEY",{"$f":"VLOOKUP(L834,Regions!A:B,2,0)","v":{"$error":"#N/A"}},"Dublin",567500,"No","No","Second-Hand Dwelling house /Apartment"]
["27/01/2017",{"$f":"DATE(RIGHT(A835,4),MID(A835,4,2),LEFT(A835,2))","v":"2017-01-27"},{"$f":"IF(ISERROR(MONTH(A835)),MONTH(B835),MONTH(A835))","v":1},"2 Stillorgan Gate, Upper Kilmacud Road, Stillorgan",{"$f":"VLOOKUP(L835,Regions!A:B,2,0)","v":{"$error":"#N/A"}},"Dublin",795000,"No","Yes","New Dwelling house /Apartment","greater than or equal to 38 sq metres and less than 125 sq metres"]
["27/01/2017","2017-01-27",1,"21 ELLENSBOROUGH DOWNS, KILTIPPER RD, TALLAGHT DUBLIN 24",{"$f":"VLOOKUP(L836,Regions!A:B,2,0)","v":"E"},"Dublin",240000,"No","No","Second-Hand Dwelling house /Apartment",null,"Dublin 24"]
["27/01/2017","2017-01-27",1,"21 NEWHAVEN AVE, BALBRIGGAN, DUBLIN",{"$f":"VLOOKUP(L837,Regions!A:B,2,0)","v":{"$error":"#N/A"}},"Dublin",200000,"No","No","Second-Hand Dwelling house /Apartment"]
["27/01/2017","2017-01-27",1,"22 HUGHES RD SOUTH, WALKINSTOWN, DUBLIN 12",{"$f":"VLOOKUP(L838,Regions!A:B,2,0)","v":"N"},"Dublin",276000,"No","No","Second-Hand Dwelling house /Apartment",null,"Dublin 12"]
["27/01/2017","2017-01-27",1,"23 ST JOHNS, PARK AVE, SANDYMOUNT DUBLIN 4",{"$f":"VLOOKUP(L839,Regions!A:B,2,0)","v":"W"},"Dublin",525000,"No","No","Second-Hand Dwelling house /Apartment",null,"Dublin 4"]
["27/01/2017","2017-01-27",1,"26 DodderBrook Park, DodderBrook, Oldcourt Road",{"$f":"VLOOKUP(L840,Regions!A:B,2,0)","v":"E"},"Dublin",370044,"No","Yes","New Dwelling house /Apartment","greater than or equal to 125 sq metres","Dublin 24"]
["27/01/2017","2017-01-27",1,"27 Dodder Brook Park, Dodder Brook, Oldcourt Road  Ballycullen",{"$f":"VLOOKUP(L841,Regions!A:B,2,0)","v":"E"},"Dublin",390000,"No","Yes","New Dwelling house /Apartment","greater than or equal to 38 sq metres and less than 125 sq metres","Dublin 24"]
["27/01/2017","2017-01-27",1,"27 STOCKING WOOD MANOR, STOCKING AVENUE, RATHFARNHAM",{"$f":"VLOOKUP(L842,Regions!A:B,2,0)","v":{"$error":"#N/A"}},"Dublin",365000,"No","No","Second-Hand Dwelling house /Apartment"]
["27/01/2017","2017-01-27",1,"28 hOLLYWOODRATH CRESCENT, Hollystown, Dublin 15",{"$f":"VLOOKUP(L843,Regions!A:B,2,0)","v":"S"},"Dublin",263895,"No","Yes","New Dwelling house /Apartment","greater than or equal to 38 sq metres and less than 125 sq metres","Dublin 15"]
["27/01/2017","2017-01-27",1,"28 THE SPIRES, DONABATE, DUBLIN",{"$f":"VLOOKUP(L844,Regions!A:B,2,0)","v":{"$error":"#N/A"}},"Dublin",525000,"No","No","Second-Hand Dwelling house /Apartment"]
["27/01/2017","2017-01-27",1,"28 WOODFOD PARADE, CLONDALKIN, DUBLIN 22",{"$f":"VLOOKUP(L845,Regions!A:B,2,0)","v":"E"},"Dublin",262000,"No","No","Second-Hand Dwelling house /Apartment",null,"Dublin 22"]
["27/01/2017","2017-01-27",1,"29 KELLY'S BAY STRAND, SKERRIES, CO DUBLIN",{"$f":"VLOOKUP(L846,Regions!A:B,2,0)","v":{"$error":"#N/A"}},"Dublin",354000,"No","No","Second-Hand Dwelling house /Apartment"]
["27/01/2017","2017-01-27",1,"30 GRAND CANAL ST UPPER, DUBLIN 4, DUBLIN",{"$f":"VLOOKUP(L847,Regions!A:B,2,0)","v":"W"},"Dublin",1250000,"No","No","Second-Hand Dwelling house /Apartment",null,"Dublin 4"]
["27/01/2017","2017-01-27",1,"30 GROVE RD, GLASNEVIN, DUBLIN 11",{"$f":"VLOOKUP(L848,Regions!A:B,2,0)","v":"E"},"Dublin",354000,"No","No","Second-Hand Dwelling house /Apartment",null,"Dublin 11"]
["27/01/2017","2017-01-27",1,"31 AMBERVALE, COOKSTOWN, TALLAGHT DUBLIN 24",{"$f":"VLOOKUP(L849,Regions!A:B,2,0)","v":"E"},"Dublin",200000,"No","No","Second-Hand Dwelling house /Apartment",null,"Dublin 24"]
["27/01/2017","2017-01-27",1,"31 Hollywoodrath Crescent, Hollystown, Dublin 15",{"$f":"VLOOKUP(L850,Regions!A:B,2,0)","v":"S"},"Dublin",259912,"No","Yes","New Dwelling house /Apartment","greater than or equal to 38 sq metres and less than 125 sq metres","Dublin 15"]
["27/01/2017","2017-01-27",1,"32 CHAPEL GATE, BALBRIGGAN, DUBLIN",{"$f":"VLOOKUP(L851,Regions!A:B,2,0)","v":{"$error":"#N/A"}},"Dublin",225000,"No","No","Second-Hand Dwelling house /Apartment"]
["27/01/2017","2017-01-27",1,"32 KEW PARK, LUCAN, DUBLIN",{"$f":"VLOOKUP(L852,Regions!A:B,2,0)","v":{"$error":"#N/A"}},"Dublin",350000,"No","No","Second-Hand Dwelling house /Apartment"]
["27/01/2017","2017-01-27",1,"33 PARNELL RD, HAROLDS CROSS, DUBLIN 12",{"$f":"VLOOKUP(L853,Regions!A:B,2,0)","v":"N"},"Dublin",468000,"No","No","Second-Hand Dwelling house /Apartment",null,"Dublin 12"]
["27/01/2017","2017-01-27",1,"34 BARTON RD EAST, CHURCHTOWN, DUBLIN 14",{"$f":"VLOOKUP(L854,Regions!A:B,2,0)","v":"E"},"Dublin",562000,"No","No","Second-Hand Dwelling house /Apartment",null,"Dublin 14"]
["27/01/2017","2017-01-27",1,"34 CARRIGMORE GREEN, SAGGART, CO DUBLIN",{"$f":"VLOOKUP(L855,Regions!A:B,2,0)","v":"E"},"Dublin",170000,"No","No","Second-Hand Dwelling house /Apartment",null,"Dublin 24"]
["27/01/2017","2017-01-27",1,"34 WATERSIDE DRIVE, WATERSIDE  SWORDS ROAD, MALAHIDE",{"$f":"VLOOKUP(L856,Regions!A:B,2,0)","v":{"$error":"#N/A"}},"Dublin",211453.74,"No","Yes","New Dwelling house /Apartment","greater than or equal to 38 sq metres and less than 125 sq metres"]
["27/01/2017","2017-01-27",1,"37 GALTYMORE DR, DRIMNAGH, DUBLIN 12",{"$f":"VLOOKUP(L857,Regions!A:B,2,0)","v":"N"},"Dublin",257500,"No","No","Second-Hand Dwelling house /Apartment",null,"Dublin 12"]
["27/01/2017","2017-01-27",1,"38 GRANVILLE PARK, BLACKROCK, DUBLIN",{"$f":"VLOOKUP(L858,Regions!A:B,2,0)","v":{"$error":"#N/A"}},"Dublin",800000,"No","No","Second-Hand Dwelling house /Apartment"]
["27/01/2017","2017-01-27",1,"4 ABBEYFIELD, MILLTOWN, DUBLIN 6",{"$f":"VLOOKUP(L859,Regions!A:B,2,0)","v":"W"},"Dublin",405000,"No","No","Second-Hand Dwelling house /Apartment",null,"Dublin 6"]
["27/01/2017","2017-01-27",1,"4 MULLINS WING, LINDEN, GROVE AVE",{"$f":"VLOOKUP(L860,Regions!A:B,2,0)","v":{"$error":"#N/A"}},"Dublin",300000,"No","No","Second-Hand Dwelling house /Apartment"]
["27/01/2017","2017-01-27",1,"4 OAKWOOD RD, FINGLAS, DUBLIN 11",{"$f":"VLOOKUP(L861,Regions!A:B,2,0)","v":"E"},"Dublin",360000,"No","No","Second-Hand Dwelling house /Apartment",null,"Dublin 11"]
["27/01/2017","2017-01-27",1,"42 Castlegrange Avenue, Castlegrange",{"$f":"VLOOKUP(L862,Regions!A:B,2,0)","v":"S"},"Dublin",290748.89,"No","Yes","New Dwelling house /Apartment","greater than or equal to 38 sq metres and less than 125 sq metres","Dublin 15"]
["27/01/2017","2017-01-27",1,"43 WATERMILL RD, RAHENY, DUBLIN 5",{"$f":"VLOOKUP(L863,Regions!A:B,2,0)","v":"S"},"Dublin",505000,"No","No","Second-Hand Dwelling house /Apartment",null,"Dublin 5"]
["27/01/2017","2017-01-27",1,"44 RUSHBROOK, BLANCHARDSTOWN, DUBLIN 15",{"$f":"VLOOKUP(L864,Regions!A:B,2,0)","v":"S"},"Dublin",440000,"No","No","Second-Hand Dwelling house /Apartment",null,"Dublin 15"]
["27/01/2017","2017-01-27",1,"48 GRANGE ABBEY RD, DONAGHMEDE, DUBLIN 13",{"$f":"VLOOKUP(L865,Regions!A:B,2,0)","v":"S"},"Dublin",287000,"No","No","Second-Hand Dwelling house /Apartment",null,"Dublin 13"]
["27/01/2017","2017-01-27",1,"49 CARRIGMORE GREEN, CITYWEST, SAGGART",{"$f":"VLOOKUP(L866,Regions!A:B,2,0)","v":"E"},"Dublin",233000,"No","No","Second-Hand Dwelling house /Apartment",null,"Dublin 24"]
["27/01/2017","2017-01-27",1,"5 SANDHOLES CARPENTERSTOWN RD, CASTLEKNOCK, DUBLIN",{"$f":"VLOOKUP(L867,Regions!A:B,2,0)","v":"S"},"Dublin",465000,"No","No","Second-Hand Dwelling house /Apartment",null,"Dublin 15"]
["27/01/2017","2017-01-27",1,"50 DOLLYMOUNT AVENUE, CLONTARF, DUBLIN 3",{"$f":"VLOOKUP(L868,Regions!A:B,2,0)","v":"N"},"Dublin",550000,"No","No","Second-Hand Dwelling house /Apartment",null,"Dublin 3"]
["27/01/2017","2017-01-27",1,"52 BALLYTORE RD, RATHFARNHAM, DUBLIN 14",{"$f":"VLOOKUP(L869,Regions!A:B,2,0)","v":"E"},"Dublin",545000,"No","No","Second-Hand Dwelling house /Apartment",null,"Dublin 14"]
["27/01/2017","2017-01-27",1,"52 LAVERNA WAY, CASTLEKNOCK, DUBLIN 15",{"$f":"VLOOKUP(L870,Regions!A:B,2,0)","v":"S"},"Dublin",404000,"No","No","Second-Hand Dwelling house /Apartment",null,"Dublin 15"]
["27/01/2017","2017-01-27",1,"53 RATHBORNE DR, EARLSWOOD, ASHTOWN DUBLIN 15",{"$f":"VLOOKUP(L871,Regions!A:B,2,0)","v":"S"},"Dublin",250000,"No","No","Second-Hand Dwelling house /Apartment",null,"Dublin 15"]
["27/01/2017","2017-01-27",1,"54 Park Avenue, Clongriffin",{"$f":"VLOOKUP(L872,Regions!A:B,2,0)","v":"S"},"Dublin",303964.76,"No","Yes","New Dwelling house /Apartment","greater than or equal to 38 sq metres and less than 125 sq metres","Dublin 13"]
["27/01/2017","2017-01-27",1,"589 WOODVIEW TERRACE, RATHFARNHAM, DUBLIN 14",{"$f":"VLOOKUP(L873,Regions!A:B,2,0)","v":{"$error":"#N/A"}},"Dublin",325000,"No","No","Second-Hand Dwelling house /Apartment"]
["27/01/2017","2017-01-27",1,"59 YEATS HALL, COLLEGEFORT, CASTLEKNOCK DUBLIN 15",{"$f":"VLOOKUP(L874,Regions!A:B,2,0)","v":"S"},"Dublin",200000,"No","No","Second-Hand Dwelling house /Apartment",null,"Dublin 15"]
["27/01/2017","2017-01-27",1,"5A CHALET GARDENS, LUCAN, DUBLIN",{"$f":"VLOOKUP(L875,Regions!A:B,2,0)","v":{"$error":"#N/A"}},"Dublin",565000,"No","No","Second-Hand Dwelling house /Apartment"]
["27/01/2017","2017-01-27",1,"6 KEW PARK, LUCAN, DUBLIN",{"$f":"VLOOKUP(L876,Regions!A:B,2,0)","v":{"$error":"#N/A"}},"Dublin",349000,"No","No","Second-Hand Dwelling house /Apartment"]
["27/01/2017","2017-01-27",1,"64 ABBEYFIELD, MILLTOWN, DUBLIN 6",{"$f":"VLOOKUP(L877,Regions!A:B,2,0)","v":"W"},"Dublin",522000,"No","No","Second-Hand Dwelling house /Apartment",null,"Dublin 6"]
["27/01/2017","2017-01-27",1,"64 THE GREEN, WOODBROOK GLEN, BRAY",{"$f":"VLOOKUP(L878,Regions!A:B,2,0)","v":{"$error":"#N/A"}},"Dublin",170000,"No","No","Second-Hand Dwelling house /Apartment"]
["27/01/2017","2017-01-27",1,"66 BEECHWOOD AVE UPPER, RANELAGH, DUBLIN 6",{"$f":"VLOOKUP(L879,Regions!A:B,2,0)","v":"W"},"Dublin",1275000,"No","No","Second-Hand Dwelling house /Apartment",null,"Dublin 6"]
["27/01/2017","2017-01-27",1,"66 BLOCK C, SMITHFIELD MARKET, SMITHFIELD DUBLIN 7",{"$f":"VLOOKUP(L880,Regions!A:B,2,0)","v":"W"},"Dublin",161500,"No","No","Second-Hand Dwelling house /Apartment",null,"Dublin 7"]
["27/01/2017","2017-01-27",1,"7 Abbot's Grove Avenue, Knocklyon, DUBLIN 16",{"$f":"VLOOKUP(L881,Regions!A:B,2,0)","v":{"$error":"#N/A"}},"Dublin",347137,"No","Yes","New Dwelling house /Apartment","greater than or equal to 38 sq metres and less than 125 sq metres"]
["27/01/2017","2017-01-27",1,"7 ADELAIDE ROAD, DUBLIN 2",{"$f":"VLOOKUP(L882,Regions!A:B,2,0)","v":{"$error":"#N/A"}},"Dublin",242500,"No","No","Second-Hand Dwelling house /Apartment"]
["27/01/2017","2017-01-27",1,"7 BANCROFT DOWNS, TALLAGHT, DUBLIN 24",{"$f":"VLOOKUP(L883,Regions!A:B,2,0)","v":"E"},"Dublin",170000,"No","No","Second-Hand Dwelling house /Apartment",null,"Dublin 24"]
["27/01/2017","2017-01-27",1,"7 STILLORGAN GATE, UPPER KILMACUD ROAD, DUBLIN 14",{"$f":"VLOOKUP(L884,Regions!A:B,2,0)","v":"E"},"Dublin",700440,"No","Yes","New Dwelling house /Apartment","greater than or equal to 125 sq metres","Dublin 14"]
["27/01/2017","2017-01-27",1,"70 SEABURY, SYDNEY PARADE AVENUE, SANDYMOUNT",{"$f":"VLOOKUP(L885,Regions!A:B,2,0)","v":"W"},"Dublin",440000,"No","No","Second-Hand Dwelling house /Apartment",null,"Dublin 4"]
["27/01/2017","2017-01-27",1,"75 Roseland Avenue, Cualanor, Upper Glenageary Road",{"$f":"VLOOKUP(L886,Regions!A:B,2,0)","v":{"$error":"#N/A"}},"Dublin",651982,"No","Yes","New Dwelling house /Apartment","greater than or equal to 38 sq metres and less than 125 sq metres"]
["27/01/2017","2017-01-27",1,"77 MASK AVE, ARTANE, DUBLIN 5",{"$f":"VLOOKUP(L887,Regions!A:B,2,0)","v":"S"},"Dublin",347500,"No","No","Second-Hand Dwelling house /Apartment",null,"Dublin 5"]
["27/01/2017","2017-01-27",1,"77 THE COURT, HIGH PARK, DRUMCONDRA",{"$f":"VLOOKUP(L888,Regions!A:B,2,0)","v":{"$error":"#N/A"}},"Dublin",420000,"No","No","Second-Hand Dwelling house /Apartment"]
["27/01/2017","2017-01-27",1,"8 RIVERWOOD PARK, CARPENTERSTOWN, CASTLEKNOCK DUBLIN 15",{"$f":"VLOOKUP(L889,Regions!A:B,2,0)","v":"S"},"Dublin",358000,"No","No","Second-Hand Dwelling house /Apartment",null,"Dublin 15"]
["27/01/2017","2017-01-27",1,"86A Castle Avenue, Clontarf",{"$f":"VLOOKUP(L890,Regions!A:B,2,0)","v":"N"},"Dublin",445000,"No","Yes","New Dwelling house /Apartment","greater than or equal to 38 sq metres and less than 125 sq metres","Dublin 3"]
["27/01/2017","2017-01-27",1,"9 BELLVUE APTS, COOKSTOWN RD, TALLAGHT",{"$f":"VLOOKUP(L891,Regions!A:B,2,0)","v":"E"},"Dublin",136000,"No","No","Second-Hand Dwelling house /Apartment",null,"Dublin 24"]
["27/01/2017","2017-01-27",1,"9 INNISFALLEN PARADE, PHIBSBOROUGH, DUBLIN 7",{"$f":"VLOOKUP(L892,Regions!A:B,2,0)","v":"W"},"Dublin",220000,"No","No","Second-Hand Dwelling house /Apartment",null,"Dublin 7"]
["27/01/2017","2017-01-27",1,"9 KINGSTON RISE, BALLINTEER, DUBLIN 16",{"$f":"VLOOKUP(L893,Regions!A:B,2,0)","v":"E"},"Dublin",545000,"No","No","Second-Hand Dwelling house /Apartment",null,"Dublin 16"]
["27/01/2017","2017-01-27",1,"90 CHERRYWOOD PARK, CLONDALKIN, DUBLIN 22",{"$f":"VLOOKUP(L894,Regions!A:B,2,0)","v":"E"},"Dublin",213000,"No","No","Second-Hand Dwelling house /Apartment",null,"Dublin 22"]
["27/01/2017","2017-01-27",1,"APT 10 ADELAIDE HOUSE, 7/8 HADDINGTON TERRACE, DUN LAOGHAIRE",{"$f":"VLOOKUP(L895,Regions!A:B,2,0)","v":{"$error":"#N/A"}},"Dublin",390000,"No","Yes","New Dwelling house /Apartment","less than 38 sq metres"]
["27/01/2017","2017-01-27",1,"APT 17 SEAGRAVE, THE LINKS, PORTMARNOCK",{"$f":"VLOOKUP(L896,Regions!A:B,2,0)","v":"S"},"Dublin",270000,"No","No","Second-Hand Dwelling house /Apartment",null,"Dublin 13"]
["27/01/2017","2017-01-27",1,"APT 19 BLOCK A, BETTYGLEN, RAHENY",{"$f":"VLOOKUP(L897,Regions!A:B,2,0)","v":"S"},"Dublin",145000,"No","No","Second-Hand Dwelling house /Apartment",null,"Dublin 5"]
["27/01/2017","2017-01-27",1,"APT 54 THE WELLINGTON BLOCK, RIVERPARK APTS, CONYNGHAM RD DUBLIN 8",{"$f":"VLOOKUP(L898,Regions!A:B,2,0)","v":"S"},"Dublin",278000,"No","No","Second-Hand Dwelling house /Apartment",null,"Dublin 8"]
["27/01/2017",{"$f":"DATE(RIGHT(A899,4),MID(A899,4,2),LEFT(A899,2))","v":"2017-01-27"},{"$f":"IF(ISERROR(MONTH(A899)),MONTH(B899),MONTH(A899))","v":1},"APT 6 HAZELBROOK, TERENURE ROAD WEST, DUBLIN 6W",{"$f":"VLOOKUP(L899,Regions!A:B,2,0)","v":{"$error":"#N/A"}},"Dublin",258000,"No","No","Second-Hand Dwelling house /Apartment"]
["27/01/2017","2017-01-27",1,"APT 7, 1 JERVIS ST, DUBLIN 1",{"$f":"VLOOKUP(L900,Regions!A:B,2,0)","v":"S"},"Dublin",200000,"No","No","Second-Hand Dwelling house /Apartment",null,"Dublin 1"]
["27/01/2017","2017-01-27",1,"APT 9 FIRST FLOOR, BLOCK 1 SHANAGARRY, MILLTOWN",{"$f":"VLOOKUP(L901,Regions!A:B,2,0)","v":"W"},"Dublin",340000,"No","No","Second-Hand Dwelling house /Apartment",null,"Dublin 6"]
["27/01/2017","2017-01-27",1,"GLENDEL, SPRINGFIELD RD, TERENURE DUBLIN 6W",{"$f":"VLOOKUP(L902,Regions!A:B,2,0)","v":{"$error":"#N/A"}},"Dublin",970000,"No","No","Second-Hand Dwelling house /Apartment"]
["27/01/2017","2017-01-27",1,"NEWPARK, THE WARD, DUBLIN",{"$f":"VLOOKUP(L903,Regions!A:B,2,0)","v":"E"},"Dublin",275000,"No","No","Second-Hand Dwelling house /Apartment",null,"Dublin 11"]
["27/01/2017","2017-01-27",1,"SAN MICHELLE, KETTLES LANE, SWORDS",{"$f":"VLOOKUP(L904,Regions!A:B,2,0)","v":{"$error":"#N/A"}},"Dublin",1200000,"No","No","Second-Hand Dwelling house /Apartment"]
["27/01/2017","2017-01-27",1,"SATUNA, UPPER KILMACUD RD, DUNDRUM DUBLIN 14",{"$f":"VLOOKUP(L905,Regions!A:B,2,0)","v":"E"},"Dublin",800000,"No","No","Second-Hand Dwelling house /Apartment",null,"Dublin 14"]
["27/01/2017","2017-01-27",1,"ST ANNES, 20 TEMPLEMORE AVE, RATHGAR DUBLIN 6",{"$f":"VLOOKUP(L906,Regions!A:B,2,0)","v":"W"},"Dublin",830000,"No","No","Second-Hand Dwelling house /Apartment",null,"Dublin 6"]
["27/01/2017","2017-01-27",1,"ST COLUMBANS, GRANGE ROAD, DONAGHMEDE",{"$f":"VLOOKUP(L907,Regions!A:B,2,0)","v":{"$error":"#N/A"}},"Dublin",3000000,"No","No","Second-Hand Dwelling house /Apartment"]
["28/01/2017","2017-01-28",1,"14 MANORFIELDS DALE, CLONEE, DUBLIN 15",{"$f":"VLOOKUP(L908,Regions!A:B,2,0)","v":"S"},"Dublin",261000,"No","No","Second-Hand Dwelling house /Apartment",null,"Dublin 15"]
["30/01/2017","2017-01-30",1,"1 DUNSOGHLY CLOSE RATOATH RD, FINGLAS DUBLIN 11, DUBLIN",{"$f":"VLOOKUP(L909,Regions!A:B,2,0)","v":"E"},"Dublin",109843.56,"Yes","No","Second-Hand Dwelling house /Apartment",null,"Dublin 11"]
["30/01/2017","2017-01-30",1,"10 PROSPECT GROVE, STOCKING LANE, RATHFARNHAM DUBLIN 16",{"$f":"VLOOKUP(L910,Regions!A:B,2,0)","v":"E"},"Dublin",468000,"No","No","Second-Hand Dwelling house /Apartment",null,"Dublin 16"]
["30/01/2017","2017-01-30",1,"103 LEINSTER RD, RATHMINES, DUBLIN 6",{"$f":"VLOOKUP(L911,Regions!A:B,2,0)","v":"W"},"Dublin",998000,"No","No","Second-Hand Dwelling house /Apartment",null,"Dublin 6"]
["30/01/2017","2017-01-30",1,"11 ESKER WOOD COURT, LUCAN, DUBLIN",{"$f":"VLOOKUP(L912,Regions!A:B,2,0)","v":{"$error":"#N/A"}},"Dublin",249500,"No","No","Second-Hand Dwelling house /Apartment"]
["30/01/2017","2017-01-30",1,"121 PLUNKETT RD, FINGLAS, DUBLIN 11",{"$f":"VLOOKUP(L913,Regions!A:B,2,0)","v":"E"},"Dublin",215000,"No","No","Second-Hand Dwelling house /Apartment",null,"Dublin 11"]
["30/01/2017","2017-01-30",1,"13  Bridge Avenue, Royal Canal Park, Ashtown",{"$f":"VLOOKUP(L914,Regions!A:B,2,0)","v":"S"},"Dublin",334802,"No","Yes","New Dwelling house /Apartment","greater than or equal to 38 sq metres and less than 125 sq metres","Dublin 15"]
["30/01/2017","2017-01-30",1,"15 SHELMARTIN TERRACE, FAIRVIEW, DUBLIN 3",{"$f":"VLOOKUP(L915,Regions!A:B,2,0)","v":"N"},"Dublin",438000,"No","No","Second-Hand Dwelling house /Apartment",null,"Dublin 3"]
["30/01/2017","2017-01-30",1,"16 ST JAMES COURT, SERPENTINE AVE, BALLSBRIDGE DUBLIN 4",{"$f":"VLOOKUP(L916,Regions!A:B,2,0)","v":"W"},"Dublin",420000,"No","No","Second-Hand Dwelling house /Apartment",null,"Dublin 4"]
["30/01/2017","2017-01-30",1,"16 The Lawn, Hansfield Wood  Hansfield, Dublin 15",{"$f":"VLOOKUP(L917,Regions!A:B,2,0)","v":{"$error":"#N/A"}},"Dublin",255175,"No","Yes","New Dwelling house /Apartment","greater than or equal to 125 sq metres"]
["30/01/2017","2017-01-30",1,"18 BUTTERFIELD CRESCENT, RATHFARNHAM, DUBLIN 14",{"$f":"VLOOKUP(L918,Regions!A:B,2,0)","v":"E"},"Dublin",775000,"No","No","Second-Hand Dwelling house /Apartment",null,"Dublin 14"]
["30/01/2017","2017-01-30",1,"18 TEMPLEOGUE, TERENURE VILLAGE, DUBLIN 6",{"$f":"VLOOKUP(L919,Regions!A:B,2,0)","v":{"$error":"#N/A"}},"Dublin",449000,"No","No","Second-Hand Dwelling house /Apartment"]
["30/01/2017","2017-01-30",1,"182 EAST WALL RD, DUBLIN 3, DUBLIN",{"$f":"VLOOKUP(L920,Regions!A:B,2,0)","v":"N"},"Dublin",220000,"No","No","Second-Hand Dwelling house /Apartment",null,"Dublin 3"]
["30/01/2017","2017-01-30",1,"19 ROSSMORE PARK, TEMPLEOGUE, DUBLIN 6W",{"$f":"VLOOKUP(L921,Regions!A:B,2,0)","v":{"$error":"#N/A"}},"Dublin",595000,"No","No","Second-Hand Dwelling house /Apartment"]
["30/01/2017","2017-01-30",1,"19 Tullyhall Close, Lucan",{"$f":"VLOOKUP(L922,Regions!A:B,2,0)","v":{"$error":"#N/A"}},"Dublin",262114.52,"No","Yes","New Dwelling house /Apartment","greater than or equal to 38 sq metres and less than 125 sq metres"]
["30/01/2017","2017-01-30",1,"2 Phelan Drive East, Royal Canal Park, Ashtown",{"$f":"VLOOKUP(L923,Regions!A:B,2,0)","v":{"$error":"#N/A"}},"Dublin",330396,"No","Yes","New Dwelling house /Apartment","greater than or equal to 38 sq metres and less than 125 sq metres"]
["30/01/2017","2017-01-30",1,"2 RADCLIFFE HALL, ST JOHNS RD, SANDYMOUNT",{"$f":"VLOOKUP(L924,Regions!A:B,2,0)","v":"W"},"Dublin",555500,"No","No","Second-Hand Dwelling house /Apartment",null,"Dublin 4"]
["30/01/2017","2017-01-30",1,"20 TIMBER MILLS, ARTANE, DUBLIN 5",{"$f":"VLOOKUP(L925,Regions!A:B,2,0)","v":"S"},"Dublin",177000,"No","No","Second-Hand Dwelling house /Apartment",null,"Dublin 5"]
["30/01/2017","2017-01-30",1,"24 The Lawn, Hansfield Wood, Hansfield",{"$f":"VLOOKUP(L926,Regions!A:B,2,0)","v":"S"},"Dublin",246696,"No","Yes","New Dwelling house /Apartment","greater than or equal to 38 sq metres and less than 125 sq metres","Dublin 15"]
["30/01/2017","2017-01-30",1,"26 CHARLEVILLE SQ, BUTTERFIELD RD, RATHFARNHAM DUBLIN 14",{"$f":"VLOOKUP(L927,Regions!A:B,2,0)","v":"E"},"Dublin",552000,"No","No","Second-Hand Dwelling house /Apartment",null,"Dublin 14"]
["30/01/2017","2017-01-30",1,"26 DUNEDIN TERRACE, DUN LAOGHAIRE, DUBLIN",{"$f":"VLOOKUP(L928,Regions!A:B,2,0)","v":{"$error":"#N/A"}},"Dublin",307000,"No","No","Second-Hand Dwelling house /Apartment"]
["30/01/2017","2017-01-30",1,"3 BOTANIC HALL, ADDISON AVE, ADDISON PARK DUBLIN 9",{"$f":"VLOOKUP(L929,Regions!A:B,2,0)","v":"E"},"Dublin",217000,"No","No","Second-Hand Dwelling house /Apartment",null,"Dublin 11"]
["30/01/2017","2017-01-30",1,"3 NEWBRIDGE DR, SANDYMOUNT, DUBLIN 4",{"$f":"VLOOKUP(L930,Regions!A:B,2,0)","v":"W"},"Dublin",1150000,"No","No","Second-Hand Dwelling house /Apartment",null,"Dublin 4"]
["30/01/2017","2017-01-30",1,"3 OAK LODGE, GROTTO AVE, BOOTERSTOWN",{"$f":"VLOOKUP(L931,Regions!A:B,2,0)","v":{"$error":"#N/A"}},"Dublin",410000,"No","No","Second-Hand Dwelling house /Apartment"]
["30/01/2017","2017-01-30",1,"3 WHITETHORN RD, ARTANE, DUBLIN 5",{"$f":"VLOOKUP(L932,Regions!A:B,2,0)","v":"S"},"Dublin",417000,"No","No","Second-Hand Dwelling house /Apartment",null,"Dublin 5"]
["30/01/2017","2017-01-30",1,"30 BRIGHTON SQ, RATHGAR, DUBLIN 6",{"$f":"VLOOKUP(L933,Regions!A:B,2,0)","v":"W"},"Dublin",1015000,"No","No","Second-Hand Dwelling house /Apartment",null,"Dublin 6"]
["30/01/2017","2017-01-30",1,"303 HAWTHORN, WEDGEWOOD ESTATE, SANDYFORD DUBLIN 16",{"$f":"VLOOKUP(L934,Regions!A:B,2,0)","v":"W"},"Dublin",400000,"No","No","Second-Hand Dwelling house /Apartment",null,"Dublin 18"]
["30/01/2017","2017-01-30",1,"313 RICHMOND COURT, RICHMOND AVE SOUTH, DARTRY",{"$f":"VLOOKUP(L935,Regions!A:B,2,0)","v":"W"},"Dublin",420000,"No","No","Second-Hand Dwelling house /Apartment",null,"Dublin 6"]
["30/01/2017","2017-01-30",1,"35 ARDGLAS, DUNDRUM, DUBLIN 16",{"$f":"VLOOKUP(L936,Regions!A:B,2,0)","v":"E"},"Dublin",900000,"No","No","Second-Hand Dwelling house /Apartment",null,"Dublin 16"]
["30/01/2017","2017-01-30",1,"35 ASHBROOK, NAVAN ROAD, DUBLIN 7",{"$f":"VLOOKUP(L937,Regions!A:B,2,0)","v":{"$error":"#N/A"}},"Dublin",161000,"No","No","Second-Hand Dwelling house /Apartment"]
["30/01/2017","2017-01-30",1,"4 Blackberry Hill, Carrickmines",{"$f":"VLOOKUP(L938,Regions!A:B,2,0)","v":{"$error":"#N/A"}},"Dublin",572687,"No","Yes","New Dwelling house /Apartment","greater than or equal to 125 sq metres"]
["30/01/2017","2017-01-30",1,"4 FOXBOROUGH DOWNS, LUCAN, DUBLIN",{"$f":"VLOOKUP(L939,Regions!A:B,2,0)","v":{"$error":"#N/A"}},"Dublin",265000,"No","No","Second-Hand Dwelling house /Apartment"]
["30/01/2017","2017-01-30",1,"4 St. David's Court, Artane, Dublin 5",{"$f":"VLOOKUP(L940,Regions!A:B,2,0)","v":"S"},"Dublin",444933,"No","Yes","New Dwelling house /Apartment","greater than or equal to 125 sq metres","Dublin 5"]
["30/01/2017","2017-01-30",1,"4 WILLOW PLACE, CABINTEELY, DUBLIN 18",{"$f":"VLOOKUP(L941,Regions!A:B,2,0)","v":"W"},"Dublin",427000,"No","No","Second-Hand Dwelling house /Apartment",null,"Dublin 18"]
["30/01/2017","2017-01-30",1,"45 Drury Mills, Saggart, Co Dublin",{"$f":"VLOOKUP(L942,Regions!A:B,2,0)","v":{"$error":"#N/A"}},"Dublin",295154,"No","Yes","New Dwelling house /Apartment","greater than or equal to 38 sq metres and less than 125 sq metres"]
["30/01/2017","2017-01-30",1,"45 MILLSTREAM, THE LINKS, PORTMARNOCK",{"$f":"VLOOKUP(L943,Regions!A:B,2,0)","v":"S"},"Dublin",187000,"No","No","Second-Hand Dwelling house /Apartment",null,"Dublin 13"]
["30/01/2017","2017-01-30",1,"48 LIFFEY AVE, LUCAN, DUBLIN",{"$f":"VLOOKUP(L944,Regions!A:B,2,0)","v":{"$error":"#N/A"}},"Dublin",256000,"No","No","Second-Hand Dwelling house /Apartment"]
["30/01/2017","2017-01-30",1,"50 PINEWOOD, BALLYBRACK, DUBLIN",{"$f":"VLOOKUP(L945,Regions!A:B,2,0)","v":{"$error":"#N/A"}},"Dublin",300000,"No","No","Second-Hand Dwelling house /Apartment"]
["30/01/2017","2017-01-30",1,"51 MEADOWBANK, BUSHY PARK RD, RATHGAR DUBLIN 6",{"$f":"VLOOKUP(L946,Regions!A:B,2,0)","v":"W"},"Dublin",415000,"No","No","Second-Hand Dwelling house /Apartment",null,"Dublin 6"]
["30/01/2017","2017-01-30",1,"56 PALMERSTON RD, RATHMINES, DUBLIN 6",{"$f":"VLOOKUP(L947,Regions!A:B,2,0)","v":"W"},"Dublin",1100000,"No","No","Second-Hand Dwelling house /Apartment",null,"Dublin 6"]
["30/01/2017","2017-01-30",1,"6 ROCHESTOWN PARK, DUN LAOGHAIRE, DUBLIN",{"$f":"VLOOKUP(L948,Regions!A:B,2,0)","v":{"$error":"#N/A"}},"Dublin",427000,"No","No","Second-Hand Dwelling house /Apartment"]
["30/01/2017","2017-01-30",1,"62 GARNISH SQ, BLANCHARDSTOWN, DUBLIN 15",{"$f":"VLOOKUP(L949,Regions!A:B,2,0)","v":"S"},"Dublin",183000,"No","No","Second-Hand Dwelling house /Apartment",null,"Dublin 15"]
["30/01/2017","2017-01-30",1,"67 DERRYNANE, ELGINTON COURT, ELGINTON RD DUBLIN 4",{"$f":"VLOOKUP(L950,Regions!A:B,2,0)","v":"W"},"Dublin",316000,"No","No","Second-Hand Dwelling house /Apartment",null,"Dublin 4"]
["30/01/2017","2017-01-30",1,"7 Hollywoodrath Crescent, Hollystown",{"$f":"VLOOKUP(L951,Regions!A:B,2,0)","v":"S"},"Dublin",259912,"No","Yes","New Dwelling house /Apartment","greater than or equal to 38 sq metres and less than 125 sq metres","Dublin 15"]
["30/01/2017","2017-01-30",1,"71 ST SAMSONS SQ, BALGRIFFIN, DUBLIN 13",{"$f":"VLOOKUP(L952,Regions!A:B,2,0)","v":"S"},"Dublin",255000,"Yes","No","Second-Hand Dwelling house /Apartment",null,"Dublin 13"]
["30/01/2017","2017-01-30",1,"8 BELGROVE LAWN, CHAPELIZOD, DUBLIN 20",{"$f":"VLOOKUP(L953,Regions!A:B,2,0)","v":"N"},"Dublin",520000,"No","No","Second-Hand Dwelling house /Apartment",null,"Dublin 20"]
["30/01/2017","2017-01-30",1,"9 ST CATHERINES PARK, RUSH, DUBLIN",{"$f":"VLOOKUP(L954,Regions!A:B,2,0)","v":{"$error":"#N/A"}},"Dublin",165000,"No","No","Second-Hand Dwelling house /Apartment"]
["30/01/2017","2017-01-30",1,"9 TALBOT RD, MALAHIDE, DUBLIN",{"$f":"VLOOKUP(L955,Regions!A:B,2,0)","v":{"$error":"#N/A"}},"Dublin",465000,"No","No","Second-Hand Dwelling house /Apartment"]
["30/01/2017","2017-01-30",1,"98 MOUNT ALBANY, BLACKROCK, DUBLIN",{"$f":"VLOOKUP(L956,Regions!A:B,2,0)","v":{"$error":"#N/A"}},"Dublin",753000,"No","No","Second-Hand Dwelling house /Apartment"]
["30/01/2017","2017-01-30",1,"KAPITI 39 THORMANBY RD, BAILEY, HOWTH",{"$f":"VLOOKUP(L957,Regions!A:B,2,0)","v":"S"},"Dublin",765000,"No","No","Second-Hand Dwelling house /Apartment",null,"Dublin 13"]
["30/01/2017","2017-01-30",1,"LISNAREE, UPPER KILMACUD RD, DUNDRUM DUBLIN 14",{"$f":"VLOOKUP(L958,Regions!A:B,2,0)","v":"E"},"Dublin",495000,"No","No","Second-Hand Dwelling house /Apartment",null,"Dublin 14"]
["30/01/2017","2017-01-30",1,"THE BRAMBLES, CARRICKBRENNAN ROAD, MONKSTOWN",{"$f":"VLOOKUP(L959,Regions!A:B,2,0)","v":{"$error":"#N/A"}},"Dublin",1020000,"No","No","Second-Hand Dwelling house /Apartment"]
["31/01/2017","2017-01-31",1,"1 KILL ABBEY, KILL O'THE GRANGE, BLACKROCK",{"$f":"VLOOKUP(L960,Regions!A:B,2,0)","v":{"$error":"#N/A"}},"Dublin",570000,"No","No","Second-Hand Dwelling house /Apartment"]
["31/01/2017","2017-01-31",1,"1 Phelan Drive East, Royal Canal Park, Ratoath Road",{"$f":"VLOOKUP(L961,Regions!A:B,2,0)","v":"S"},"Dublin",375000,"No","Yes","New Dwelling house /Apartment","greater than or equal to 38 sq metres and less than 125 sq metres","Dublin 15"]
["31/01/2017","2017-01-31",1,"10 KELLYS BAY WEIR, SKERRIES, DUBLIN",{"$f":"VLOOKUP(L962,Regions!A:B,2,0)","v":{"$error":"#N/A"}},"Dublin",325000,"No","No","Second-Hand Dwelling house /Apartment"]
["31/01/2017",{"$f":"DATE(RIGHT(A963,4),MID(A963,4,2),LEFT(A963,2))","v":"2017-01-31"},{"$f":"IF(ISERROR(MONTH(A963)),MONTH(B963),MONTH(A963))","v":1},"13 DEANSTOWN GREEN, FINGLAS WEST, DUBLIN 11",{"$f":"VLOOKUP(L963,Regions!A:B,2,0)","v":{"$error":"#N/A"}},"Dublin",188500,"No","No","Second-Hand Dwelling house /Apartment"]
["31/01/2017","2017-01-31",1,"13 FARNHAM CRESCENT, FARNHAM ESTATE, DUBLIN 11",{"$f":"VLOOKUP(L964,Regions!A:B,2,0)","v":"E"},"Dublin",280000,"No","No","Second-Hand Dwelling house /Apartment",null,"Dublin 11"]
["31/01/2017","2017-01-31",1,"15 GLENABBEY RD, MOUNT MERRION, DUBLIN",{"$f":"VLOOKUP(L965,Regions!A:B,2,0)","v":{"$error":"#N/A"}},"Dublin",860000,"No","No","Second-Hand Dwelling house /Apartment"]
["31/01/2017","2017-01-31",1,"15 Heathfield Way, Cappagh Rpad, Finglas",{"$f":"VLOOKUP(L966,Regions!A:B,2,0)","v":{"$error":"#N/A"}},"Dublin",211929.52,"No","Yes","New Dwelling house /Apartment","greater than or equal to 125 sq metres"]
["31/01/2017","2017-01-31",1,"18 BROADFIELD CLOSE, BROADFIELD MANOR, RATHCOOLE",{"$f":"VLOOKUP(L967,Regions!A:B,2,0)","v":"E"},"Dublin",200000,"Yes","No","Second-Hand Dwelling house /Apartment",null,"Dublin 24"]
["31/01/2017","2017-01-31",1,"18 WARREN ST, PORTOBELLO, DUBLIN 8",{"$f":"VLOOKUP(L968,Regions!A:B,2,0)","v":"S"},"Dublin",470000,"No","No","Second-Hand Dwelling house /Apartment",null,"Dublin 8"]
["31/01/2017","2017-01-31",1,"19 WILLANS AVE, ONGAR GREEN, DUBLIN 15",{"$f":"VLOOKUP(L969,Regions!A:B,2,0)","v":"S"},"Dublin",245000,"No","No","Second-Hand Dwelling house /Apartment",null,"Dublin 15"]
["31/01/2017","2017-01-31",1,"197 PHILIPSBURGH AVE, MARINO, DUBLIN",{"$f":"VLOOKUP(L970,Regions!A:B,2,0)","v":"N"},"Dublin",234924.24,"No","No","Second-Hand Dwelling house /Apartment",null,"Dublin 3"]
["31/01/2017","2017-01-31",1,"2 VENTRY ROAD, CABRA WEST, DUBLIN 7",{"$f":"VLOOKUP(L971,Regions!A:B,2,0)","v":"W"},"Dublin",195000,"No","No","Second-Hand Dwelling house /Apartment",null,"Dublin 7"]
["31/01/2017","2017-01-31",1,"2 WINDSOR TERRACE, CHURCH RD, MALAHIDE",{"$f":"VLOOKUP(L972,Regions!A:B,2,0)","v":{"$error":"#N/A"}},"Dublin",153550,"Yes","No","Second-Hand Dwelling house /Apartment"]
["31/01/2017","2017-01-31",1,"20 LUTTRELLSTOWN PARK, LUTTRELLSTOWN WOOD, CASTLEKNOCK",{"$f":"VLOOKUP(L973,Regions!A:B,2,0)","v":"S"},"Dublin",575000,"No","No","Second-Hand Dwelling house /Apartment",null,"Dublin 15"]
["31/01/2017","2017-01-31",1,"228 THE RICHMOND, NORTH BRUNSWICK, DUBLIN 7",{"$f":"VLOOKUP(L974,Regions!A:B,2,0)","v":"W"},"Dublin",191000,"No","No","Second-Hand Dwelling house /Apartment",null,"Dublin 7"]
["31/01/2017","2017-01-31",1,"24 SYDNEY AVE, BLACKROCK, DUBLIN",{"$f":"VLOOKUP(L975,Regions!A:B,2,0)","v":{"$error":"#N/A"}},"Dublin",1340000,"No","No","Second-Hand Dwelling house /Apartment"]
["31/01/2017","2017-01-31",1,"27 CARMICHAEL HALL, ST COLUMBANUS RD, DUNDRUM",{"$f":"VLOOKUP(L976,Regions!A:B,2,0)","v":"E"},"Dublin",240000,"No","No","Second-Hand Dwelling house /Apartment",null,"Dublin 14"]
["31/01/2017","2017-01-31",1,"27A WOODFORD, BREWERY RD, STILLORGAN",{"$f":"VLOOKUP(L977,Regions!A:B,2,0)","v":{"$error":"#N/A"}},"Dublin",690000,"No","No","Second-Hand Dwelling house /Apartment"]
["31/01/2017","2017-01-31",1,"32 CREMORNE OFF GREENMOUNT RD, TERENURE RD EAST, DUBLIN 6",{"$f":"VLOOKUP(L978,Regions!A:B,2,0)","v":"W"},"Dublin",350000,"No","No","Second-Hand Dwelling house /Apartment",null,"Dublin 6"]
["31/01/2017","2017-01-31",1,"32 LITTLE PACE PARK, CLONEE, DUBLIN 15",{"$f":"VLOOKUP(L979,Regions!A:B,2,0)","v":"S"},"Dublin",337000,"No","No","Second-Hand Dwelling house /Apartment",null,"Dublin 15"]
["31/01/2017","2017-01-31",1,"33 ADDISON HALL, ADDISON PARK, GLASNEVIN",{"$f":"VLOOKUP(L980,Regions!A:B,2,0)","v":{"$error":"#N/A"}},"Dublin",400000,"No","No","Second-Hand Dwelling house /Apartment"]
["31/01/2017","2017-01-31",1,"34 PARKGATE ST, APT 3, DUBLIN 8",{"$f":"VLOOKUP(L981,Regions!A:B,2,0)","v":"S"},"Dublin",300000,"No","No","Second-Hand Dwelling house /Apartment",null,"Dublin 8"]
["31/01/2017","2017-01-31",1,"39 MERVILLE RD, STILLORGAN, DUBLIN",{"$f":"VLOOKUP(L982,Regions!A:B,2,0)","v":{"$error":"#N/A"}},"Dublin",720000,"No","No","Second-Hand Dwelling house /Apartment"]
["31/01/2017","2017-01-31",1,"40 ROEBUCK CASTLE, CLONSKEAGH, DUBLIN 14",{"$f":"VLOOKUP(L983,Regions!A:B,2,0)","v":"E"},"Dublin",500000,"No","No","Second-Hand Dwelling house /Apartment",null,"Dublin 14"]
["31/01/2017","2017-01-31",1,"40 THOMAS HAND ST, SKERRIES, DUBLIN",{"$f":"VLOOKUP(L984,Regions!A:B,2,0)","v":{"$error":"#N/A"}},"Dublin",650000,"No","No","Second-Hand Dwelling house /Apartment"]
["31/01/2017","2017-01-31",1,"40 THORN CHASE, CLIFFLANDS, RUSH",{"$f":"VLOOKUP(L985,Regions!A:B,2,0)","v":{"$error":"#N/A"}},"Dublin",175000,"No","No","Second-Hand Dwelling house /Apartment"]
["31/01/2017","2017-01-31",1,"46 Diswellstown Way, Castleknock, Dublin 15",{"$f":"VLOOKUP(L986,Regions!A:B,2,0)","v":{"$error":"#N/A"}},"Dublin",402637,"No","Yes","New Dwelling house /Apartment","greater than or equal to 125 sq metres"]
["31/01/2017","2017-01-31",1,"48 ARNOTT ST, DUBLIN 8, DUBLIN",{"$f":"VLOOKUP(L987,Regions!A:B,2,0)","v":"S"},"Dublin",680000,"No","No","Second-Hand Dwelling house /Apartment",null,"Dublin 8"]
["31/01/2017","2017-01-31",1,"49 LORCAN RD, SANTRY, DUBLIN 9",{"$f":"VLOOKUP(L988,Regions!A:B,2,0)","v":"W"},"Dublin",395000,"No","No","Second-Hand Dwelling house /Apartment",null,"Dublin 9"]
["31/01/2017","2017-01-31",1,"5 SOUTH HILL PARK, BOOTERSTOWN, DUBLIN",{"$f":"VLOOKUP(L989,Regions!A:B,2,0)","v":{"$error":"#N/A"}},"Dublin",888000,"No","No","Second-Hand Dwelling house /Apartment"]
["31/01/2017","2017-01-31",1,"5 Terenure Square, Terenure, Dublin 6W",{"$f":"VLOOKUP(L990,Regions!A:B,2,0)","v":"N"},"Dublin",625000,"No","Yes","New Dwelling house /Apartment","greater than or equal to 125 sq metres","Dublin 6w"]
["31/01/2017","2017-01-31",1,"51A PARK DR, THE PARK, CABINTEELY DUBLIN 18",{"$f":"VLOOKUP(L991,Regions!A:B,2,0)","v":"W"},"Dublin",535000,"No","No","Second-Hand Dwelling house /Apartment",null,"Dublin 18"]
["31/01/2017","2017-01-31",1,"54 MOUNT PLEASANT SQ, RANELAGH, DUBLIN",{"$f":"VLOOKUP(L992,Regions!A:B,2,0)","v":"W"},"Dublin",905000,"No","No","Second-Hand Dwelling house /Apartment",null,"Dublin 6"]
["31/01/2017","2017-01-31",1,"576 MOURNE ROAD, DRIMNAGH, DUBLIN 12",{"$f":"VLOOKUP(L993,Regions!A:B,2,0)","v":"N"},"Dublin",335000,"No","No","Second-Hand Dwelling house /Apartment",null,"Dublin 12"]
["31/01/2017","2017-01-31",1,"65 CASTLECURRAGH HEATH, MULHUDDART, DUBLIN 15",{"$f":"VLOOKUP(L994,Regions!A:B,2,0)","v":"S"},"Dublin",191000,"No","No","Second-Hand Dwelling house /Apartment",null,"Dublin 15"]
["31/01/2017","2017-01-31",1,"66 HAROLDS CROSS COTTAGES, HAROLDS CROSS, DUBLIN 6",{"$f":"VLOOKUP(L995,Regions!A:B,2,0)","v":"W"},"Dublin",327000,"No","No","Second-Hand Dwelling house /Apartment",null,"Dublin 6"]
["31/01/2017","2017-01-31",1,"68 THE KILNS, STATION RD, PORTMARNOCK",{"$f":"VLOOKUP(L996,Regions!A:B,2,0)","v":"S"},"Dublin",222000,"No","Yes","New Dwelling house /Apartment","greater than or equal to 38 sq metres and less than 125 sq metres","Dublin 13"]
["31/01/2017","2017-01-31",1,"7 BLAKESTOWN COTTAGES, BLAKESTOWN RD, MULHUDDART DUBLIN 15",{"$f":"VLOOKUP(L997,Regions!A:B,2,0)","v":"S"},"Dublin",212000,"No","No","Second-Hand Dwelling house /Apartment",null,"Dublin 15"]
["31/01/2017","2017-01-31",1,"7 SUREHAVEN LAWN, PHOENIX PARK RACECOURSE, CASTLEKNOCK DUBLIN 15",{"$f":"VLOOKUP(L998,Regions!A:B,2,0)","v":"S"},"Dublin",302000,"No","No","Second-Hand Dwelling house /Apartment",null,"Dublin 15"]
["31/01/2017","2017-01-31",1,"7 The Avenue, Scholarstown Wood, Scholarstown Road",{"$f":"VLOOKUP(L999,Regions!A:B,2,0)","v":"E"},"Dublin",400881.05,"No","Yes","New Dwelling house /Apartment","less than 38 sq metres","Dublin 16"]
["31/01/2017","2017-01-31",1,"76 BLOCK A, SMITHFIELD MARKET DUBLIN 7, DUBLIN",{"$f":"VLOOKUP(L1000,Regions!A:B,2,0)","v":"W"},"Dublin",403000,"No","No","Second-Hand Dwelling house /Apartment",null,"Dublin 7"]
["31/01/2017","2017-01-31",1,"82 BREMORE CASTLE, BALBRIGGAN, DUBLIN",{"$f":"VLOOKUP(L1001,Regions!A:B,2,0)","v":{"$error":"#N/A"}},"Dublin",190000,"Yes","No","Second-Hand Dwelling house /Apartment"]
["31/01/2017","2017-01-31",1,"9 EBENEZER TERRACE, DUBLIN 8, DUBLIN",{"$f":"VLOOKUP(L1002,Regions!A:B,2,0)","v":"S"},"Dublin",74531.05,"No","No","Second-Hand Dwelling house /Apartment",null,"Dublin 8"]
["31/01/2017","2017-01-31",1,"91 CHALFONT AVE, MALAHIDE, DUBLIN",{"$f":"VLOOKUP(L1003,Regions!A:B,2,0)","v":{"$error":"#N/A"}},"Dublin",606300,"No","No","Second-Hand Dwelling house /Apartment"]
["31/01/2017","2017-01-31",1,"92 MUSKERRY ROAD, BALLYFERMOT, DUBLIN 10",{"$f":"VLOOKUP(L1004,Regions!A:B,2,0)","v":"E"},"Dublin",193000,"No","No","Second-Hand Dwelling house /Apartment",null,"Dublin 10"]
["31/01/2017","2017-01-31",1,"APARTMENT 1, 5 THE MALL, MALAHIDE",{"$f":"VLOOKUP(L1005,Regions!A:B,2,0)","v":{"$error":"#N/A"}},"Dublin",200000,"No","No","Second-Hand Dwelling house /Apartment"]
["31/01/2017","2017-01-31",1,"APT 10, 109 PARNELL ST, DUBLIN",{"$f":"VLOOKUP(L1006,Regions!A:B,2,0)","v":"S"},"Dublin",145000,"No","No","Second-Hand Dwelling house /Apartment",null,"Dublin 1"]
["31/01/2017","2017-01-31",1,"APT 128, WESTLAND SQ, SANDWITH ST DUBLIN 2",{"$f":"VLOOKUP(L1007,Regions!A:B,2,0)","v":"E"},"Dublin",225000,"No","No","Second-Hand Dwelling house /Apartment",null,"Dublin 2"]
["31/01/2017","2017-01-31",1,"BALLYMADROUGH, SWORDS, DUBLIN",{"$f":"VLOOKUP(L1008,Regions!A:B,2,0)","v":{"$error":"#N/A"}},"Dublin",350000,"No","No","Second-Hand Dwelling house /Apartment"]
["31/01/2017","2017-01-31",1,"GLENAIRE, 3 COUNDON COURT, KILLINEY AVE",{"$f":"VLOOKUP(L1009,Regions!A:B,2,0)","v":{"$error":"#N/A"}},"Dublin",800000,"No","No","Second-Hand Dwelling house /Apartment"]
["31/01/2017","2017-01-31",1,"RESIDENTIAL, 19/20 MEATH ST, DUBLIN 8",{"$f":"VLOOKUP(L1010,Regions!A:B,2,0)","v":"S"},"Dublin",609000,"No","No","Second-Hand Dwelling house /Apartment",null,"Dublin 8"]
["31/01/2017","2017-01-31",1,"SILKWOOD, THE BY WAY, FOXROCK DUBLIN 18",{"$f":"VLOOKUP(L1011,Regions!A:B,2,0)","v":"W"},"Dublin",2175000,"No","No","Second-Hand Dwelling house /Apartment",null,"Dublin 18"]
["31/01/2017","2017-01-31",1,"THE COTTAGE, STRAWBERRY BEDS, DUBLIN 20",{"$f":"VLOOKUP(L1012,Regions!A:B,2,0)","v":"N"},"Dublin",490000,"No","No","Second-Hand Dwelling house /Apartment",null,"Dublin 20"]

{"sheet":"Chart","index":1,"n_rows":7,"n_cols":25,"rows_kept":7,"cut":false,"hidden":false,"merged":[]}
[null,null,null,"Dublin 1","Dublin 10","Dublin 11","Dublin 12","Dublin 13","Dublin 14","Dublin 15","Dublin 16","Dublin 17","Dublin 18","Dublin 2","Dublin 20","Dublin 22","Dublin 24","Dublin 3","Dublin 4","Dublin 5","Dublin 6","Dublin 6w","Dublin 7","Dublin 8","Dublin 9"]
["min","max","describe","count"]
[0,16000,"0 to 16,000",{"$f":"COUNTIFS('PPR-2017-01-Dublin'!$G:$G,\">\"&$A3,'PPR-2017-01-Dublin'!$G:$G,\"<=\"&$B3,'PPR-2017-01-Dublin'!#REF!,D$1)","v":{"$error":"#REF!"}},{"$f":"COUNTIFS('PPR-2017-01-Dublin'!$G:$G,\">\"&$A3,'PPR-2017-01-Dublin'!$G:$G,\"<=\"&$B3,'PPR-2017-01-Dublin'!#REF!,E$1)","v":{"$error":"#REF!"}},{"$f":"COUNTIFS('PPR-2017-01-Dublin'!$G:$G,\">\"&$A3,'PPR-2017-01-Dublin'!$G:$G,\"<=\"&$B3,'PPR-2017-01-Dublin'!#REF!,F$1)","v":{"$error":"#REF!"}},{"$f":"COUNTIFS('PPR-2017-01-Dublin'!$G:$G,\">\"&$A3,'PPR-2017-01-Dublin'!$G:$G,\"<=\"&$B3,'PPR-2017-01-Dublin'!#REF!,G$1)","v":{"$error":"#REF!"}},{"$f":"COUNTIFS('PPR-2017-01-Dublin'!$G:$G,\">\"&$A3,'PPR-2017-01-Dublin'!$G:$G,\"<=\"&$B3,'PPR-2017-01-Dublin'!#REF!,H$1)","v":{"$error":"#REF!"}},{"$f":"COUNTIFS('PPR-2017-01-Dublin'!$G:$G,\">\"&$A3,'PPR-2017-01-Dublin'!$G:$G,\"<=\"&$B3,'PPR-2017-01-Dublin'!#REF!,I$1)","v":{"$error":"#REF!"}},{"$f":"COUNTIFS('PPR-2017-01-Dublin'!$G:$G,\">\"&$A3,'PPR-2017-01-Dublin'!$G:$G,\"<=\"&$B3,'PPR-2017-01-Dublin'!#REF!,J$1)","v":{"$error":"#REF!"}},{"$f":"COUNTIFS('PPR-2017-01-Dublin'!$G:$G,\">\"&$A3,'PPR-2017-01-Dublin'!$G:$G,\"<=\"&$B3,'PPR-2017-01-Dublin'!#REF!,K$1)","v":{"$error":"#REF!"}},{"$f":"COUNTIFS('PPR-2017-01-Dublin'!$G:$G,\">\"&$A3,'PPR-2017-01-Dublin'!$G:$G,\"<=\"&$B3,'PPR-2017-01-Dublin'!#REF!,L$1)","v":{"$error":"#REF!"}},{"$f":"COUNTIFS('PPR-2017-01-Dublin'!$G:$G,\">\"&$A3,'PPR-2017-01-Dublin'!$G:$G,\"<=\"&$B3,'PPR-2017-01-Dublin'!#REF!,M$1)","v":{"$error":"#REF!"}},{"$f":"COUNTIFS('PPR-2017-01-Dublin'!$G:$G,\">\"&$A3,'PPR-2017-01-Dublin'!$G:$G,\"<=\"&$B3,'PPR-2017-01-Dublin'!#REF!,N$1)","v":{"$error":"#REF!"}},{"$f":"COUNTIFS('PPR-2017-01-Dublin'!$G:$G,\">\"&$A3,'PPR-2017-01-Dublin'!$G:$G,\"<=\"&$B3,'PPR-2017-01-Dublin'!#REF!,O$1)","v":{"$error":"#REF!"}},{"$f":"COUNTIFS('PPR-2017-01-Dublin'!$G:$G,\">\"&$A3,'PPR-2017-01-Dublin'!$G:$G,\"<=\"&$B3,'PPR-2017-01-Dublin'!#REF!,P$1)","v":{"$error":"#REF!"}},{"$f":"COUNTIFS('PPR-2017-01-Dublin'!$G:$G,\">\"&$A3,'PPR-2017-01-Dublin'!$G:$G,\"<=\"&$B3,'PPR-2017-01-Dublin'!#REF!,Q$1)","v":{"$error":"#REF!"}},{"$f":"COUNTIFS('PPR-2017-01-Dublin'!$G:$G,\">\"&$A3,'PPR-2017-01-Dublin'!$G:$G,\"<=\"&$B3,'PPR-2017-01-Dublin'!#REF!,R$1)","v":{"$error":"#REF!"}},{"$f":"COUNTIFS('PPR-2017-01-Dublin'!$G:$G,\">\"&$A3,'PPR-2017-01-Dublin'!$G:$G,\"<=\"&$B3,'PPR-2017-01-Dublin'!#REF!,S$1)","v":{"$error":"#REF!"}},{"$f":"COUNTIFS('PPR-2017-01-Dublin'!$G:$G,\">\"&$A3,'PPR-2017-01-Dublin'!$G:$G,\"<=\"&$B3,'PPR-2017-01-Dublin'!#REF!,T$1)","v":{"$error":"#REF!"}},{"$f":"COUNTIFS('PPR-2017-01-Dublin'!$G:$G,\">\"&$A3,'PPR-2017-01-Dublin'!$G:$G,\"<=\"&$B3,'PPR-2017-01-Dublin'!#REF!,U$1)","v":{"$error":"#REF!"}},{"$f":"COUNTIFS('PPR-2017-01-Dublin'!$G:$G,\">\"&$A3,'PPR-2017-01-Dublin'!$G:$G,\"<=\"&$B3,'PPR-2017-01-Dublin'!#REF!,V$1)","v":{"$error":"#REF!"}},{"$f":"COUNTIFS('PPR-2017-01-Dublin'!$G:$G,\">\"&$A3,'PPR-2017-01-Dublin'!$G:$G,\"<=\"&$B3,'PPR-2017-01-Dublin'!#REF!,W$1)","v":{"$error":"#REF!"}},{"$f":"COUNTIFS('PPR-2017-01-Dublin'!$G:$G,\">\"&$A3,'PPR-2017-01-Dublin'!$G:$G,\"<=\"&$B3,'PPR-2017-01-Dublin'!#REF!,X$1)","v":{"$error":"#REF!"}},{"$f":"COUNTIFS('PPR-2017-01-Dublin'!$G:$G,\">\"&$A3,'PPR-2017-01-Dublin'!$G:$G,\"<=\"&$B3,'PPR-2017-01-Dublin'!#REF!,Y$1)","v":{"$error":"#REF!"}}]
[{"$f":"B3","v":16000},160000,"16,000 to 160k",{"$f":"COUNTIFS('PPR-2017-01-Dublin'!$G:$G,\">\"&$A4,'PPR-2017-01-Dublin'!$G:$G,\"<=\"&$B4,'PPR-2017-01-Dublin'!#REF!,D$1)","v":{"$error":"#REF!"}},{"$f":"COUNTIFS('PPR-2017-01-Dublin'!$G:$G,\">\"&$A4,'PPR-2017-01-Dublin'!$G:$G,\"<=\"&$B4,'PPR-2017-01-Dublin'!#REF!,E$1)","v":{"$error":"#REF!"}},{"$f":"COUNTIFS('PPR-2017-01-Dublin'!$G:$G,\">\"&$A4,'PPR-2017-01-Dublin'!$G:$G,\"<=\"&$B4,'PPR-2017-01-Dublin'!#REF!,F$1)","v":{"$error":"#REF!"}},{"$f":"COUNTIFS('PPR-2017-01-Dublin'!$G:$G,\">\"&$A4,'PPR-2017-01-Dublin'!$G:$G,\"<=\"&$B4,'PPR-2017-01-Dublin'!#REF!,G$1)","v":{"$error":"#REF!"}},{"$f":"COUNTIFS('PPR-2017-01-Dublin'!$G:$G,\">\"&$A4,'PPR-2017-01-Dublin'!$G:$G,\"<=\"&$B4,'PPR-2017-01-Dublin'!#REF!,H$1)","v":{"$error":"#REF!"}},{"$f":"COUNTIFS('PPR-2017-01-Dublin'!$G:$G,\">\"&$A4,'PPR-2017-01-Dublin'!$G:$G,\"<=\"&$B4,'PPR-2017-01-Dublin'!#REF!,I$1)","v":{"$error":"#REF!"}},{"$f":"COUNTIFS('PPR-2017-01-Dublin'!$G:$G,\">\"&$A4,'PPR-2017-01-Dublin'!$G:$G,\"<=\"&$B4,'PPR-2017-01-Dublin'!#REF!,J$1)","v":{"$error":"#REF!"}},{"$f":"COUNTIFS('PPR-2017-01-Dublin'!$G:$G,\">\"&$A4,'PPR-2017-01-Dublin'!$G:$G,\"<=\"&$B4,'PPR-2017-01-Dublin'!#REF!,K$1)","v":{"$error":"#REF!"}},{"$f":"COUNTIFS('PPR-2017-01-Dublin'!$G:$G,\">\"&$A4,'PPR-2017-01-Dublin'!$G:$G,\"<=\"&$B4,'PPR-2017-01-Dublin'!#REF!,L$1)","v":{"$error":"#REF!"}},{"$f":"COUNTIFS('PPR-2017-01-Dublin'!$G:$G,\">\"&$A4,'PPR-2017-01-Dublin'!$G:$G,\"<=\"&$B4,'PPR-2017-01-Dublin'!#REF!,M$1)","v":{"$error":"#REF!"}},{"$f":"COUNTIFS('PPR-2017-01-Dublin'!$G:$G,\">\"&$A4,'PPR-2017-01-Dublin'!$G:$G,\"<=\"&$B4,'PPR-2017-01-Dublin'!#REF!,N$1)","v":{"$error":"#REF!"}},{"$f":"COUNTIFS('PPR-2017-01-Dublin'!$G:$G,\">\"&$A4,'PPR-2017-01-Dublin'!$G:$G,\"<=\"&$B4,'PPR-2017-01-Dublin'!#REF!,O$1)","v":{"$error":"#REF!"}},{"$f":"COUNTIFS('PPR-2017-01-Dublin'!$G:$G,\">\"&$A4,'PPR-2017-01-Dublin'!$G:$G,\"<=\"&$B4,'PPR-2017-01-Dublin'!#REF!,P$1)","v":{"$error":"#REF!"}},{"$f":"COUNTIFS('PPR-2017-01-Dublin'!$G:$G,\">\"&$A4,'PPR-2017-01-Dublin'!$G:$G,\"<=\"&$B4,'PPR-2017-01-Dublin'!#REF!,Q$1)","v":{"$error":"#REF!"}},{"$f":"COUNTIFS('PPR-2017-01-Dublin'!$G:$G,\">\"&$A4,'PPR-2017-01-Dublin'!$G:$G,\"<=\"&$B4,'PPR-2017-01-Dublin'!#REF!,R$1)","v":{"$error":"#REF!"}},{"$f":"COUNTIFS('PPR-2017-01-Dublin'!$G:$G,\">\"&$A4,'PPR-2017-01-Dublin'!$G:$G,\"<=\"&$B4,'PPR-2017-01-Dublin'!#REF!,S$1)","v":{"$error":"#REF!"}},{"$f":"COUNTIFS('PPR-2017-01-Dublin'!$G:$G,\">\"&$A4,'PPR-2017-01-Dublin'!$G:$G,\"<=\"&$B4,'PPR-2017-01-Dublin'!#REF!,T$1)","v":{"$error":"#REF!"}},{"$f":"COUNTIFS('PPR-2017-01-Dublin'!$G:$G,\">\"&$A4,'PPR-2017-01-Dublin'!$G:$G,\"<=\"&$B4,'PPR-2017-01-Dublin'!#REF!,U$1)","v":{"$error":"#REF!"}},{"$f":"COUNTIFS('PPR-2017-01-Dublin'!$G:$G,\">\"&$A4,'PPR-2017-01-Dublin'!$G:$G,\"<=\"&$B4,'PPR-2017-01-Dublin'!#REF!,V$1)","v":{"$error":"#REF!"}},{"$f":"COUNTIFS('PPR-2017-01-Dublin'!$G:$G,\">\"&$A4,'PPR-2017-01-Dublin'!$G:$G,\"<=\"&$B4,'PPR-2017-01-Dublin'!#REF!,W$1)","v":{"$error":"#REF!"}},{"$f":"COUNTIFS('PPR-2017-01-Dublin'!$G:$G,\">\"&$A4,'PPR-2017-01-Dublin'!$G:$G,\"<=\"&$B4,'PPR-2017-01-Dublin'!#REF!,X$1)","v":{"$error":"#REF!"}},{"$f":"COUNTIFS('PPR-2017-01-Dublin'!$G:$G,\">\"&$A4,'PPR-2017-01-Dublin'!$G:$G,\"<=\"&$B4,'PPR-2017-01-Dublin'!#REF!,Y$1)","v":{"$error":"#REF!"}}]
[{"$f":"B4","v":160000},1600000,"160k to 1.6m",{"$f":"COUNTIFS('PPR-2017-01-Dublin'!$G:$G,\">\"&$A5,'PPR-2017-01-Dublin'!$G:$G,\"<=\"&$B5,'PPR-2017-01-Dublin'!#REF!,D$1)","v":{"$error":"#REF!"}},{"$f":"COUNTIFS('PPR-2017-01-Dublin'!$G:$G,\">\"&$A5,'PPR-2017-01-Dublin'!$G:$G,\"<=\"&$B5,'PPR-2017-01-Dublin'!#REF!,E$1)","v":{"$error":"#REF!"}},{"$f":"COUNTIFS('PPR-2017-01-Dublin'!$G:$G,\">\"&$A5,'PPR-2017-01-Dublin'!$G:$G,\"<=\"&$B5,'PPR-2017-01-Dublin'!#REF!,F$1)","v":{"$error":"#REF!"}},{"$f":"COUNTIFS('PPR-2017-01-Dublin'!$G:$G,\">\"&$A5,'PPR-2017-01-Dublin'!$G:$G,\"<=\"&$B5,'PPR-2017-01-Dublin'!#REF!,G$1)","v":{"$error":"#REF!"}},{"$f":"COUNTIFS('PPR-2017-01-Dublin'!$G:$G,\">\"&$A5,'PPR-2017-01-Dublin'!$G:$G,\"<=\"&$B5,'PPR-2017-01-Dublin'!#REF!,H$1)","v":{"$error":"#REF!"}},{"$f":"COUNTIFS('PPR-2017-01-Dublin'!$G:$G,\">\"&$A5,'PPR-2017-01-Dublin'!$G:$G,\"<=\"&$B5,'PPR-2017-01-Dublin'!#REF!,I$1)","v":{"$error":"#REF!"}},{"$f":"COUNTIFS('PPR-2017-01-Dublin'!$G:$G,\">\"&$A5,'PPR-2017-01-Dublin'!$G:$G,\"<=\"&$B5,'PPR-2017-01-Dublin'!#REF!,J$1)","v":{"$error":"#REF!"}},{"$f":"COUNTIFS('PPR-2017-01-Dublin'!$G:$G,\">\"&$A5,'PPR-2017-01-Dublin'!$G:$G,\"<=\"&$B5,'PPR-2017-01-Dublin'!#REF!,K$1)","v":{"$error":"#REF!"}},{"$f":"COUNTIFS('PPR-2017-01-Dublin'!$G:$G,\">\"&$A5,'PPR-2017-01-Dublin'!$G:$G,\"<=\"&$B5,'PPR-2017-01-Dublin'!#REF!,L$1)","v":{"$error":"#REF!"}},{"$f":"COUNTIFS('PPR-2017-01-Dublin'!$G:$G,\">\"&$A5,'PPR-2017-01-Dublin'!$G:$G,\"<=\"&$B5,'PPR-2017-01-Dublin'!#REF!,M$1)","v":{"$error":"#REF!"}},{"$f":"COUNTIFS('PPR-2017-01-Dublin'!$G:$G,\">\"&$A5,'PPR-2017-01-Dublin'!$G:$G,\"<=\"&$B5,'PPR-2017-01-Dublin'!#REF!,N$1)","v":{"$error":"#REF!"}},{"$f":"COUNTIFS('PPR-2017-01-Dublin'!$G:$G,\">\"&$A5,'PPR-2017-01-Dublin'!$G:$G,\"<=\"&$B5,'PPR-2017-01-Dublin'!#REF!,O$1)","v":{"$error":"#REF!"}},{"$f":"COUNTIFS('PPR-2017-01-Dublin'!$G:$G,\">\"&$A5,'PPR-2017-01-Dublin'!$G:$G,\"<=\"&$B5,'PPR-2017-01-Dublin'!#REF!,P$1)","v":{"$error":"#REF!"}},{"$f":"COUNTIFS('PPR-2017-01-Dublin'!$G:$G,\">\"&$A5,'PPR-2017-01-Dublin'!$G:$G,\"<=\"&$B5,'PPR-2017-01-Dublin'!#REF!,Q$1)","v":{"$error":"#REF!"}},{"$f":"COUNTIFS('PPR-2017-01-Dublin'!$G:$G,\">\"&$A5,'PPR-2017-01-Dublin'!$G:$G,\"<=\"&$B5,'PPR-2017-01-Dublin'!#REF!,R$1)","v":{"$error":"#REF!"}},{"$f":"COUNTIFS('PPR-2017-01-Dublin'!$G:$G,\">\"&$A5,'PPR-2017-01-Dublin'!$G:$G,\"<=\"&$B5,'PPR-2017-01-Dublin'!#REF!,S$1)","v":{"$error":"#REF!"}},{"$f":"COUNTIFS('PPR-2017-01-Dublin'!$G:$G,\">\"&$A5,'PPR-2017-01-Dublin'!$G:$G,\"<=\"&$B5,'PPR-2017-01-Dublin'!#REF!,T$1)","v":{"$error":"#REF!"}},{"$f":"COUNTIFS('PPR-2017-01-Dublin'!$G:$G,\">\"&$A5,'PPR-2017-01-Dublin'!$G:$G,\"<=\"&$B5,'PPR-2017-01-Dublin'!#REF!,U$1)","v":{"$error":"#REF!"}},{"$f":"COUNTIFS('PPR-2017-01-Dublin'!$G:$G,\">\"&$A5,'PPR-2017-01-Dublin'!$G:$G,\"<=\"&$B5,'PPR-2017-01-Dublin'!#REF!,V$1)","v":{"$error":"#REF!"}},{"$f":"COUNTIFS('PPR-2017-01-Dublin'!$G:$G,\">\"&$A5,'PPR-2017-01-Dublin'!$G:$G,\"<=\"&$B5,'PPR-2017-01-Dublin'!#REF!,W$1)","v":{"$error":"#REF!"}},{"$f":"COUNTIFS('PPR-2017-01-Dublin'!$G:$G,\">\"&$A5,'PPR-2017-01-Dublin'!$G:$G,\"<=\"&$B5,'PPR-2017-01-Dublin'!#REF!,X$1)","v":{"$error":"#REF!"}},{"$f":"COUNTIFS('PPR-2017-01-Dublin'!$G:$G,\">\"&$A5,'PPR-2017-01-Dublin'!$G:$G,\"<=\"&$B5,'PPR-2017-01-Dublin'!#REF!,Y$1)","v":{"$error":"#REF!"}}]
[{"$f":"B5","v":1600000},16000000,"1.6m to 16m",{"$f":"COUNTIFS('PPR-2017-01-Dublin'!$G:$G,\">\"&$A6,'PPR-2017-01-Dublin'!$G:$G,\"<=\"&$B6,'PPR-2017-01-Dublin'!#REF!,D$1)","v":{"$error":"#REF!"}},{"$f":"COUNTIFS('PPR-2017-01-Dublin'!$G:$G,\">\"&$A6,'PPR-2017-01-Dublin'!$G:$G,\"<=\"&$B6,'PPR-2017-01-Dublin'!#REF!,E$1)","v":{"$error":"#REF!"}},{"$f":"COUNTIFS('PPR-2017-01-Dublin'!$G:$G,\">\"&$A6,'PPR-2017-01-Dublin'!$G:$G,\"<=\"&$B6,'PPR-2017-01-Dublin'!#REF!,F$1)","v":{"$error":"#REF!"}},{"$f":"COUNTIFS('PPR-2017-01-Dublin'!$G:$G,\">\"&$A6,'PPR-2017-01-Dublin'!$G:$G,\"<=\"&$B6,'PPR-2017-01-Dublin'!#REF!,G$1)","v":{"$error":"#REF!"}},{"$f":"COUNTIFS('PPR-2017-01-Dublin'!$G:$G,\">\"&$A6,'PPR-2017-01-Dublin'!$G:$G,\"<=\"&$B6,'PPR-2017-01-Dublin'!#REF!,H$1)","v":{"$error":"#REF!"}},{"$f":"COUNTIFS('PPR-2017-01-Dublin'!$G:$G,\">\"&$A6,'PPR-2017-01-Dublin'!$G:$G,\"<=\"&$B6,'PPR-2017-01-Dublin'!#REF!,I$1)","v":{"$error":"#REF!"}},{"$f":"COUNTIFS('PPR-2017-01-Dublin'!$G:$G,\">\"&$A6,'PPR-2017-01-Dublin'!$G:$G,\"<=\"&$B6,'PPR-2017-01-Dublin'!#REF!,J$1)","v":{"$error":"#REF!"}},{"$f":"COUNTIFS('PPR-2017-01-Dublin'!$G:$G,\">\"&$A6,'PPR-2017-01-Dublin'!$G:$G,\"<=\"&$B6,'PPR-2017-01-Dublin'!#REF!,K$1)","v":{"$error":"#REF!"}},{"$f":"COUNTIFS('PPR-2017-01-Dublin'!$G:$G,\">\"&$A6,'PPR-2017-01-Dublin'!$G:$G,\"<=\"&$B6,'PPR-2017-01-Dublin'!#REF!,L$1)","v":{"$error":"#REF!"}},{"$f":"COUNTIFS('PPR-2017-01-Dublin'!$G:$G,\">\"&$A6,'PPR-2017-01-Dublin'!$G:$G,\"<=\"&$B6,'PPR-2017-01-Dublin'!#REF!,M$1)","v":{"$error":"#REF!"}},{"$f":"COUNTIFS('PPR-2017-01-Dublin'!$G:$G,\">\"&$A6,'PPR-2017-01-Dublin'!$G:$G,\"<=\"&$B6,'PPR-2017-01-Dublin'!#REF!,N$1)","v":{"$error":"#REF!"}},{"$f":"COUNTIFS('PPR-2017-01-Dublin'!$G:$G,\">\"&$A6,'PPR-2017-01-Dublin'!$G:$G,\"<=\"&$B6,'PPR-2017-01-Dublin'!#REF!,O$1)","v":{"$error":"#REF!"}},{"$f":"COUNTIFS('PPR-2017-01-Dublin'!$G:$G,\">\"&$A6,'PPR-2017-01-Dublin'!$G:$G,\"<=\"&$B6,'PPR-2017-01-Dublin'!#REF!,P$1)","v":{"$error":"#REF!"}},{"$f":"COUNTIFS('PPR-2017-01-Dublin'!$G:$G,\">\"&$A6,'PPR-2017-01-Dublin'!$G:$G,\"<=\"&$B6,'PPR-2017-01-Dublin'!#REF!,Q$1)","v":{"$error":"#REF!"}},{"$f":"COUNTIFS('PPR-2017-01-Dublin'!$G:$G,\">\"&$A6,'PPR-2017-01-Dublin'!$G:$G,\"<=\"&$B6,'PPR-2017-01-Dublin'!#REF!,R$1)","v":{"$error":"#REF!"}},{"$f":"COUNTIFS('PPR-2017-01-Dublin'!$G:$G,\">\"&$A6,'PPR-2017-01-Dublin'!$G:$G,\"<=\"&$B6,'PPR-2017-01-Dublin'!#REF!,S$1)","v":{"$error":"#REF!"}},{"$f":"COUNTIFS('PPR-2017-01-Dublin'!$G:$G,\">\"&$A6,'PPR-2017-01-Dublin'!$G:$G,\"<=\"&$B6,'PPR-2017-01-Dublin'!#REF!,T$1)","v":{"$error":"#REF!"}},{"$f":"COUNTIFS('PPR-2017-01-Dublin'!$G:$G,\">\"&$A6,'PPR-2017-01-Dublin'!$G:$G,\"<=\"&$B6,'PPR-2017-01-Dublin'!#REF!,U$1)","v":{"$error":"#REF!"}},{"$f":"COUNTIFS('PPR-2017-01-Dublin'!$G:$G,\">\"&$A6,'PPR-2017-01-Dublin'!$G:$G,\"<=\"&$B6,'PPR-2017-01-Dublin'!#REF!,V$1)","v":{"$error":"#REF!"}},{"$f":"COUNTIFS('PPR-2017-01-Dublin'!$G:$G,\">\"&$A6,'PPR-2017-01-Dublin'!$G:$G,\"<=\"&$B6,'PPR-2017-01-Dublin'!#REF!,W$1)","v":{"$error":"#REF!"}},{"$f":"COUNTIFS('PPR-2017-01-Dublin'!$G:$G,\">\"&$A6,'PPR-2017-01-Dublin'!$G:$G,\"<=\"&$B6,'PPR-2017-01-Dublin'!#REF!,X$1)","v":{"$error":"#REF!"}},{"$f":"COUNTIFS('PPR-2017-01-Dublin'!$G:$G,\">\"&$A6,'PPR-2017-01-Dublin'!$G:$G,\"<=\"&$B6,'PPR-2017-01-Dublin'!#REF!,Y$1)","v":{"$error":"#REF!"}}]
[{"$f":"B6","v":16000000},40000000,"16m - 40m",{"$f":"COUNTIFS('PPR-2017-01-Dublin'!$G:$G,\">\"&$A7,'PPR-2017-01-Dublin'!$G:$G,\"<=\"&$B7,'PPR-2017-01-Dublin'!#REF!,D$1)","v":{"$error":"#REF!"}},{"$f":"COUNTIFS('PPR-2017-01-Dublin'!$G:$G,\">\"&$A7,'PPR-2017-01-Dublin'!$G:$G,\"<=\"&$B7,'PPR-2017-01-Dublin'!#REF!,E$1)","v":{"$error":"#REF!"}},{"$f":"COUNTIFS('PPR-2017-01-Dublin'!$G:$G,\">\"&$A7,'PPR-2017-01-Dublin'!$G:$G,\"<=\"&$B7,'PPR-2017-01-Dublin'!#REF!,F$1)","v":{"$error":"#REF!"}},{"$f":"COUNTIFS('PPR-2017-01-Dublin'!$G:$G,\">\"&$A7,'PPR-2017-01-Dublin'!$G:$G,\"<=\"&$B7,'PPR-2017-01-Dublin'!#REF!,G$1)","v":{"$error":"#REF!"}},{"$f":"COUNTIFS('PPR-2017-01-Dublin'!$G:$G,\">\"&$A7,'PPR-2017-01-Dublin'!$G:$G,\"<=\"&$B7,'PPR-2017-01-Dublin'!#REF!,H$1)","v":{"$error":"#REF!"}},{"$f":"COUNTIFS('PPR-2017-01-Dublin'!$G:$G,\">\"&$A7,'PPR-2017-01-Dublin'!$G:$G,\"<=\"&$B7,'PPR-2017-01-Dublin'!#REF!,I$1)","v":{"$error":"#REF!"}},{"$f":"COUNTIFS('PPR-2017-01-Dublin'!$G:$G,\">\"&$A7,'PPR-2017-01-Dublin'!$G:$G,\"<=\"&$B7,'PPR-2017-01-Dublin'!#REF!,J$1)","v":{"$error":"#REF!"}},{"$f":"COUNTIFS('PPR-2017-01-Dublin'!$G:$G,\">\"&$A7,'PPR-2017-01-Dublin'!$G:$G,\"<=\"&$B7,'PPR-2017-01-Dublin'!#REF!,K$1)","v":{"$error":"#REF!"}},{"$f":"COUNTIFS('PPR-2017-01-Dublin'!$G:$G,\">\"&$A7,'PPR-2017-01-Dublin'!$G:$G,\"<=\"&$B7,'PPR-2017-01-Dublin'!#REF!,L$1)","v":{"$error":"#REF!"}},{"$f":"COUNTIFS('PPR-2017-01-Dublin'!$G:$G,\">\"&$A7,'PPR-2017-01-Dublin'!$G:$G,\"<=\"&$B7,'PPR-2017-01-Dublin'!#REF!,M$1)","v":{"$error":"#REF!"}},{"$f":"COUNTIFS('PPR-2017-01-Dublin'!$G:$G,\">\"&$A7,'PPR-2017-01-Dublin'!$G:$G,\"<=\"&$B7,'PPR-2017-01-Dublin'!#REF!,N$1)","v":{"$error":"#REF!"}},{"$f":"COUNTIFS('PPR-2017-01-Dublin'!$G:$G,\">\"&$A7,'PPR-2017-01-Dublin'!$G:$G,\"<=\"&$B7,'PPR-2017-01-Dublin'!#REF!,O$1)","v":{"$error":"#REF!"}},{"$f":"COUNTIFS('PPR-2017-01-Dublin'!$G:$G,\">\"&$A7,'PPR-2017-01-Dublin'!$G:$G,\"<=\"&$B7,'PPR-2017-01-Dublin'!#REF!,P$1)","v":{"$error":"#REF!"}},{"$f":"COUNTIFS('PPR-2017-01-Dublin'!$G:$G,\">\"&$A7,'PPR-2017-01-Dublin'!$G:$G,\"<=\"&$B7,'PPR-2017-01-Dublin'!#REF!,Q$1)","v":{"$error":"#REF!"}},{"$f":"COUNTIFS('PPR-2017-01-Dublin'!$G:$G,\">\"&$A7,'PPR-2017-01-Dublin'!$G:$G,\"<=\"&$B7,'PPR-2017-01-Dublin'!#REF!,R$1)","v":{"$error":"#REF!"}},{"$f":"COUNTIFS('PPR-2017-01-Dublin'!$G:$G,\">\"&$A7,'PPR-2017-01-Dublin'!$G:$G,\"<=\"&$B7,'PPR-2017-01-Dublin'!#REF!,S$1)","v":{"$error":"#REF!"}},{"$f":"COUNTIFS('PPR-2017-01-Dublin'!$G:$G,\">\"&$A7,'PPR-2017-01-Dublin'!$G:$G,\"<=\"&$B7,'PPR-2017-01-Dublin'!#REF!,T$1)","v":{"$error":"#REF!"}},{"$f":"COUNTIFS('PPR-2017-01-Dublin'!$G:$G,\">\"&$A7,'PPR-2017-01-Dublin'!$G:$G,\"<=\"&$B7,'PPR-2017-01-Dublin'!#REF!,U$1)","v":{"$error":"#REF!"}},{"$f":"COUNTIFS('PPR-2017-01-Dublin'!$G:$G,\">\"&$A7,'PPR-2017-01-Dublin'!$G:$G,\"<=\"&$B7,'PPR-2017-01-Dublin'!#REF!,V$1)","v":{"$error":"#REF!"}},{"$f":"COUNTIFS('PPR-2017-01-Dublin'!$G:$G,\">\"&$A7,'PPR-2017-01-Dublin'!$G:$G,\"<=\"&$B7,'PPR-2017-01-Dublin'!#REF!,W$1)","v":{"$error":"#REF!"}},{"$f":"COUNTIFS('PPR-2017-01-Dublin'!$G:$G,\">\"&$A7,'PPR-2017-01-Dublin'!$G:$G,\"<=\"&$B7,'PPR-2017-01-Dublin'!#REF!,X$1)","v":{"$error":"#REF!"}},{"$f":"COUNTIFS('PPR-2017-01-Dublin'!$G:$G,\">\"&$A7,'PPR-2017-01-Dublin'!$G:$G,\"<=\"&$B7,'PPR-2017-01-Dublin'!#REF!,Y$1)","v":{"$error":"#REF!"}}]

{"sheet":"Regions","index":2,"n_rows":23,"n_cols":2,"rows_kept":23,"cut":false,"hidden":false,"merged":[]}
["Postal Code","Region"]
["Dublin 3","N"]
["Dublin 4","W"]
["Dublin 16","E"]
["Dublin 15","S"]
["Dublin 6","W"]
["Dublin 10","E"]
["Dublin 9","W"]
["Dublin 14","E"]
["Dublin 1","S"]
["Dublin 11","E"]
["Dublin 7","W"]
["Dublin 2","E"]
["Dublin 8","S"]
["Dublin 18","W"]
["Dublin 24","E"]
["Dublin 5","S"]
["Dublin 20","N"]
["Dublin 12","N"]
["Dublin 22","E"]
["Dublin 13","S"]
["Dublin 17","N"]
["Dublin 6w","N"]